{"text_format":"1","workbook":"xlsx","n_sheets":13,"sheets":["СВ ОКНА","List","Clients","Spec","BillContract","ActGoods","Draw","UPD","Contract","Montage","ActMontage","Check","Bill"],"not_rendered":{"charts":0,"images":2,"macros":1,"external_links":0,"defined_names":91,"comments":0,"pivot_tables":0},"unopened":[],"bounds":{"document_bytes":16777216,"sheet_cells":100000,"rows_first":2000,"rows_last":500,"rows_between":2000,"halvings":0,"cell_chars":16384,"cell_head_chars":4096},"cells_cut":0,"cells_raw":0,"read":"whole","date_system":"1900"}

{"sheet":"СВ ОКНА","index":0,"n_rows":23,"n_cols":12,"rows_kept":23,"cut":false,"hidden":false,"merged":[]}
[null,null,null,null,"Дополнительные элементы"]
["Для вывода формы щелкните по картинке! Ваш список дополнительных товаров и услуг смотрите ниже!",null,null,null,"Наименование.","Материал","Цвет","Толщина","Ширина","Длина","Цена","Монтаж"]
["Если форма не открывается измените политику безопасности в меню макросы!",null,null,null,"Сетка противомоскитная белая",null,null,null,1000,1000,1500,600]
[null,null,null,null,"Стеклопакет 4-14-4-14-4И",null,null,null,1000,1000,2500,2500]
[null,null,null,null,"Стеклопакет 4-20-4И",null,null,null,1000,1000,2000,2000]
[null,null,null,null,"Ручка оконная бронза",null,null,null,null,null,1500,300]
[null,null,null,null,"Поворотно-откидная фурнитура с микрощелевым проветриванием на дверь",null,null,null,null,null,3500]
[null,null,null,null,"Поворотно-откидная фурнитура на дверь",null,null,null,null,null,3000]
[null,null,null,null,"Капельник (дерево)",null,null,null,null,1000,500]
[null,null,null,null,"Ручка с ключом бронза",null,null,null,null,null,3000]
[null,null,null,null,"Латунная накладка на низ двери с одной стороны",null,null,null,null,null,6000]
[null,null,null,null,"Фрамужный привод жесткий белый",null,null,null,null,null,12000]
[null,null,null,null,"Фрамужный привод жесткий коричневый",null,null,null,null,null,12000]
[null,null,null,null,"Фрамужный электропривод белый",null,null,null,null,null,16000]
[null,null,null,null,"Фрамужный электропривод коричневый",null,null,null,null,null,17300]
[null,null," ",null,"Приточный клапан AIRECO белый",null,null,null,null,null,12300]
[null,null,null,null,"Жалюзийная решетка сосна окрашенная",null,null,null,1000,1000,12000]
[null,null,null,null,"Жалюзийная решетка лиственница окрашенная",null,null,null,1000,1000,18000]
[null,null,null,null,"Жалюзийная решетка дуб окрашенная",null,null,null,1000,1000,25000]
[null,null,null,null,"Петля ввёртная дверная (D16мм) без накладок",null,null,null,null,null,1000]
[null,null,null,null,"Штапик ЕВРО сосна окрашенный",null,null,null,null,1000,300]
[null,null,null,null,"Штапик ЕВРО лиственница окрашенный",null,null,null,null,1000,400]
[null,null,null,null,"Штапик ЕВРО дуб окрашенный",null,null,null,null,1000,800,100]

{"sheet":"List","index":1,"n_rows":213,"n_cols":1000,"rows_kept":213,"cut":false,"hidden":false,"merged":[]}
["Цвет отделки 1","Грунт 2","Лак 3","Уплотн 3","Прозрачн 4","Цена 5","Код цвета 6",null,null,null,"Обозначение","Стекло наружное","Цена","Толщина","Маркировка",null,null,null,null,null,"Обозначение","Стекло внутреннее.","Цена","Толщина","Маркировка",null,null,null,null,null,"цвет профиля","D22/20F","Артикул","Заглушка","FP","Артикул","Заглушка","Капельник","Артикул","Цвет","Наименование","Наименование для печати","Цена","ЕВРО","ОСВ","Цвет",null,null,null,null,"Подоконник пластик","Цена","Цвет",null,null,null,null,null,null,null,"Тип ","Наименование","цена ",null,null,null,null,null,null,null,"Key","Value",null,null,null,null,null,null,null,null,"Timber",1000,null,null,null,null,null,null,null,null,"Наименование","ед изм","цена ",null,null,null,null,null,null,null,"Тип","Производитель","Дорн","Смещение","Наименование","Полное наименование","Артикул","размер мин","размер мах","высота ручки","Допы",null,null,null,null,null,null,null,null,null,null,null,null,null,null,null,null,null,null,null,null,null,null,null,null,null,null,null,null,null,null,null,null,null,null,null,null,null,null,null,null,null,null,null,null,null,null,null,null,null,null,null,null,null,null,null,null,null,null,null,null,null,null,null,null,null,null,null,null,null,null,null,null,null,null,null,null,null,null,null,null,null,null,null,null,null,null,null,null,null,null,null,null,null,null,null,null,null,null,null,null,null,null,null,null,null,null,null,null,null,null,null,null,null,null,null,null,null,null,null,null,null,null,null,null,null,null,null,null,null,null,null,null,null,null,null,null,null,null,null,null,null,null,null,null,null,null,null,null,null,null,null,null,null,null,null,null,null,null,null,null,null,null,null,null,null,null,null,null,null,null,null,null,null,null,null,null,null,null,null,null,null,null,null,null,null,null,null,null,null,null,null,null,null,null,null,null,null,null,null,null,null,null,null,null,null,null,null,null,null,null,null,null,null,null,null,null,null,null,null,null,null,null,null,null,null,null,null,null,null,null,null,null,null,null,null,null,null,null,null,null,null,null,null,null,null,null,null,null,null,null,null,null,null,null,null,null,null,null,null,null,null,null,null,null,null,null,null,null,null,null,null,null,null,null,null,null,null,null,null,null,null,null,null,null,null,null,null,null,null,null,null,null,null,null,null,null,null,null,null,null,null,null,null,null,null,null,null,null,null,null,null,null,null,null,null,null,null,null,null,null,null,null,null,null,null,null,null,null,null,null,null,null,null,null,null,null,null,null,null,null,null,null,null,null,null,null,null,null,null,null,null,null,null,null,null,null,null,null,null,null,null,null,null,null,null,null,null,null,null,null,null,null,null,null,null,null,null,null,null,null,null,null,null,null,null,null,null,null,null,null,null,null,null,null,null,null,null,null,null,null,null,null,null,null,null,null,null,null,null,null,null,null,null,null,null,null,null,null,null,null,null,null,null,null,null,null,null,null,null,null,null,null,null,null,null,null,null,null,null,null,null,null,null,null,null,null,null,null,null,null,null,null,null,null,null,null,null,null,null,null,null,null,null,null,null,null,null,null,null,null,null,null,null,null,null,null,null,null,null,null,null,null,null,null,null,null,null,null,null,null,null,null,null,null,null,null,null,null,null,null,null,null,null,null,null,null,null,null,null,null,null,null,null,null,null,null,null,null,null,null,null,null,null,null,null,null,null,null,null,null,null,null,null,null,null,null,null,null,null,null,null,null,null,null,null,null,null,null,null,null,null,null,null,null,null,null,null,null,null,null,null,null,null,null,null,null,null,null,null,null,null,null,null,null,null,null,null,null,null,null,null,null,null,null,null,null,null,null,null,null,null,null,null,null,null,null,null,null,null,null,null,null,null,null,null,null,null,null,null,null,null,null,null,null,null,null,null,null,null,null,null,null,null,null,null,null,null,null,null,null,null,null,null,null,null,null,null,null,null,null,null,null,null,null,null,null,null,null,null,null,null,null,null,null,null,null,null,null,null,null,null,null,null,null,null,null,null,null,null,null,null,null,null,null,null,null,null,null,null,null,null,null,null,null,null,null,null,null,null,null,null,null,null,null,null,null,null,null,null,null,null,null,null,null,null,null,null,null,null,null,null,null,null,null,null,null,null,null,null,null,null,null,null,null,null,null,null,null,null,null,null,null,null,null,null,null,null,null,null,null,null,null,null,null,null,null,null,null,null,null,null,null,null,null,null,null,null,null,null,null,null,null,null,null,null,null,null,null,null,null,null,null,null,null,null,null,null,null,null,null,null,null,null,null,null,null,null,null,null,null,null,null,null,null,null,null,null,null,null,null,null,null,null,null,null,null,null,null,null,null,null,null,null,null,null,null,null,null,null,null,null,null,null,null,null,null,null,null,null,null,null,null,null,null,null,null,null,null,null,null,null,null,null,null,null,null,null,null,null,null,1.9,null,null,null,null,null,null,null,null,null,null,null,null,null,null,null,null,null,null,null,null,null,null,null,null,null,null,null,null,null,null,null,null,null,null,null,null,null,1.9]
["Без отделки",null,null,2,0,null,15202559,null,null,null,"4","Прозрачное М1 4 мм.",0,4,"4 Lfloat",null,null,null,null,null,"4И","Энергосберегающее 4 мм.",0,4,"4 LH Therm",null,null,null,null,null,"Алюминий",700,"ROS5605.01","ROS0080.01",200,"FP-16.01","16-FP.01",150,"P431",11713981,"узкий импост","Расстекловка узким импостом",1000,56,50,null,null,null,null,null,"Белый",null,16777215,null,null,null,null,null,null,null,0,"Без ручки.",150,null,null,null,null,null,null,null,"Delivery",5000,null,null,null,null,null,null,null,null,"Glass",1000,null,null,null,null,null,null,null,null,"MACO","компл.",0,null,null,null,"Lock","Swing","fix",null,"LSf","MACO",15,0,"Замок пов.","Запорный механизм DM15 фикс.",211961,275,430,125]
["Антисептик","Сосна",null,2,1,550,14347239,null,null,null,"4МФ","Мультифункциональное 4 мм.",330,4,"4 LH Sol",null,null,null,null,null,"4У","Улучшеное энергосберегающее 4 мм.",400,4,"4 LP Prem",null,null,null,null,null,"Белый",800,"ROS5605.01/RAL9016","ROS0080.07",300,"FP-16.07","16-FP.07",200,"P431/RAL9016",16777215,"широкий импост","Расстекловка широким импостом",1100,78,70,null,null,null,null,null,"Светлый дуб",null,7187154,null,null,null,null,null,null,null,10,"Ручка оконная белая.",350,null,null,null,null,null,null,null,"DeliveryCenter",6000,null,null,null,null,null,null,null,null,null,null,null,null,null,null,null,null,null,null,"Скрытые","компл.",11000,null,null,null,null,null,null,null,"LSf","MACO",15,0,"Замок пов.","Запорный механизм DM15 фикс.",211962,431,660,190]
["По образцу прозрачная","По образцу прозрачная","По образцу прозрачная",2,0,1650,3421131,null,null,null,"4МФУ","Улучшеное мультифункциональное 4 мм.",1200,4,"4 LP HP NI 60/40",null,null,null,null,null,"4мат","Матовое 4 мм.",1000,4,"4 SatMat",null,null,null,null,null,"Коричневый",800,"ROS5605.01/RAL8017","ROS0080.05",300,"FP-16.05","16-FP.05",200,"P431/RAL8017",2961988,"дерево 25 мм снаружи","Фальшпереплет дерево 25 мм с наружной стороны.",1000,25,25,null,null,null,null,null,"Золотой дуб",null,2852090,null,null,null,null,null,null,null,11,"Ручка оконная коричневая.",350,null,null,null,null,null,null,null,"MinDelivery",1000,null,null,null,null,null,null,null,null,null,null,null,null,null,null,null,null,null,null,"Усиленные","компл.",8500,null,null,null,null,null,null,null,"LSf","MACO",15,0,"Замок пов.","Запорный механизм DM15 фикс.",211963,661,840,300]
["По образцу укрывная","По образцу укрывная","По образцу укрывная",2,1,1650,7480729,null,null,null,"4мат","Матовое 4 мм.",1200,4,"4 SatMat",null,null,null,null,null,"4зак","Закаленное 4 мм.",500,4,"4 Lfloat Зак",null,null,null,null,null,"RAL1000",1200,{"$f":"\"ROS5605.01/\"&AE5","v":"ROS5605.01/RAL1000"},{"$f":"\"ROS0080.0\"&IF(AC6=2,1,IF(AC6=1,5,7))","v":"ROS0080.07"},600,{"$f":"\"FP-16.01/\"&AE5","v":"FP-16.01/RAL1000"},{"$f":"\"16-FP.0\"&IF(AC6=2,1,IF(AC6=1,5,7))","v":"16-FP.07"},400,{"$f":"\"P431/\"&AE5","v":"P431/RAL1000"},9422284,"горбылек 25 мм с двух сторон","Горбылек 25 мм с двух сторон.",2000,25,25,null,null,null,null,null,"Махагон",null,3225703,null,null,null,null,null,null,null,12,"Ручка оконная бронза.",500,null,null,null,null,null,null,null,"KmDelivery",60,null,null,null,null,null,null,null,null,null,null,null,null,null,null,null,null,null,null,"BAKA","компл.",15000,null,null,null,null,null,null,null,"LSf","MACO",15,0,"Замок пов.","Запорный механизм DM15 фикс.",211964,841,1090,400]
["Белый","Белый","Краска белая",0,1,1450,16777215,null,null,null,"4МФсб","Мультифункциональное 4 мм серебро.",500,4,"4 LH Sol Si",null,null,null,null,null,"4Изак","Закаленное энергосберегающее 4 мм.",1150,4,"4 LP Prem Зак",null,null,null,null,null,"RAL1001",1200,{"$f":"\"ROS5605.01/\"&AE6","v":"ROS5605.01/RAL1001"},"ROS0080.07",600,{"$f":"\"FP-16.01/\"&AE6","v":"FP-16.01/RAL1001"},"16-FP.07",400,{"$f":"\"P431/\"&AE6","v":"P431/RAL1001"},9092305,"горбылек с калевкой 25 мм с двух сторон","Горбылек с калевкой 25 мм с двух сторон.",3000,25,25,null,null,null,null,null,null,null,null,null,null,null,null,null,null,null,13,"Ручка оконная серебро.",500,null,null,null,null,null,null,null,"Timber",1000,null,null,null,null,null,null,null,null,null,null,null,null,null,null,null,null,null,null,"Круглого окна","компл.",20000,null,null,null,null,null,null,null,"LSf","MACO",15,0,"Замок пов.","Запорный механизм DM15 фикс.",211965,1091,1340,500]
["Ясень","Bianco 0.10","Bianco 0.10",0,0,1450,16448255,null,null,null,"4МФбр","Мультифункциональное 4 мм бронза.",500,4,"4 LH Sol Br",null,null,null,null,null,"4пл112мкм","4 мм с пленкой 112 мкм прозрачной.",1150,4,"4 Lfloat 112 мкм/CM1",null,null,null,null,null,"RAL1002",1200,{"$f":"\"ROS5605.01/\"&AE7","v":"ROS5605.01/RAL1002"},"ROS0080.07",600,{"$f":"\"FP-16.01/\"&AE7","v":"FP-16.01/RAL1002"},"16-FP.07",400,"P431/RAL1002",7583698,"внутри с/п 8 мм белый","Фальшпереплет внутри с/п 8 мм белый.",500,8,8,16777215,null,null,null,null,null,null,null,null,null,null,null,null,null,null,14,"Ручка оконная титан.",500,null,null,null,null,null,null,null,"MinMontage",8000,null,null,null,null,null,null,null,null,null,null,null,null,null,null,null,null,null,null,null,null,null,null,null,null,null,null,null,null,"LSf","MACO",15,0,"Замок пов.","Запорный механизм DM15 фикс.",211966,1341,1590,600]
["Береза","Gelb 1.40","Gelb 1.40",0,0,1450,12051199,null,null,null,"4МФср","Мультифункциональное 4 мм серое.",500,4,"4 LH Sol Li Gr",null,null,null,null,null,"4пл(А1)","4 мм с пленкой класс А1 прозрачной.",1760,4,"4 Lfloat P2A(A1)",null,null,null,null,null,"RAL1003",1200,"ROS5605.01/RAL1003","ROS0080.07",600,"FP-16.01/RAL1003","16-FP.07",400,"P431/RAL1003",768759,"внутри с/п 8 мм золото","Фальшпереплет внутри с/п 8 мм золото.",500,8,8,768759,null,null,null,null,null,null,null,null,null,null,null,null,null,null,15,"Ручка оконная шампань.",5000,null,null,null,null,null,null,null,null,null,null,null,null,null,null,null,null,null,null,null,null,null,null,null,null,null,null,null,null,null,null,null,null,null,null,null,null,null,"LSf","MACO",15,0,"Замок пов.","Запорный механизм DM15 фикс.",211967,1591,1700,700]
["Клен","Bianco 0.10","Клен",2,0,1450,14020607,null,null,null,"4зак","Закаленное 4 мм.",750,4,"4 Lfloat Зак",null,null,null,null,null,"4пл(А2)","4 мм с пленкой класс А2 прозрачной.",2640,4,"4 Lfloat P3A(A2)",null,null,null,null,null,"RAL1004",1200,"ROS5605.01/RAL1004","ROS0080.07",600,"FP-16.01/RAL1004","16-FP.07",400,"P431/RAL1004",504034,"внутри с/п 18 мм белый","Фальшпереплет внутри с/п 18 мм белый.",550,18,18,16777215,null,null,null,null,null,null,null,null,null,null,null,null,null,null,20,"Ручка оконная с длинным штифтом белая.",1000,null,null,null,null,null,null,null,null,null,null,null,null,null,null,null,null,null,null,null,null,null,null,null,null,null,null,null,null,null,null,null,null,null,null,null,null,null,"LSf","MACO",15,0,"Замок пов.","Запорный механизм DM15 фикс.",211968,1701,1950,1050]
["Сосна","Сосна","Сосна",2,0,1450,4247551,null,null,null,"4МФзак","Закаленное мультифункциональное 4 мм.",2100,4,"4 LP HP NI 60/40 Зак",null,null,null,null,null,"4пл(А3)","4 мм с пленкой класс А3 прозрачной.",3520,4,"4 Lfloat P4A(A3)",null,null,null,null,null,"RAL1005",1200,"ROS5605.01/RAL1005","ROS0080.07",600,"FP-16.01/RAL1005","16-FP.07",400,"P431/RAL1005",303048,"внутри с/п 18 мм золото","Фальшпереплет внутри с/п 18 мм золото.",1500,18,18,768759,null,null,null,null,null,null,null,null,null,null,null,null,null,null,21,"Ручка оконная с длинным штифтом коричневая.",1000,null,null,null,null,null,null,null,null,null,null,null,null,null,null,null,null,null,null,null,null,null,null,null,null,null,null,null,null,null,null,null,null,null,null,null,null,null,"LSf","MACO",15,0,"Замок пов.","Запорный механизм DM15 фикс.",211969,1951,2200,1050]
["Орегон","Золотой тик","Золотой тик",2,0,1450,43508,null,null,null,"4пл112мкм","4 мм с пленкой 112 мкм прозрачной.",1150,4,"4 Lfloat 112 мкм/CM1",null,null,null,null,null,"4пл","4 мм с декоративной пленкой.",1700,4,"4 Lfloat Дек пл",null,null,null,null,null,"RAL1006",1200,"ROS5605.01/RAL1006","ROS0080.07",600,"FP-16.01/RAL1006","16-FP.07",400,"P431/RAL1006",41441,"внутри с/п 18 мм коричневый","Фальшпереплет внутри с/п 18 мм коричневый.",600,18,18,2961988,null,null,null,null,null,null,null,null,null,null,null,null,null,null,22,"Ручка оконная с длинным штифтом бронза.",1300,null,null,null,null,null,null,null,null,null,null,null,null,null,null,null,null,null,null,null,null,null,null,null,null,null,null,null,null,null,null,null,null,null,null,null,null,null,"LSf","MACO",15,0,"Замок пов.","Запорный механизм DM15 фикс.",211970,2201,3000,1050]
["Светлый дуб","Светлый дуб","Светлый дуб",2,0,1450,3450061,null,null,null,"4пл(А1)","4 мм с пленкой класс А1 прозрачной.",1760,4,"4 Lfloat P2A(A1)",null,null,null,null,null,"6И","Энергосберегающее 6 мм.",570,6,"6 Lfloat",null,null,null,null,null,"RAL1007",1200,"ROS5605.01/RAL1007","ROS0080.07",600,"FP-16.01/RAL1007","16-FP.07",400,"P431/RAL1007",40167,"внутри с/п 18 мм светлый дуб","Фальшпереплет внутри с/п 18 мм светлый дуб.",600,18,18,7187154,null,null,null,null,null,null,null,null,null,null,null,null,null,null,23,"Ручка оконная с длинным штифтом серебро.",1150,null,null,null,null,null,null,null,null,null,null,null,null,null,null,null,null,null,null,null,null,null,null,null,null,null,null,null,null,null,null,null,null,null,"Lock","Flap","fix",null,"LFf","MACO",15,0,"Замок ПО","ПО-механизм DM15 фикс.",209370,300,430,125]
["Каштан","Каштан Т2","Каштан Т2",1,0,1450,31157,null,null,null,"4пл(А2)","4 мм с пленкой класс А2 прозрачной.",2640,4,"4 Lfloat P3A(A2)",null,null,null,null,null,"6МФУ","Улучшеное энергосберегающее 6 мм.",800,6,"6 LP Prem",null,null,null,null,null,"RAL1011",1200,"ROS5605.01/RAL1011","ROS0080.07",600,"FP-16.01/RAL1011","16-FP.07",400,"P431/RAL1011",5540527,"внутри с/п 18 мм темный дуб","Фальшпереплет внутри с/п 18 мм темный дуб.",600,18,18,2963785,null,null,null,null,null,null,null,null,null,null,null,null,null,null,24,"Ручка оконная с длинным штифтом титан.",1300,null,null,null,null,null,null,null,null,null,null,null,null,null,null,null,null,null,null,null,null,null,null,null,null,null,null,null,null,null,null,null,null,null,null,null,null,null,"LFf","MACO",15,0,"Замок ПО","ПО-механизм DM15 фикс.",209371,431,660,190]
["Вишня","Rot 3.11","Rot 3.11",1,0,1450,128,null,null,null,"4пл(А3)","4 мм с пленкой класс А3 прозрачной.",3520,4,"4 Lfloat P4A(A3)",null,null,null,null,null,"6мат","Матовое 6 мм.",1280,6,"6 SatMat",null,null,null,null,null,"RAL1012",1200,"ROS5605.01/RAL1012","ROS0080.07",600,"FP-16.01/RAL1012","16-FP.07",400,"P431/RAL1012",2277593,"внутри с/п 18 мм золотой дуб","Фальшпереплет внутри с/п 18 мм золотой дуб.",600,18,18,2852090,null,null,null,null,null,null,null,null,null,null,null,null,null,null,25,"Ручка оконная с длинным штифтом шампань.",5000,null,null,null,null,null,null,null,null,null,null,null,null,null,null,null,null,null,null,null,null,null,null,null,null,null,null,null,null,null,null,null,null,null,null,null,null,null,"LFf","MACO",15,0,"Замок ПО","ПО-механизм DM15 фикс.",212118,661,840,300]
["Рябина","Махагон","Махагон",1,0,1450,1188769,null,null,null,"4пл","4 мм с декоративной пленкой.",1700,4,"4 Lfloat Дек пл",null,null,null,null,null,"6Бр","Тонированное в массе 6 мм бронзовое.",1700,6,"6 Pl Br",null,null,null,null,null,"RAL1013",1200,"ROS5605.01/RAL1013","ROS0080.07",600,"FP-16.01/RAL1013","16-FP.07",400,"P431/RAL1013",13559273,"внутри с/п 18 мм средний дуб","Фальшпереплет внутри с/п 18 мм средний дуб.",600,18,18,3101824,null,null,null,null,null,null,null,null,null,null,null,null,null,null,30,"Гарнитур нажимной раздельный белый.",5000,null,null,null,null,null,null,null,null,null,null,null,null,null,null,null,null,null,null,null,null,null,null,null,null,null,null,null,null,null,null,null,null,null,null,null,null,null,"LFf","MACO",15,0,"Замок ПО","ПО-механизм DM15 фикс.",212120,841,1090,400]
["Тик","Тик","Тик",1,0,1450,2970272,null,null,null,"6","Прозрачное М1 6 мм.",700,6,"6 Lfloat",null,null,null,null,null,"6Ср","Тонированное в массе 6 мм серое.",1700,6,"6 Pl Grey",null,null,null,null,null,"RAL1014",1200,"ROS5605.01/RAL1014","ROS0080.07",600,"FP-16.01/RAL1014","16-FP.07",400,"P431/RAL1014",10473694,"внутри с/п 18 мм махагон","Фальшпереплет внутри с/п 18 мм махагон.",600,18,18,3225703,null,null,null,null,null,null,null,null,null,null,null,null,null,null,31,"Гарнитур нажимной раздельный коричневый.",5000,null,null,null,null,null,null,null,null,null,null,null,null,null,null,null,null,null,null,null,null,null,null,null,null,null,null,null,null,null,null,null,null,null,null,null,null,null,"LFf","MACO",15,0,"Замок ПО","ПО-механизм DM15 фикс.",212122,1091,1340,500]
["Дуб","Braun 8.03","Braun 8.03",1,0,1450,6588340,null,null,null,"6МФ","Мультифункциональное 6 мм.",900,6,"6 LH Sol",null,null,null,null,null,"6зак","Закаленное 6 мм.",1400,6,"6 Lfloat Зак",null,null,null,null,null,"RAL1015",1200,"ROS5605.01/RAL1015","ROS0080.07",600,"FP-16.01/RAL1015","16-FP.07",400,"P431/RAL1015",12443370,"внутри с/п 18 мм коричневый/белый","Фальшпереплет внутри с/п 18 мм коричневый/белый.",600,18,18,2961988,null,null,null,null,null,null,null,null,null,null,null,null,null,null,32,"Гарнитур нажимной раздельный бронза.",5000,null,null,null,null,null,null,null,null,null,null,null,null,null,null,null,null,null,null,null,null,null,null,null,null,null,null,null,null,null,null,null,null,null,null,null,null,null,"LFf","MACO",15,0,"Замок ПО","ПО-механизм DM15 фикс.",212124,1341,1590,600]
["Орех","Орех Т2","Орех Т2",1,0,1450,2701915,null,null,null,"6МФУ","Улучшеное мультифункциональное 6 мм.",1200,6,"6 LP HP NI 60/40",null,null,null,null,null,"6МФзак","Закаленное энергосберегающее 6 мм.",1900,6,"6 LP Prem Зак",null,null,null,null,null,"RAL1016",1200,"ROS5605.01/RAL1016",{"$f":"\"ROS0080.0\"&IF(AC19=2,1,IF(AC19=1,5,7))","v":"ROS0080.07"},600,"FP-16.01/RAL1016",{"$f":"\"16-FP.0\"&IF(AC19=2,1,IF(AC19=1,5,7))","v":"16-FP.07"},400,"P431/RAL1016",4518122,"внутри с/п 18 мм светлый дуб/белый","Фальшпереплет внутри с/п 18 мм светлый дуб/белый.",600,18,18,7187154,null,null,null,null,null,null,null,null,null,null,null,null,null,null,33,"Гарнитур нажимной раздельный серебро.",5000,null,null,null,null,null,null,null,null,null,null,null,null,null,null,null,null,null,null,null,null,null,null,null,null,null,null,null,null,null,null,null,null,null,null,null,null,null,"LFf","MACO",15,0,"Замок ПО","ПО-механизм DM15 фикс.",212126,1591,1700,700]
["Венге","Braun 8.17","Braun 8.17",1,0,1450,2961988,null,null,null,"6мат","Матовое 6 мм.",1200,6,"6 SatMat",null,null,null,null,null,"6пл112мкм","6 мм с пленкой 112 мкм прозрачной.",1850,6,"6 Lfloat 112 мкм/CM1",null,null,null,null,null,"RAL1017",1200,"ROS5605.01/RAL1017",{"$f":"\"ROS0080.0\"&IF(AC20=2,1,IF(AC20=1,5,7))","v":"ROS0080.07"},600,"FP-16.01/RAL1017",{"$f":"\"16-FP.0\"&IF(AC20=2,1,IF(AC20=1,5,7))","v":"16-FP.07"},400,"P431/RAL1017",5421044,"внутри с/п 18 мм темный дуб/белый","Фальшпереплет внутри с/п 18 мм темный дуб/белый.",600,18,18,2963785,null,null,null,null,null,null,null,null,null,null,null,null,null,null,34,"Гарнитур нажимной раздельный титан.",5000,null,null,null,null,null,null,null,null,null,null,null,null,null,null,null,null,null,null,null,null,null,null,null,null,null,null,null,null,null,null,null,null,null,null,null,null,null,"LFf","MACO",15,0,"Замок ПО","ПО-механизм DM15 фикс.",212128,1701,1950,1050]
["Палисандр","Палисандр","Палисандр",1,0,1450,1842999,null,null,null,"6МФсб","Мультифункциональное 6 мм серебро.",1150,6,"6 LH Sol Si",null,null,null,null,null,"6пл(А1)","6 мм с пленкой класс А1 прозрачной.",2460,6,"6 Lfloat P2A(A1)",null,null,null,null,null,"RAL1018",1200,"ROS5605.01/RAL1018","ROS0080.07",600,"FP-16.01/RAL1018","16-FP.07",400,"P431/RAL1018",3924211,"внутри с/п 18 мм золотой дуб/белый","Фальшпереплет внутри с/п 18 мм золотой дуб/белый.",600,18,18,2852090,null,null,null,null,null,null,null,null,null,null,null,null,null,null,35,"Гарнитур нажимной раздельный шампань.",50000,null,null,null,null,null,null,null,null,null,null,null,null,null,null,null,null,null,null,null,null,null,null,null,null,null,null,null,null,null,null,null,null,null,null,null,null,null,"LFf","MACO",15,0,"Замок ПО","ПО-механизм DM15 фикс.",212131,1951,2200,1050]
["Махагон","Палисандр","Махагон",1,0,1450,1646456,null,null,null,"6МФбр","Мультифункциональное 6 мм бронза.",1150,6,"6 LH Sol Br",null,null,null,null,null,"6пл(А2)","6 мм с пленкой класс А2 прозрачной.",3340,6,"6 Lfloat P3A(A2)",null,null,null,null,null,"RAL1019",1200,"ROS5605.01/RAL1019","ROS0080.07",600,"FP-16.01/RAL1019","16-FP.07",400,"P431/RAL1019",8230308,"внутри с/п 18 мм средний дуб/белый","Фальшпереплет внутри с/п 18 мм средний дуб/белый.",600,18,18,3101824,null,null,null,null,null,null,null,null,null,null,null,null,null,null,40,"Гарнитур нажимной сплошной с профильным цилиндром белый.",2500,null,null,null,null,null,null,null,null,null,null,null,null,null,null,null,null,null,null,null,null,null,null,null,null,null,null,null,null,null,null,null,null,null,null,null,null,null,"LFf","MACO",15,0,"Замок ПО","ПО-механизм DM15 фикс.",212134,2201,3000,1050]
["Natur","База","База",2,0,1450,15136253,null,null,null,"6МФср","Мультифункциональное 6 мм серое.",1150,6,"6 LH Sol Li Gr",null,null,null,null,null,"6пл(А3)","6 мм с пленкой класс А3 прозрачной.",4220,6,"6 Lfloat P4A(A3)",null,null,null,null,null,"RAL1020",1200,"ROS5605.01/RAL1020","ROS0080.07",600,"FP-16.01/RAL1020","16-FP.07",400,"P431/RAL1020",6591642,"внутри с/п 18 мм махагон/белый","Фальшпереплет внутри с/п 18 мм махагон/белый.",600,18,18,3225703,null,null,null,null,null,null,null,null,null,null,null,null,null,null,41,"Гарнитур нажимной сплошной с профильным цилиндром коричневый.",2500,null,null,null,null,null,null,null,null,null,null,null,null,null,null,null,null,null,null,null,null,null,null,null,null,null,null,null,null,null,null,null,null,null,"Lock","Flap","fix",null,"LFf","MACO",40,0,"Замок фикс DM40","ПО-механизм DM40 фикс.",206402,0,1950,1050]
["RAL1000","Белый","RAL1000",2,1,1550,9422284,null,null,null,"6Бр","Тонированное в массе 6 мм бронзовое.",1700,6,"6 Pl Br",null,null,null,null,null,"6пл","6 мм с декоративной пленкой.",2400,6,"6 Lfloat Дек пл",null,null,null,null,null,"RAL1021",1200,"ROS5605.01/RAL1021","ROS0080.07",600,"FP-16.01/RAL1021","16-FP.07",400,"P431/RAL1021",51694,"внутри с/п 26 мм белый","Фальшпереплет внутри с/п 26 мм белый.",720,26,26,16777215,null,null,null,null,null,null,null,null,null,null,null,null,null,null,42,"Гарнитур нажимной сплошной с профильным цилиндром бронза.",2500,null,null,null,null,null,null,null,null,null,null,null,null,null,null,null,null,null,null,null,null,null,null,null,null,null,null,null,null,null,null,null,null,null,null,null,null,null,"LFf","MACO",40,0,"Замок фикс DM40","ПО-механизм DM40 фикс.",205489,1951,3000,1050]
["RAL1001","Белый","RAL1001",2,1,1550,9092305,null,null,null,"6Ср","Тонированное в массе 6 мм серое.",1700,6,"6 Pl Grey",null,null,null,null,null,"3*3*1","Триплекс 3.3.1.",1900,6,"33.1",null,null,null,null,null,"RAL1023",1200,"ROS5605.01/RAL1023","ROS0080.07",600,"FP-16.01/RAL1023","16-FP.07",400,"P431/RAL1023",51952,"внутри с/п 26 мм золото","Фальшпереплет внутри с/п 26 мм золото.",2100,26,26,768759,null,null,null,null,null,null,null,null,null,null,null,null,null,null,43,"Гарнитур нажимной сплошной с профильным цилиндром серебро.",2500,null,null,null,null,null,null,null,null,null,null,null,null,null,null,null,null,null,null,null,null,null,null,null,null,null,null,null,null,null,null,null,null,null,"Lock","Flap","var",null,"LFv","MACO",15,0,"Замок ПО","ПО-механизм DM15 вариац.",201746,470,800,"Центр","212689-1"]
["RAL1002","Белый","RAL1002",2,1,1550,7583698,null,null,null,"6зак","Закаленное 6 мм.",1400,6,"6 Lfloat Зак",null,null,null,null,null,"8","Прозрачное М1 8 мм.",1100,8,"8 L Float",null,null,null,null,null,"RAL1024",1200,"ROS5605.01/RAL1024","ROS0080.07",600,"FP-16.01/RAL1024","16-FP.07",400,"P431/RAL1024",5283000,"внутри с/п 26 мм коричневый","Фальшпереплет внутри с/п 26 мм коричневый.",720,26,26,2961988,null,null,null,null,null,null,null,null,null,null,null,null,null,null,44,"Гарнитур нажимной сплошной с профильным цилиндром титан.",2500,null,null,null,null,null,null,null,null,null,null,null,null,null,null,null,null,null,null,null,null,null,null,null,null,null,null,null,null,null,null,null,null,null,null,null,null,null,"LFv","MACO",15,0,"Замок ПО","ПО-механизм DM15 вариац.",212156,801,1250,"Центр","212689-1"]
["RAL1003","Белый","RAL1003",2,1,1550,768759,null,null,null,"6МФзак","Закаленное мультифункциональное 6 мм.",1900,6,"6 LP HP NI 60/40 Зак",null,null,null,null,null,"8зак","Закаленное 8 мм.",2300,8,"8 L Float Зак",null,null,null,null,null,"RAL1027",1200,"ROS5605.01/RAL1027","ROS0080.07",600,"FP-16.01/RAL1027","16-FP.07",400,"P431/RAL1027",1412259,"внутри с/п 26 мм светлый дуб","Фальшпереплет внутри с/п 26 мм светлый дуб.",720,26,26,7187154,null,null,null,null,null,null,null,null,null,null,null,null,null,null,45,"Гарнитур нажимной сплошной с профильным цилиндром шампань.",50000,null,null,null,null,null,null,null,null,null,null,null,null,null,null,null,null,null,null,null,null,null,null,null,null,null,null,null,null,null,null,null,null,null,null,null,null,null,"LFv","MACO",15,0,"Замок ПО","ПО-механизм DM15 вариац.",212158,1251,1750,"Центр","212689-1"]
["RAL1004","Белый","RAL1004",2,1,1550,504034,null,null,null,"6пл112мкм","6 мм с пленкой 112 мкм прозрачной.",1850,6,"6 Lfloat 112 мкм/CM1",null,null,null,null,null,"8пл","8 мм с декоративной пленкой.",2800,8,"8 Lfloat Дек пл",null,null,null,null,null,"RAL1028",1200,"ROS5605.01/RAL1028","ROS0080.07",600,"FP-16.01/RAL1028","16-FP.07",400,"P431/RAL1028",44031,"внутри с/п 26 мм темный дуб","Фальшпереплет внутри с/п 26 мм темный дуб.",720,26,26,2963785,null,null,null,null,null,null,null,null,null,null,null,null,null,null,50,"Гарнитур нажимной сплошной с профильным цилиндром белый.",2500,null,null,null,null,null,null,null,null,null,null,null,null,null,null,null,null,null,null,null,null,null,null,null,null,null,null,null,null,null,null,null,null,null,null,null,null,null,"LFv","MACO",15,0,"Замок ПО","ПО-механизм DM15 вариац.",212160,1751,3000,"Центр","212688-1"]
["RAL1005","Белый","RAL1005",2,1,1550,303048,null,null,null,"6пл(А1)","6 мм с пленкой класс А1 прозрачной.",2460,6,"6 Lfloat P2A(A1)",null,null,null,null,null,"4*4*1","Триплекс 4.4.1.",2820,8,"44.1",null,null,null,null,null,"RAL1032",1200,"ROS5605.01/RAL1032","ROS0080.07",600,"FP-16.01/RAL1032","16-FP.07",400,"P431/RAL1032",1028829,"внутри с/п 26 мм золотой дуб","Фальшпереплет внутри с/п 26 мм золотой дуб.",720,26,26,2852090,null,null,null,null,null,null,null,null,null,null,null,null,null,null,51,"Гарнитур нажимной сплошной с профильным цилиндром коричневый.",2500,null,null,null,null,null,null,null,null,null,null,null,null,null,null,null,null,null,null,null,null,null,null,null,null,null,null,null,null,null,null,null,null,null,"Lock","Otk","var",null,"LOv","MACO",15,0,"Замок Пов. вар","Поворотный механизм DM15 вариац.",201746,470,800,"Центр","212686-1,212212-1"]
["RAL1006","Белый","RAL1006",2,1,1550,41441,null,null,null,"6пл(А2)","6 мм с пленкой класс А2 прозрачной.",3340,6,"6 Lfloat P3A(A2)",null,null,null,null,null,"4*4*2СТ","Триплекс стратофон 4.4.2.",4680,8,"44.2 Strfon",null,null,null,null,null,"RAL1033",1200,"ROS5605.01/RAL1033","ROS0080.07",600,"FP-16.01/RAL1033","16-FP.07",400,"P431/RAL1033",2206714,"внутри с/п 26 мм средний дуб","Фальшпереплет внутри с/п 26 мм средний дуб.",720,26,26,3101824,null,null,null,null,null,null,null,null,null,null,null,null,null,null,52,"Гарнитур нажимной сплошной с профильным цилиндром бронза.",2500,null,null,null,null,null,null,null,null,null,null,null,null,null,null,null,null,null,null,null,null,null,null,null,null,null,null,null,null,null,null,null,null,null,null,null,null,null,"LOv","MACO",15,0,"Замок Пов. вар","Поворотный механизм DM15 вариац.",212157,801,1250,"Центр","212686-1,212212-1"]
["RAL1007","Белый","RAL1007",2,1,1550,40167,null,null,null,"6пл(А3)","6 мм с пленкой класс А3 прозрачной.",4220,6,"6 Lfloat P4A(A3)",null,null,null,null,null,"10","Прозрачное М1 10 мм.",2000,10,"10 L Float",null,null,null,null,null,"RAL1034",1200,"ROS5605.01/RAL1034","ROS0080.07",600,"FP-16.01/RAL1034","16-FP.07",400,"P431/RAL1034",5680109,"внутри с/п 26 мм махагон","Фальшпереплет внутри с/п 26 мм махагон.",720,26,26,3225703,null,null,null,null,null,null,null,null,null,null,null,null,null,null,53,"Гарнитур нажимной сплошной с профильным цилиндром серебро.",2500,null,null,null,null,null,null,null,null,null,null,null,null,null,null,null,null,null,null,null,null,null,null,null,null,null,null,null,null,null,null,null,null,null,null,null,null,null,"LOv","MACO",15,0,"Замок Пов. вар","Поворотный механизм DM15 вариац.",212159,1251,1750,"Центр","212686-1,212212-1"]
["RAL1011","Белый","RAL1011",2,1,1550,5540527,null,null,null,"6пл","6 мм с декоративной пленкой.",2400,6,"6 Lfloat Дек пл",null,null,null,null,null,"10зак","Закаленное 10 мм.",3400,10,"10 L Float Зак",null,null,null,null,null,"RAL1037",1200,"ROS5605.01/RAL1037","ROS0080.07",600,"FP-16.01/RAL1037","16-FP.07",400,"P431/RAL1037",369390,"внутри с/п 26 мм коричневый/белый","Фальшпереплет внутри с/п 26 мм коричневый/белый.",720,26,26,2961988,null,null,null,null,null,null,null,null,null,null,null,null,null,null,54,"Гарнитур нажимной сплошной с профильным цилиндром титан.",2500,null,null,null,null,null,null,null,null,null,null,null,null,null,null,null,null,null,null,null,null,null,null,null,null,null,null,null,null,null,null,null,null,null,null,null,null,null,"LOv","MACO",15,0,"Замок Пов. вар","Поворотный механизм DM15 вариац.",212161,1751,3000,"Центр","212686-1,212212-1"]
["RAL1012","Белый","RAL1012",2,1,1550,2277593,null,null,null,"3*3*1","Триплекс 3.3.1.",1900,6,"33.1",null,null,null,null,null,"10пл","10 мм с декоративной пленкой.",3700,10,"10 Lfloat Дек пл",null,null,null,null,null,"RAL2000",1200,"ROS5605.01/RAL2000","ROS0080.07",600,"FP-16.01/RAL2000","16-FP.07",400,"P431/RAL2000",489949,"внутри с/п 26 мм светлый дуб/белый","Фальшпереплет внутри с/п 26 мм светлый дуб/белый.",720,26,26,7187154,null,null,null,null,null,null,null,null,null,null,null,null,null,null,55,"Гарнитур нажимной сплошной с профильным цилиндром шампань.",50000,null,null,null,null,null,null,null,null,null,null,null,null,null,null,null,null,null,null,null,null,null,null,null,null,null,null,null,null,null,null,null,null,null,"Lock","Flap","var",null,"LFv","MACO",40,0,"Замок вар DM40","ПО-механизм DM40 вариац.",205589,0,1250,"Центр","212688-1"]
["RAL1013","Белый","RAL1013",2,1,1550,13559273,null,null,null,"8","Прозрачное М1 8 мм.",1100,8,"8 L Float",null,null,null,null,null,null,null,null,null,null,null,null,null,null,null,"RAL2001",1200,"ROS5605.01/RAL2001","ROS0080.07",600,"FP-16.01/RAL2001","16-FP.07",400,"P431/RAL2001",2379454,"внутри с/п 26 мм темный дуб/белый","Фальшпереплет внутри с/п 26 мм темный дуб/белый.",720,26,26,3101824,null,null,null,null,null,null,null,null,null,null,null,null,null,null,60,"Гарнитур нажимной раздельный с профильным цилиндром белый.",5000,null,null,null,null,null,null,null,null,null,null,null,null,null,null,null,null,null,null,null,null,null,null,null,null,null,null,null,null,null,null,null,null,null,null,null,null,null,"LFv","MACO",40,0,"Замок вар DM40","ПО-механизм DM40 вариац.",205537,1251,1750,"Центр","212688-1"]
["RAL1014","Белый","RAL1014",2,1,1550,10473694,null,null,null,"8зак","Закаленное 8 мм.",2300,8,"8 L Float Зак",null,null,null,null,null,null,null,null,null,null,null,null,null,null,null,"RAL2002",1200,"ROS5605.01/RAL2002","ROS0080.07",600,"FP-16.01/RAL2002","16-FP.07",400,"P431/RAL2002",2570694,"внутри с/п 26 мм золотой дуб/белый","Фальшпереплет внутри с/п 26 мм золотой дуб/белый.",720,26,26,2852090,null,null,null,null,null,null,null,null,null,null,null,null,null,null,61,"Гарнитур нажимной раздельный с профильным цилиндром коричневый.",5000,null,null,null,null,null,null,null,null,null,null,null,null,null,null,null,null,null,null,null,null,null,null,null,null,null,null,null,null,null,null,null,null,null,null,null,null,null,"LFv","MACO",40,0,"Замок вар DM40","ПО-механизм DM40 вариац.",205538,1751,3000,"Центр","212688-1"]
["RAL1015","Белый","RAL1015",2,1,1550,12443370,null,null,null,"8пл","8 мм с декоративной пленкой.",2800,8,"8 Lfloat Дек пл",null,null,null,null,null,null,null,null,null,null,null,null,null,null,null,"RAL2003",1200,"ROS5605.01/RAL2003","ROS0080.07",600,"FP-16.01/RAL2003","16-FP.07",400,"P431/RAL2003",2852090,"внутри с/п 26 мм средний дуб/белый","Фальшпереплет внутри с/п 26 мм средний дуб/белый.",720,26,26,3101824,null,null,null,null,null,null,null,null,null,null,null,null,null,null,62,"Гарнитур нажимной раздельный с профильным цилиндром бронза.",5000,null,null,null,null,null,null,null,null,null,null,null,null,null,null,null,null,null,null,null,null,null,null,null,null,null,null,null,null,null,null,null,null,null,"Lock","Swing","var",null,"LSv","MACO",15,0,"Замок пов.","Запорный механизм DM15 вариац.",211989,300,500,"Центр"]
["RAL1016","Белый","RAL1016",2,1,1550,4518122,null,null,null,"4*4*1","Триплекс 4.4.1.",2820,8,"44.1",null,null,null,null,null,null,null,null,null,null,null,null,null,null,null,"RAL2004",1200,"ROS5605.01/RAL2004","ROS0080.07",600,"FP-16.01/RAL2004","16-FP.07",400,"P431/RAL2004",1203175,"внутри с/п 26 мм махагон/белый","Фальшпереплет внутри с/п 26 мм махагон/белый.",720,26,26,3225703,null,null,null,null,null,null,null,null,null,null,null,null,null,null,63,"Гарнитур нажимной раздельный с профильным цилиндром серебро.",5000,null,null,null,null,null,null,null,null,null,null,null,null,null,null,null,null,null,null,null,null,null,null,null,null,null,null,null,null,null,null,null,null,null,null,null,null,null,"LSv","MACO",15,0,"Замок пов.","Запорный механизм DM15 вариац.",211990,501,700,"Центр"]
["RAL1017","Белый","RAL1017",2,1,1550,5421044,null,null,null,"4*4*2СТ","Триплекс стратофон 4.4.2.",4680,8,"44.2 Strfon",null,null,null,null,null,null,null,null,null,null,null,null,null,null,null,"RAL2008",1200,"ROS5605.01/RAL2008",{"$f":"\"ROS0080.0\"&IF(AC38=2,1,IF(AC38=1,5,7))","v":"ROS0080.07"},600,"FP-16.01/RAL2008",{"$f":"\"16-FP.0\"&IF(AC38=2,1,IF(AC38=1,5,7))","v":"16-FP.07"},400,"P431/RAL2008",2913779,null,null,null,null,null,null,null,null,null,null,null,null,null,null,null,null,null,null,null,null,64,"Гарнитур нажимной раздельный с профильным цилиндром титан.",5000,null,null,null,null,null,null,null,null,null,null,null,null,null,null,null,null,null,null,null,null,null,null,null,null,null,null,null,null,null,null,null,null,null,null,null,null,null,"LSv","MACO",15,0,"Замок пов.","Запорный механизм DM15 вариац.",211991,701,1000,"Центр"]
["RAL1018","Белый","RAL1018",2,1,1550,3924211,null,null,null,"10","Прозрачное М1 10 мм.",2000,10,"10 L Float",null,null,null,null,null,null,null,null,null,null,null,null,null,null,null,"RAL2009",1200,"ROS5605.01/RAL2009","ROS0080.07",600,"FP-16.01/RAL2009","16-FP.07",400,"P431/RAL2009",87521,null,null,null,null,null,null,null,null,null,null,null,null,null,null,null,null,null,null,null,null,65,"Гарнитур нажимной раздельный с профильным цилиндром шампань.",50000,null,null,null,null,null,null,null,null,null,null,null,null,null,null,null,null,null,null,null,null,null,null,null,null,null,null,null,null,null,null,null,null,null,null,null,null,null,"LSv","MACO",15,0,"Замок пов.","Запорный механизм DM15 вариац.",211992,1001,1400,"Центр"]
["RAL1019","Белый","RAL1019",2,1,1550,8230308,null,null,null,"10зак","Закаленное 10 мм.",3400,10,"10 L Float Зак",null,null,null,null,null,null,null,null,null,null,null,null,null,null,null,"RAL2010",1200,"ROS5605.01/RAL2010","ROS0080.07",600,"FP-16.01/RAL2010","16-FP.07",400,"P431/RAL2010",3106260,null,null,null,null,null,null,null,null,null,null,null,null,null,null,null,null,null,null,null,null,110,"Ручка портальная белая.",5000,null,null,null,null,null,null,null,null,null,null,null,null,null,null,null,null,null,null,null,null,null,null,null,null,null,null,null,null,null,null,null,null,null,null,null,null,null,"LSv","MACO",15,0,"Замок пов.","Запорный механизм DM15 вариац.",211993,1401,1800,"Центр"]
["RAL1020","Белый","RAL1020",2,1,1550,6591642,null,null,null,"10пл","10 мм с декоративной пленкой.",3700,10,"10 Lfloat Дек пл",null,null,null,null,null,null,null,null,null,null,null,null,null,null,null,"RAL2011",1200,"ROS5605.01/RAL2011","ROS0080.07",600,"FP-16.01/RAL2011","16-FP.07",400,"P431/RAL2011",2456812,null,null,null,null,null,null,null,null,null,null,null,null,null,null,null,null,null,null,null,null,111,"Ручка портальная коричневая.",5000,null,null,null,null,null,null,null,null,null,null,null,null,null,null,null,null,null,null,null,null,null,null,null,null,null,null,null,null,null,null,null,null,null,null,null,null,null,"LSv","MACO",15,0,"Замок пов.","Запорный механизм DM15 вариац.",211994,1801,3000,"Центр"]
["RAL1021","Белый","RAL1021",2,1,1550,51694,null,null,null,null,null,null,null,null,null,null,null,null,null,null,null,null,null,null,null,null,null,null,null,"RAL2012",1200,"ROS5605.01/RAL2012","ROS0080.07",600,"FP-16.01/RAL2012","16-FP.07",400,"P431/RAL2012",5270235,null,null,null,null,null,null,null,null,null,null,null,null,null,null,null,null,null,null,null,null,112,"Ручка портальная бронза.",5000,null,null,null,null,null,null,null,null,null,null,null,null,null,null,null,null,null,null,null,null,null,null,null,null,null,null,null,null,null,null,null,null,null,"Angular","Flap",null,null,"AF","MACO",0,0,"Угловик","Угловой переключатель с 1 цапфой",211974,360,3000]
["RAL1023","Белый","RAL1023",2,1,1550,51952,null,null,null,null,null,null,null,null,null,null,null,null,null,null,null,null,null,null,null,null,null,null,null,"RAL3000",1200,"ROS5605.01/RAL3000","ROS0080.07",600,"FP-16.01/RAL3000","16-FP.07",400,"P431/RAL3000",2368939,null,null,null,null,null,null,null,null,null,null,null,null,null,null,null,null,null,null,null,null,113,"Ручка портальная серебро.",5000,null,null,null,null,null,null,null,null,null,null,null,null,null,null,null,null,null,null,null,null,null,null,null,null,null,null,null,null,null,null,null,null,null,"Angular","Flap",null,null,"AF","MACO",0,0,"Угловик кор.","Угловой переключатель короткий с 1 цапфой",211975,275,359]
["RAL1024","Белый","RAL1024",2,1,1550,5283000,null,null,null,null,null,null,null,null,null,null,null,null,null,null,null,null,null,null,null,null,null,null,null,"RAL3001",1200,"ROS5605.01/RAL3001","ROS0080.07",600,"FP-16.01/RAL3001","16-FP.07",400,"P431/RAL3001",2630048,null,null,null,null,null,null,null,null,null,null,null,null,null,null,null,null,null,null,null,null,114,"Ручка портальная титан.",5000,null,null,null,null,null,null,null,null,null,null,null,null,null,null,null,null,null,null,null,null,null,null,null,null,null,null,null,null,null,null,null,null,null,"Angular","Swing",null,null,"AS","MACO",0,0,"Шпингалет","Концевой запор с огр. 90°",212686,0,3000]
["RAL1027","Белый","RAL1027",2,1,1550,1412259,null,null,null,null,null,null,null,null,null,null,null,null,null,null,null,null,null,null,null,null,null,null,null,"RAL3002",1200,"ROS5605.01/RAL3002","ROS0080.07",600,"FP-16.01/RAL3002","16-FP.07",400,"P431/RAL3002",2827169,null,null,null,null,null,null,null,null,null,null,null,null,null,null,null,null,null,null,null,null,115,"Ручка портальная шампань.",5000,null,null,null,null,null,null,null,null,null,null,null,null,null,null,null,null,null,null,null,null,null,null,null,null,null,null,null,null,null,null,null,null,null,"Angular","Swing","down",null,"Asd","MACO",0,0,"Шпингалет","Концевой запор 180°",212212,0,3000]
["RAL1028","Белый","RAL1028",2,1,1550,44031,null,null,null,null,null,null,null,null,null,null,null,null,null,null,null,null,null,null,null,null,null,null,null,"RAL3003",1200,"ROS5605.01/RAL3003","ROS0080.07",600,"FP-16.01/RAL3003","16-FP.07",400,"P431/RAL3003",2891149,null,null,null,null,null,null,null,null,null,null,null,null,null,null,null,null,null,null,null,null,120,"Ручка портальная с длинным штифтом белая.",6000,null,null,null,null,null,null,null,null,null,null,null,null,null,null,null,null,null,null,null,null,null,null,null,null,null,null,null,null,null,null,null,null,null,"Angular","Flap","down",null,"AFd","MACO",0,0,"Шпингалет","Откидной запор для механизмов ок.",212689,0,1750]
["RAL1032","Белый","RAL1032",2,1,1550,1028829,null,null,null,null,null,null,null,null,null,null,null,null,null,null,null,null,null,null,null,null,null,null,null,"RAL3004",1200,"ROS5605.01/RAL3004","ROS0080.07",600,"FP-16.01/RAL3004","16-FP.07",400,"P431/RAL3004",2695024,null,null,null,null,null,null,null,null,null,null,null,null,null,null,null,null,null,null,null,null,121,"Ручка портальная с длинным штифтом коричневая.",6000,null,null,null,null,null,null,null,null,null,null,null,null,null,null,null,null,null,null,null,null,null,null,null,null,null,null,null,null,null,null,null,null,null,null,null,null,null,"AFd","MACO",0,0,"Шпингалет","Откидной запор для механизмов дв.",212688,1751,3000]
["RAL1033","Белый","RAL1033",2,1,1550,2206714,null,null,null,null,null,null,null,null,null,null,null,null,null,null,null,null,null,null,null,null,null,null,null,"RAL3005",1200,"ROS5605.01/RAL3005","ROS0080.07",600,"FP-16.01/RAL3005","16-FP.07",400,"P431/RAL3005",2629726,null,null,null,null,null,null,null,null,null,null,null,null,null,null,null,null,null,null,null,null,122,"Ручка портальная с длинным штифтом бронза.",6000,null,null,null,null,null,null,null,null,null,null,null,null,null,null,null,null,null,null,null,null,null,null,null,null,null,null,null,null,null,null,null,null,null,"MiddleLock",null,null,null,"M","MACO",0,0,"Ср. запор","Средний запор",228398,480,800]
["RAL1034","Белый","RAL1034",2,1,1550,5680109,null,null,null,null,null,null,null,null,null,null,null,null,null,null,null,null,null,null,null,null,null,null,null,"RAL3007",1200,"ROS5605.01/RAL3007","ROS0080.07",600,"FP-16.01/RAL3007","16-FP.07",400,"P431/RAL3007",2433600,null,null,null,null,null,null,null,null,null,null,null,null,null,null,null,null,null,null,null,null,123,"Ручка портальная с длинным штифтом серебро.",6000,null,null,null,null,null,null,null,null,null,null,null,null,null,null,null,null,null,null,null,null,null,null,null,null,null,null,null,null,null,null,null,null,null,null,null,null,null,"M","MACO",0,0,"Ср. запор","Средний запор",211924,801,1280]
["RAL1037","Белый","RAL1037",2,1,1550,369390,null,null,null,null,null,null,null,null,null,null,null,null,null,null,null,null,null,null,null,null,null,null,null,"RAL3009",1200,"ROS5605.01/RAL3009","ROS0080.07",600,"FP-16.01/RAL3009","16-FP.07",400,"P431/RAL3009",3225456,null,null,null,null,null,null,null,null,null,null,null,null,null,null,null,null,null,null,null,null,124,"Ручка портальная с длинным штифтом титан.",6000,null,null,null,null,null,null,null,null,null,null,null,null,null,null,null,null,null,null,null,null,null,null,null,null,null,null,null,null,null,null,null,null,null,null,null,null,null,"M","MACO",0,0,"Ср. запор","Средний запор",228399,1281,1500]
["RAL2000","Белый","RAL2000",1,1,1550,489949,null,null,null,null,null,null,null,null,null,null,null,null,null,null,null,null,null,null,null,null,null,null,null,"RAL3011",1200,"ROS5605.01/RAL3011","ROS0080.07",600,"FP-16.01/RAL3011","16-FP.07",400,"P431/RAL3011",2894206,null,null,null,null,null,null,null,null,null,null,null,null,null,null,null,null,null,null,null,null,125,"Ручка портальная с длинным штифтом шампань.",6000,null,null,null,null,null,null,null,null,null,null,null,null,null,null,null,null,null,null,null,null,null,null,null,null,null,null,null,null,null,null,null,null,null,null,null,null,null,"M","MACO",0,0,"Ср. запор","Средний запор",228400,1501,2000]
["RAL2001","Белый","RAL2001",1,1,1550,2379454,null,null,null,null,null,null,null,null,null,null,null,null,null,null,null,null,null,null,null,null,null,null,null,"RAL3012",1200,"ROS5605.01/RAL3012","ROS0080.07",600,"FP-16.01/RAL3012","16-FP.07",400,"P431/RAL3012",7572939,null,null,null,null,null,null,null,null,null,null,null,null,null,null,null,null,null,null,null,null,130,"Гарнитур портальный раздельный белый.",10000,null,null,null,null,null,null,null,null,null,null,null,null,null,null,null,null,null,null,null,null,null,null,null,null,null,null,null,null,null,null,null,null,null,null,null,null,null,"M","MACO",0,0,"Ср. запор","Средний запор",228402,2001,2200]
["RAL2002","Белый","RAL2002",1,1,1550,2570694,null,null,null,null,null,null,null,null,null,null,null,null,null,null,null,null,null,null,null,null,null,null,null,"RAL3013",1200,"ROS5605.01/RAL3013","ROS0080.07",600,"FP-16.01/RAL3013","16-FP.07",400,"P431/RAL3013",3027612,null,null,null,null,null,null,null,null,null,null,null,null,null,null,null,null,null,null,null,null,131,"Гарнитур портальный раздельный коричневый.",10000,null,null,null,null,null,null,null,null,null,null,null,null,null,null,null,null,null,null,null,null,null,null,null,null,null,null,null,null,null,null,null,null,null,null,null,null,null,"M","MACO",0,0,"Ср. запор","Средний запор",228404,2201,3000]
["RAL2003","Белый","RAL2003",1,1,1550,2852090,null,null,null,null,null,null,null,null,null,null,null,null,null,null,null,null,null,null,null,null,null,null,null,"RAL3014",1200,"ROS5605.01/RAL3014","ROS0080.07",600,"FP-16.01/RAL3014","16-FP.07",400,"P431/RAL3014",7959764,null,null,null,null,null,null,null,null,null,null,null,null,null,null,null,null,null,null,null,null,132,"Гарнитур портальный раздельный бронза.",10000,null,null,null,null,null,null,null,null,null,null,null,null,null,null,null,null,null,null,null,null,null,null,null,null,null,null,null,null,null,null,null,null,null,"Scissors",null,null,null,"S","MACO",0,0,"Ножницы","Петлевые ножницы",211694,220,400]
["RAL2004","Белый","RAL2004",1,1,1550,1203175,null,null,null,null,null,null,null,null,null,null,null,null,null,null,null,null,null,null,null,null,null,null,null,"RAL3015",1200,"ROS5605.01/RAL3015","ROS0080.07",600,"FP-16.01/RAL3015","16-FP.07",400,"P431/RAL3015",11380449,null,null,null,null,null,null,null,null,null,null,null,null,null,null,null,null,null,null,null,null,133,"Гарнитур портальный раздельный серебро.",10000,null,null,null,null,null,null,null,null,null,null,null,null,null,null,null,null,null,null,null,null,null,null,null,null,null,null,null,null,null,null,null,null,null,null,null,null,null,"S","MACO",0,0,"Ножницы","Петлевые ножницы",211695,401,600]
["RAL2008","Белый","RAL2008",1,1,1550,2913779,null,null,null,null,null,null,null,null,null,null,null,null,null,null,null,null,null,null,null,null,null,null,null,"RAL3016",1200,"ROS5605.01/RAL3016","ROS0080.07",600,"FP-16.01/RAL3016","16-FP.07",400,"P431/RAL3016",3424428,null,null,null,null,null,null,null,null,null,null,null,null,null,null,null,null,null,null,null,null,134,"Гарнитур портальный раздельный титан.",10000,null,null,null,null,null,null,null,null,null,null,null,null,null,null,null,null,null,null,null,null,null,null,null,null,null,null,null,null,null,null,null,null,null,null,null,null,null,"S","MACO",0,0,"Ножницы","Петлевые ножницы",211696,601,800]
["RAL2009","Белый","RAL2009",1,1,1550,87521,null,null,null,null,null,null,null,null,null,null,null,null,null,null,null,null,null,null,null,null,null,null,null,"RAL3017",1200,"ROS5605.01/RAL3017","ROS0080.07",600,"FP-16.01/RAL3017","16-FP.07",400,"P431/RAL3017",6247635,null,null,null,null,null,null,null,null,null,null,null,null,null,null,null,null,null,null,null,null,135,"Гарнитур портальный раздельный шампань.",10000,null,null,null,null,null,null,null,null,null,null,null,null,null,null,null,null,null,null,null,null,null,null,null,null,null,null,null,null,null,null,null,null,null,null,null,null,null,"S","MACO",0,0,"Ножницы","Петлевые ножницы",211698,801,1050]
["RAL2010","Белый","RAL2010",1,1,1550,3106260,null,null,null,null,null,null,null,null,null,null,null,null,null,null,null,null,null,null,null,null,null,null,null,"RAL3018",1200,"ROS5605.01/RAL3018","ROS0080.07",600,"FP-16.01/RAL3018","16-FP.07",400,"P431/RAL3018",5390801,null,null,null,null,null,null,null,null,null,null,null,null,null,null,null,null,null,null,null,null,140,"Гарнитур портальный раздельный с профильным цилиндром белый.",10000,null,null,null,null,null,null,null,null,null,null,null,null,null,null,null,null,null,null,null,null,null,null,null,null,null,null,null,null,null,null,null,null,null,null,null,null,null,"S","MACO",0,0,"Ножницы","Петлевые ножницы",211699,1051,1300]
["RAL2011","Белый","RAL2011",1,1,1550,2456812,null,null,null,null,null,null,null,null,null,null,null,null,null,null,null,null,null,null,null,null,null,null,null,"RAL3020",1200,"ROS5605.01/RAL3020","ROS0080.07",600,"FP-16.01/RAL3020","16-FP.07",400,"P431/RAL3020",1839809,null,null,null,null,null,null,null,null,null,null,null,null,null,null,null,null,null,null,null,null,141,"Гарнитур портальный раздельный с профильным цилиндром коричневый.",10000,null,null,null,null,null,null,null,null,null,null,null,null,null,null,null,null,null,null,null,null,null,null,null,null,null,null,null,null,null,null,null,null,null,"Scissors","Micro","Left",null,"SML","MACO",0,0,"Ножницы микро L","Петлевые ножницы микр. лев.",211674,220,400]
["RAL2012","Белый","RAL2012",1,1,1550,5270235,null,null,null,null,null,null,null,null,null,null,null,null,null,null,null,null,null,null,null,null,null,null,null,"RAL3022",1200,"ROS5605.01/RAL3022","ROS0080.07",600,"FP-16.01/RAL3022","16-FP.07",400,"P431/RAL3022",5664213,null,null,null,null,null,null,null,null,null,null,null,null,null,null,null,null,null,null,null,null,142,"Гарнитур портальный раздельный с профильным цилиндром бронза.",10000,null,null,null,null,null,null,null,null,null,null,null,null,null,null,null,null,null,null,null,null,null,null,null,null,null,null,null,null,null,null,null,null,null,null,null,null,null,"SML","MACO",0,0,"Ножницы микро L","Петлевые ножницы микр. лев.",211676,401,600]
["RAL3000","Белый","RAL3000",1,1,1550,2368939,null,null,null,null,null,null,null,null,null,null,null,null,null,null,null,null,null,null,null,null,null,null,null,"RAL3027",1200,"ROS5605.01/RAL3027","ROS0080.07",600,"FP-16.01/RAL3027","16-FP.07",400,"P431/RAL3027",4268212,null,null,null,null,null,null,null,null,null,null,null,null,null,null,null,null,null,null,null,null,143,"Гарнитур портальный раздельный с профильным цилиндром серебро.",10000,null,null,null,null,null,null,null,null,null,null,null,null,null,null,null,null,null,null,null,null,null,null,null,null,null,null,null,null,null,null,null,null,null,null,null,null,null,"SML","MACO",0,0,"Ножницы микро L","Петлевые ножницы микр. лев.",211678,601,800]
["RAL3001","Белый","RAL3001",1,1,1550,2630048,null,null,null,null,null,null,null,null,null,null,null,null,null,null,null,null,null,null,null,null,null,null,null,"RAL3028",1200,"ROS5605.01/RAL3028","ROS0080.07",600,"FP-16.01/RAL3028","16-FP.07",400,"P431/RAL3028",3421131,null,null,null,null,null,null,null,null,null,null,null,null,null,null,null,null,null,null,null,null,144,"Гарнитур портальный раздельный с профильным цилиндром титан.",10000,null,null,null,null,null,null,null,null,null,null,null,null,null,null,null,null,null,null,null,null,null,null,null,null,null,null,null,null,null,null,null,null,null,null,null,null,null,"SML","MACO",0,0,"Ножницы микро L","Петлевые ножницы микр. лев.",211682,801,1050]
["RAL3002","Белый","RAL3002",1,1,1550,2827169,null,null,null,null,null,null,null,null,null,null,null,null,null,null,null,null,null,null,null,null,null,null,null,"RAL3031",1200,"ROS5605.01/RAL3031","ROS0080.07",600,"FP-16.01/RAL3031","16-FP.07",400,"P431/RAL3031",3879596,null,null,null,null,null,null,null,null,null,null,null,null,null,null,null,null,null,null,null,null,145,"Гарнитур портальный раздельный с профильным цилиндром шампань.",10000,null,null,null,null,null,null,null,null,null,null,null,null,null,null,null,null,null,null,null,null,null,null,null,null,null,null,null,null,null,null,null,null,null,null,null,null,null,"SML","MACO",0,0,"Ножницы микро L","Петлевые ножницы микр. лев.",211684,1051,1300]
["RAL3003","Белый","RAL3003",1,1,1550,2891149,null,null,null,null,null,null,null,null,null,null,null,null,null,null,null,null,null,null,null,null,null,null,null,"RAL4001",1200,"ROS5605.01/RAL4001","ROS0080.07",600,"FP-16.01/RAL4001","16-FP.07",400,"P431/RAL4001",8608394,null,null,null,null,null,null,null,null,null,null,null,null,null,null,null,null,null,null,null,null,150,"Гарнитур портальный раздельный с профильным цилиндром белый.",10000,null,null,null,null,null,null,null,null,null,null,null,null,null,null,null,null,null,null,null,null,null,null,null,null,null,null,null,null,null,null,null,null,null,"Scissors","Micro","Right",null,"SMR","MACO",0,0,"Ножницы микро R","Петлевые ножницы микр. прав.",211673,220,400]
["RAL3004","Белый","RAL3004",1,1,1550,2695024,null,null,null,null,null,null,null,null,null,null,null,null,null,null,null,null,null,null,null,null,null,null,null,"RAL4002",1200,"ROS5605.01/RAL4002","ROS0080.07",600,"FP-16.01/RAL4002","16-FP.07",400,"P431/RAL4002",5258643,null,null,null,null,null,null,null,null,null,null,null,null,null,null,null,null,null,null,null,null,151,"Гарнитур портальный раздельный с профильным цилиндром коричневый.",10000,null,null,null,null,null,null,null,null,null,null,null,null,null,null,null,null,null,null,null,null,null,null,null,null,null,null,null,null,null,null,null,null,null,null,null,null,null,"SMR","MACO",0,0,"Ножницы микро R","Петлевые ножницы микр. прав.",211675,401,600]
["RAL3005","Белый","RAL3005",1,1,1550,2629726,null,null,null,null,null,null,null,null,null,null,null,null,null,null,null,null,null,null,null,null,null,null,null,"RAL4003",1200,"ROS5605.01/RAL4003","ROS0080.07",600,"FP-16.01/RAL4003","16-FP.07",400,"P431/RAL4003",9395153,null,null,null,null,null,null,null,null,null,null,null,null,null,null,null,null,null,null,null,null,152,"Гарнитур портальный раздельный с профильным цилиндром бронза.",10000,null,null,null,null,null,null,null,null,null,null,null,null,null,null,null,null,null,null,null,null,null,null,null,null,null,null,null,null,null,null,null,null,null,null,null,null,null,"SMR","MACO",0,0,"Ножницы микро R","Петлевые ножницы микр. прав.",211677,601,800]
["RAL3007","Белый","RAL3007",1,1,1550,2433600,null,null,null,null,null,null,null,null,null,null,null,null,null,null,null,null,null,null,null,null,null,null,null,"RAL4004",1200,"ROS5605.01/RAL4004","ROS0080.07",600,"FP-16.01/RAL4004","16-FP.07",400,"P431/RAL4004",3741289,null,null,null,null,null,null,null,null,null,null,null,null,null,null,null,null,null,null,null,null,153,"Гарнитур портальный раздельный с профильным цилиндром серебро.",10000,null,null,null,null,null,null,null,null,null,null,null,null,null,null,null,null,null,null,null,null,null,null,null,null,null,null,null,null,null,null,null,null,null,null,null,null,null,"SMR","MACO",0,0,"Ножницы микро R","Петлевые ножницы микр. прав.",211681,801,1050]
["RAL3009","Белый","RAL3009",1,1,1550,3225456,null,null,null,null,null,null,null,null,null,null,null,null,null,null,null,null,null,null,null,null,null,null,null,"RAL4005",1200,"ROS5605.01/RAL4005","ROS0080.07",600,"FP-16.01/RAL4005","16-FP.07",400,"P431/RAL4005",10314627,null,null,null,null,null,null,null,null,null,null,null,null,null,null,null,null,null,null,null,null,154,"Гарнитур портальный раздельный с профильным цилиндром титан.",10000,null,null,null,null,null,null,null,null,null,null,null,null,null,null,null,null,null,null,null,null,null,null,null,null,null,null,null,null,null,null,null,null,null,null,null,null,null,"SMR","MACO",0,0,"Ножницы микро R","Петлевые ножницы микр. прав.",211683,1051,1300]
["RAL3011","Белый","RAL3011",1,1,1550,2894206,null,null,null,null,null,null,null,null,null,null,null,null,null,null,null,null,null,null,null,null,null,null,null,"RAL4006",1200,"ROS5605.01/RAL4006","ROS0080.07",600,"FP-16.01/RAL4006","16-FP.07",400,"P431/RAL4006",7480729,null,null,null,null,null,null,null,null,null,null,null,null,null,null,null,null,null,null,null,null,155,"Гарнитур портальный раздельный с профильным цилиндром шампань.",10000,null,null,null,null,null,null,null,null,null,null,null,null,null,null,null,null,null,null,null,null,null,null,null,null,null,null,null,null,null,null,null,null,null,"Scissors","Otk",null,null,"SO","MACO",0,0,"Откидные ножницы","Откидные ножницы",209723,0,3000]
["RAL3012","Белый","RAL3012",2,1,1550,7572939,null,null,null,null,null,null,null,null,null,null,null,null,null,null,null,null,null,null,null,null,null,null,null,"RAL4007",1200,"ROS5605.01/RAL4007",{"$f":"\"ROS0080.0\"&IF(AC70=2,1,IF(AC70=1,5,7))","v":"ROS0080.07"},600,"FP-16.01/RAL4007",{"$f":"\"16-FP.0\"&IF(AC70=2,1,IF(AC70=1,5,7))","v":"16-FP.07"},400,"P431/RAL4007",3874890,null,null,null,null,null,null,null,null,null,null,null,null,null,null,null,null,null,null,null,null,160,"Гарнитур портальный раздельный с профильным цилиндром белый.",10000,null,null,null,null,null,null,null,null,null,null,null,null,null,null,null,null,null,null,null,null,null,null,null,null,null,null,null,null,null,null,null,null,null,"Hinge","Up","Swing",null,"HUS","MACO",0,0,"Петля пов","Поворотная петля",52704,0,0]
["RAL3013","Белый","RAL3013",1,1,1550,3027612,null,null,null,null,null,null,null,null,null,null,null,null,null,null,null,null,null,null,null,null,null,null,null,"RAL4008",1200,{"$f":"\"ROS5605.01/\"&AE70","v":"ROS5605.01/RAL4008"},"ROS0080.07",600,{"$f":"\"FP-16.01/\"&AE70","v":"FP-16.01/RAL4008"},"16-FP.07",400,{"$f":"\"P431/\"&AE70","v":"P431/RAL4008"},8668816,null,null,null,null,null,null,null,null,null,null,null,null,null,null,null,null,null,null,null,null,161,"Гарнитур портальный раздельный с профильным цилиндром коричневый.",10000,null,null,null,null,null,null,null,null,null,null,null,null,null,null,null,null,null,null,null,null,null,null,null,null,null,null,null,null,null,null,null,null,null,"Hinge","Fan",null,null,"HF","MACO",0,0,"Петля фрам","Откидная петля",52321,0,0]
["RAL3014","Белый","RAL3014",2,1,1550,7959764,null,null,null,null,null,null,null,null,null,null,null,null,null,null,null,null,null,null,null,null,null,null,null,"RAL4009",1200,"ROS5605.01/RAL4009","ROS0080.07",600,"FP-16.01/RAL4009","16-FP.07",400,"P431/RAL4009",9800099,null,null,null,null,null,null,null,null,null,null,null,null,null,null,null,null,null,null,null,null,162,"Гарнитур портальный раздельный с профильным цилиндром бронза.",10000,null,null,null,null,null,null,null,null,null,null,null,null,null,null,null,null,null,null,null,null,null,null,null,null,null,null,null,null,null,null,null,null,null,"Hinge","Up","Pict",null,"HUP","MACO",0,9,"Петля верх 9","Верхняя петля на створке 9-е смещение",202534,0,0]
["RAL3015","Белый","RAL3015",2,1,1550,11380449,null,null,null,null,null,null,null,null,null,null,null,null,null,null,null,null,null,null,null,null,null,null,null,"RAL4010",1200,"ROS5605.01/RAL4010","ROS0080.07",600,"FP-16.01/RAL4010","16-FP.07",400,"P431/RAL4010",7878342,null,null,null,null,null,null,null,null,null,null,null,null,null,null,null,null,null,null,null,null,163,"Гарнитур портальный раздельный с профильным цилиндром серебро.",10000,null,null,null,null,null,null,null,null,null,null,null,null,null,null,null,null,null,null,null,null,null,null,null,null,null,null,null,null,null,null,null,null,null,null,null,null,null,"HUP","MACO",0,13,"Петля верх 13","Верхняя петля на створке 13-е смещение",202535,0,0]
["RAL3016","Белый","RAL3016",1,1,1550,3424428,null,null,null,null,null,null,null,null,null,null,null,null,null,null,null,null,null,null,null,null,null,null,null,"RAL5000",1200,"ROS5605.01/RAL5000","ROS0080.07",600,"FP-16.01/RAL5000","16-FP.07",400,"P431/RAL5000",7359544,null,null,null,null,null,null,null,null,null,null,null,null,null,null,null,null,null,null,null,null,164,"Гарнитур портальный раздельный с профильным цилиндром титан.",10000,null,null,null,null,null,null,null,null,null,null,null,null,null,null,null,null,null,null,null,null,null,null,null,null,null,null,null,null,null,null,null,null,null,"Hinge","Up","Box",null,"HUB","MACO",0,0,"Петля верх","Верхняя петля на раме",202543,0,0]
["RAL3017","Белый","RAL3017",1,1,1550,6247635,null,null,null,null,null,null,null,null,null,null,null,null,null,null,null,null,null,null,null,null,null,null,null,"RAL5001",1200,"ROS5605.01/RAL5001","ROS0080.07",600,"FP-16.01/RAL5001","16-FP.07",400,"P431/RAL5001",6571807,null,null,null,null,null,null,null,null,null,null,null,null,null,null,null,null,null,null,null,null,165,"Гарнитур портальный раздельный с профильным цилиндром шампань.",10000,null,0,null,null,null,null,null,null,null,null,null,null,null,null,null,null,null,null,null,null,null,null,null,null,null,null,null,null,null,null,null,null,null,"Hinge","Down","Box","Left","HDBL","MACO",0,0,"Петля низ лев","Нижняя петля на раме лев.",52704,0,0]
["RAL3018","Белый","RAL3018",1,1,1550,5390801,null,null,null,null,null,null,null,null,null,null,null,null,null,null,null,null,null,null,null,null,null,null,null,"RAL5002",1200,"ROS5605.01/RAL5002","ROS0080.07",600,"FP-16.01/RAL5002","16-FP.07",400,"P431/RAL5002",8137771,null,null,null,null,null,null,null,null,null,null,null,null,null,null,null,null,null,null,null,null,null,null,null,null,null,null,null,null,null,null,null,null,null,null,null,null,null,null,null,null,null,null,null,null,null,null,null,null,null,null,null,null,null,null,null,null,"Hinge","Down","Box","Right","HDBR","MACO",0,0,"Петля низ прав","Нижняя петля на раме прав.",52703,0,0]
["RAL3020","Белый","RAL3020",1,1,1550,1839809,null,null,null,null,null,null,null,null,null,null,null,null,null,null,null,null,null,null,null,null,null,null,null,"RAL5003",1200,"ROS5605.01/RAL5003","ROS0080.07",600,"FP-16.01/RAL5003","16-FP.07",400,"P431/RAL5003",5650218,null,null,null,null,null,null,null,null,null,null,null,null,null,null,null,null,null,null,null,null,null,null,null,null,null,null,null,null,null,null,null,null,null,null,null,null,null,null,null,null,null,null,null,null,null,null,null,null,null,null,null,null,null,null,null,null,"Hinge","Down","Pict","Left","HDPL","MACO",0,9,"Петля низ лев","Нижняя петля на створке лев.",52707,0,0]
["RAL3022","Белый","RAL3022",1,1,1550,5664213,null,null,null,null,null,null,null,null,null,null,null,null,null,null,null,null,null,null,null,null,null,null,null,"RAL5004",1200,"ROS5605.01/RAL5004","ROS0080.07",600,"FP-16.01/RAL5004","16-FP.07",400,"P431/RAL5004",2760477,null,null,null,null,null,null,null,null,null,null,null,null,null,null,null,null,null,null,null,null,null,null,null,null,null,null,null,null,null,null,null,null,null,null,null,null,null,null,null,null,null,null,null,null,null,null,null,null,null,null,null,null,null,null,null,null,"Hinge","Down","Pict","Right","HDPR","MACO",0,9,"Петля низ прав","Нижняя петля на створке прав.",52706,0,0]
["RAL3027","Белый","RAL3027",1,1,1550,4268212,null,null,null,null,null,null,null,null,null,null,null,null,null,null,null,null,null,null,null,null,null,null,null,"RAL5005",1200,"ROS5605.01/RAL5005","ROS0080.07",600,"FP-16.01/RAL5005","16-FP.07",400,"P431/RAL5005",8996885,null,null,null,null,null,null,null,null,null,null,null,null,null,null,null,null,null,null,null,null,null,null,null,null,null,null,null,null,null,null,null,null,null,null,null,null,null,null,null,null,null,null,null,null,null,null,null,null,null,null,null,null,null,null,null,null,"Hinge","Down","Pict","Left","HDPL","MACO",0,13,"Петля низ лев","Нижняя петля на створке лев.",208889,0,0]
["RAL3028","Белый","RAL3028",1,1,1550,3421131,null,null,null,null,null,null,null,null,null,null,null,null,null,null,null,null,null,null,null,null,null,null,null,"RAL5007",1200,"ROS5605.01/RAL5007","ROS0080.07",600,"FP-16.01/RAL5007","16-FP.07",400,"P431/RAL5007",9267009,null,null,null,null,null,null,null,null,null,null,null,null,null,null,null,null,null,null,null,null,null,null,null,null,null,null,null,null,null,null,null,null,null,null,null,null,null,null,null,null,null,null,null,null,null,null,null,null,null,null,null,null,null,null,null,null,"Hinge","Down","Pict","Right","HDPR","MACO",0,13,"Петля низ прав","Нижняя петля на створке прав.",208888,0,0]
["RAL3031","Белый","RAL3031",1,1,1550,3879596,null,null,null,null,null,null,null,null,null,null,null,null,null,null,null,null,null,null,null,null,null,null,null,"RAL5008",1200,"ROS5605.01/RAL5008","ROS0080.07",600,"FP-16.01/RAL5008","16-FP.07",400,"P431/RAL5008",4734001,null,null,null,null,null,null,null,null,null,null,null,null,null,null,null,null,null,null,null,null,null,null,null,null,null,null,null,null,null,null,null,null,null,null,null,null,null,null,null,null,null,null,null,null,null,null,null,null,null,null,null,null,null,null,null,null,"Hinge","BAKA",null,null,"HBAKA","BAKA",0,0,"Петля BAKA","Петля BAKA (комплект 3 шт)","BAKA",0,0]
["RAL4001","Белый","RAL4001",1,1,1550,8608394,null,null,null,null,null,null,null,null,null,null,null,null,null,null,null,null,null,null,null,null,null,null,null,"RAL5009",1200,"ROS5605.01/RAL5009","ROS0080.07",600,"FP-16.01/RAL5009","16-FP.07",400,"P431/RAL5009",7887150,null,null,null,null,null,null,null,null,null,null,null,null,null,null,null,null,null,null,null,null,null,null,null,null,null,null,null,null,null,null,null,null,null,null,null,null,null,null,null,null,null,null,null,null,null,null,null,null,null,null,null,null,null,null,null,null,"Hinge","ELM","white",null,"HELMw","ELM",0,0,"Петля ELEMENTIS","Петля ELEMENTIS белая","ELM Белая",0,0]
["RAL4002","Белый","RAL4002",1,1,1550,5258643,null,null,null,null,null,null,null,null,null,null,null,null,null,null,null,null,null,null,null,null,null,null,null,"RAL5010",1200,"ROS5605.01/RAL5010","ROS0080.07",600,"FP-16.01/RAL5010","16-FP.07",400,"P431/RAL5010",8143891,null,null,null,null,null,null,null,null,null,null,null,null,null,null,null,null,null,null,null,null,null,null,null,null,null,null,null,null,null,null,null,null,null,null,null,null,null,null,null,null,null,null,null,null,null,null,null,null,null,null,null,null,null,null,null,null,"Hinge","ELM","brown",null,"HELMb","ELM",0,0,"Петля ELEMENTIS","Петля ELEMENTIS коричневая","ELM Коричневая",0,0]
["RAL4003","Белый","RAL4003",1,1,1550,9395153,null,null,null,null,null,null,null,null,null,null,null,null,null,null,null,null,null,null,null,null,null,null,null,"RAL5011",1200,"ROS5605.01/RAL5011","ROS0080.07",600,"FP-16.01/RAL5011","16-FP.07",400,"P431/RAL5011",4140067,null,null,null,null,null,null,null,null,null,null,null,null,null,null,null,null,null,null,null,null,null,null,null,null,null,null,null,null,null,null,null,null,null,null,null,null,null,null,null,null,null,null,null,null,null,null,null,null,null,null,null,null,null,null,null,null,"Middle","Pict",null,null,"MP","MACO",0,0,"Средн. Прижим","Средний прижим на створке",215577,0,0]
["RAL4004","Белый","RAL4004",1,1,1550,3741289,null,null,null,null,null,null,null,null,null,null,null,null,null,null,null,null,null,null,null,null,null,null,null,"RAL5012",1200,"ROS5605.01/RAL5012","ROS0080.07",600,"FP-16.01/RAL5012","16-FP.07",400,"P431/RAL5012",12091700,null,null,null,null,null,null,null,null,null,null,null,null,null,null,null,null,null,null,null,null,null,null,null,null,null,null,null,null,null,null,null,null,null,null,null,null,null,null,null,null,null,null,null,null,null,null,null,null,null,null,null,null,null,null,null,null,"Middle","Box",null,null,"MB","MACO",0,9,"Средн. Прижим","Средний прижим на раме 9-е смещение",365159,0,0]
["RAL4005","Белый","RAL4005",1,1,1550,10314627,null,null,null,null,null,null,null,null,null,null,null,null,null,null,null,null,null,null,null,null,null,null,null,"RAL5013",1200,"ROS5605.01/RAL5013","ROS0080.07",600,"FP-16.01/RAL5013","16-FP.07",400,"P431/RAL5013",5451043,null,null,null,null,null,null,null,null,null,null,null,null,null,null,null,null,null,null,null,null,null,null,null,null,null,null,null,null,null,null,null,null,null,null,null,null,null,null,null,null,null,null,null,null,null,null,null,null,null,null,null,null,null,null,null,null,null,null,null,null,"MB","MACO",0,13,"Средн. Прижим","Средний прижим на раме 13-е смещение",365161,0,0]
["RAL4006","Белый","RAL4006",1,1,1550,7480729,null,null,null,null,null,null,null,null,null,null,null,null,null,null,null,null,null,null,null,null,null,null,null,"RAL5014",1200,"ROS5605.01/RAL5014","ROS0080.07",600,"FP-16.01/RAL5014","16-FP.07",400,"P431/RAL5014",9993324,null,null,null,null,null,null,null,null,null,null,null,null,null,null,null,null,null,null,null,null,null,null,null,null,null,null,null,null,null,null,null,null,null,null,null,null,null,null,null,null,null,null,null,null,null,null,null,null,null,null,null,null,null,null,null,null,null,null,null,null,"A","MACO",0,9,"Ответка обычная","Запорная планка 9-е смещение",34943,0,0]
["RAL4007","Белый","RAL4007",1,1,1550,3874890,null,null,null,null,null,null,null,null,null,null,null,null,null,null,null,null,null,null,null,null,null,null,null,"RAL5015",1200,"ROS5605.01/RAL5015","ROS0080.07",600,"FP-16.01/RAL5015","16-FP.07",400,"P431/RAL5015",11695144,null,null,null,null,null,null,null,null,null,null,null,null,null,null,null,null,null,null,null,null,null,null,null,null,null,null,null,null,null,null,null,null,null,null,null,null,null,null,null,null,null,null,null,null,null,null,null,null,null,null,null,null,null,null,null,null,null,null,null,null,"A","MACO",0,13,"Ответка обычная","Запорная планка 13-е смещение",34934,0,0]
["RAL4008","Белый","RAL4008",1,1,1550,8668816,null,null,null,null,null,null,null,null,null,null,null,null,null,null,null,null,null,null,null,null,null,null,null,"RAL5017",1200,"ROS5605.01/RAL5017","ROS0080.07",600,"FP-16.01/RAL5017","16-FP.07",400,"P431/RAL5017",9261326,null,null,null,null,null,null,null,null,null,null,null,null,null,null,null,null,null,null,null,null,null,null,null,null,null,null,null,null,null,null,null,null,null,null,null,null,null,null,null,null,null,null,null,null,null,null,null,null,null,null,null,null,null,null,null,null,null,null,null,null,"А",null,0,0,"Шуруп","Шуруп 3х25",555,0,0]
["RAL4009","Белый","RAL4009",2,1,1550,9800099,null,null,null,null,null,null,null,null,null,null,null,null,null,null,null,null,null,null,null,null,null,null,null,"RAL5018",1200,"ROS5605.01/RAL5018","ROS0080.07",600,"FP-16.01/RAL5018","16-FP.07",400,"P431/RAL5018",9406497,null,null,null,null,null,null,null,null,null,null,null,null,null,null,null,null,null,null,null,null,null,null,null,null,null,null,null,null,null,null,null,null,null,null,null,null,null,null,null,null,null,null,null,null,null,null,null,null,null,null,null,null,null,null,null,null,"Portal",null,null,null,"P",null,0,0,"Портал","Портал","Портал",0,0]
["RAL4010","Белый","RAL4010",1,1,1550,7878342,null,null,null,null,null,null,null,null,null,null,null,null,null,null,null,null,null,null,null,null,null,null,null,"RAL5019",1200,"ROS5605.01/RAL5019","ROS0080.07",600,"FP-16.01/RAL5019","16-FP.07",400,"P431/RAL5019",8673050,null,null,null,null,null,null,null,null,null,null,null,null,null,null,null,null,null,null,null,null,null,null,null,null,null,null,null,null,null,null,null,null,null,null,null,null,null,null,null,null,null,null,null,null,null,null,null,null,null,null,null,null,null,null,null,null,"Lock","BTV",null,null,"LBTV","MACO",40,0,"Замок B-TV","Дверной замок B-TV DM40",203830,0,3000,1050]
["RAL5000","Белый","RAL5000",1,1,1550,7359544,null,null,null,null,null,null,null,null,null,null,null,null,null,null,null,null,null,null,null,null,null,null,null,"RAL5020",1200,"ROS5605.01/RAL5020","ROS0080.07",600,"FP-16.01/RAL5020","16-FP.07",400,"P431/RAL5020",5325067,null,null,null,null,null,null,null,null,null,null,null,null,null,null,null,null,null,null,null,null,null,null,null,null,null,null,null,null,null,null,null,null,null,null,null,null,null,null,null,null,null,null,null,null,null,null,null,null,null,null,null,null,null,null,null,null,null,null,null,null,"LBTV","MACO",45,0,"Замок B-TV","Дверной замок B-TV DM45",203831,0,3000,1050]
["RAL5001","Белый","RAL5001",1,1,1550,6571807,null,null,null,null,null,null,null,null,null,null,null,null,null,null,null,null,null,null,null,null,null,null,null,"RAL5021",1200,"ROS5605.01/RAL5021","ROS0080.07",600,"FP-16.01/RAL5021","16-FP.07",400,"P431/RAL5021",8024839,null,null,null,null,null,null,null,null,null,null,null,null,null,null,null,null,null,null,null,null,null,null,null,null,null,null,null,null,null,null,null,null,null,null,null,null,null,null,null,null,null,null,null,null,null,null,null,null,null,null,null,null,null,null,null,null,"Extension","BTV",null,null,"EBTV","MACO",40,0,"Удлинитель B-TV","Удлинитель для замка B-TV",203697,0,1950,null,"203830-1"]
["RAL5002","Белый","RAL5002",1,1,1550,8137771,null,null,null,null,null,null,null,null,null,null,null,null,null,null,null,null,null,null,null,null,null,null,null,"RAL5022",1200,"ROS5605.01/RAL5022","ROS0080.07",600,"FP-16.01/RAL5022","16-FP.07",400,"P431/RAL5022",5909039,null,null,null,null,null,null,null,null,null,null,null,null,null,null,null,null,null,null,null,null,null,null,null,null,null,null,null,null,null,null,null,null,null,null,null,null,null,null,null,null,null,null,null,null,null,null,null,null,null,null,null,null,null,null,null,null,"Extension","BTV",null,null,"EBTV","MACO",40,0,"Удлинитель B-TV","Удлинитель для замка B-TV",203698,1951,2200,null,"203830-1"]
["RAL5003","Белый","RAL5003",1,1,1550,5650218,null,null,null,null,null,null,null,null,null,null,null,null,null,null,null,null,null,null,null,null,null,null,null,"RAL5023",1200,"ROS5605.01/RAL5023","ROS0080.07",600,"FP-16.01/RAL5023","16-FP.07",400,"P431/RAL5023",9332301,null,null,null,null,null,null,null,null,null,null,null,null,null,null,null,null,null,null,null,null,null,null,null,null,null,null,null,null,null,null,null,null,null,null,null,null,null,null,null,null,null,null,null,null,null,null,null,null,null,null,null,null,null,null,null,null,"Extension","BTV",null,null,"EBTV","MACO",40,0,"Удлинитель B-TV","Удлинитель для замка B-TV",203699,2201,3000,null,"203830-1"]
["RAL5004","Белый","RAL5004",1,1,1550,2760477,null,null,null,null,null,null,null,null,null,null,null,null,null,null,null,null,null,null,null,null,null,null,null,"RAL5024",1200,"ROS5605.01/RAL5024","ROS0080.07",600,"FP-16.01/RAL5024","16-FP.07",400,"P431/RAL5024",11572074,null,null,null,null,null,null,null,null,null,null,null,null,null,null,null,null,null,null,null,null,null,null,null,null,null,null,null,null,null,null,null,null,null,null,null,null,null,null,null,null,null,null,null,null,null,null,null,null,null,null,null,null,null,null,null,null,"Extension","BTV",null,null,"EBTV","MACO",45,0,"Удлинитель B-TV","Удлинитель для замка B-TV",203697,0,1950,null,"203831-1"]
["RAL5005","Белый","RAL5005",1,1,1550,8996885,null,null,null,null,null,null,null,null,null,null,null,null,null,null,null,null,null,null,null,null,null,null,null,"RAL6000",1200,"ROS5605.01/RAL6000","ROS0080.07",600,"FP-16.01/RAL6000","16-FP.07",400,"P431/RAL6000",6452786,null,null,null,null,null,null,null,null,null,null,null,null,null,null,null,null,null,null,null,null,null,null,null,null,null,null,null,null,null,null,null,null,null,null,null,null,null,null,null,null,null,null,null,null,null,null,null,null,null,null,null,null,null,null,null,null,"Extension","BTV",null,null,"EBTV","MACO",45,0,"Удлинитель B-TV","Удлинитель для замка B-TV",203698,1951,2200,null,"203831-1"]
["RAL5007","Белый","RAL5007",1,1,1550,9267009,null,null,null,null,null,null,null,null,null,null,null,null,null,null,null,null,null,null,null,null,null,null,null,"RAL6001",1200,"ROS5605.01/RAL6001","ROS0080.07",600,"FP-16.01/RAL6001","16-FP.07",400,"P431/RAL6001",4092200,null,null,null,null,null,null,null,null,null,null,null,null,null,null,null,null,null,null,null,null,null,null,null,null,null,null,null,null,null,null,null,null,null,null,null,null,null,null,null,null,null,null,null,null,null,null,null,null,null,null,null,null,null,null,null,null,"Extension","BTV",null,null,"EBTV","MACO",45,0,"Удлинитель B-TV","Удлинитель для замка B-TV",203699,2201,3000,null,"203831-1"]
["RAL5008","Белый","RAL5008",1,1,1550,4734001,null,null,null,null,null,null,null,null,null,null,null,null,null,null,null,null,null,null,null,null,null,null,null,"RAL6002",1200,"ROS5605.01/RAL6002","ROS0080.07",600,"FP-16.01/RAL6002","16-FP.07",400,"P431/RAL6002",3498535,null,null,null,null,null,null,null,null,null,null,null,null,null,null,null,null,null,null,null,null,null,null,null,null,null,null,null,null,null,null,null,null,null,null,null,null,null,null,null,null,null,null,null,null,null,null,null,null,null,null,null,null,null,null,null,null,"Lock","Locked",null,null,"LL","MACO",40,0,"Замок с личинкой","ПО-Механизм фикс.запираемый",206984,0,1950,1050]
["RAL5009","Белый","RAL5009",1,1,1550,7887150,null,null,null,null,null,null,null,null,null,null,null,null,null,null,null,null,null,null,null,null,null,null,null,"RAL6003",1200,"ROS5605.01/RAL6003","ROS0080.07",600,"FP-16.01/RAL6003","16-FP.07",400,"P431/RAL6003",4085579,null,null,null,null,null,null,null,null,null,null,null,null,null,null,null,null,null,null,null,null,null,null,null,null,null,null,null,null,null,null,null,null,null,null,null,null,null,null,null,null,null,null,null,null,null,null,null,null,null,null,null,null,null,null,null,null,null,null,null,null,"LL","MACO",40,0,"Замок с личинкой","ПО-Механизм фикс.запираемый",205631,1951,3000,1050]
["RAL5010","Белый","RAL5010",1,1,1550,8143891,null,null,null,null,null,null,null,null,null,null,null,null,null,null,null,null,null,null,null,null,null,null,null,"RAL6004",1200,"ROS5605.01/RAL6004","ROS0080.07",600,"FP-16.01/RAL6004","16-FP.07",400,"P431/RAL6004",4407822,null,null,null,null,null,null,null,null,null,null,null,null,null,null,null,null,null,null,null,null,null,null,null,null,null,null,null,null,null,null,null,null,null,null,null,null,null,null,null,null,null,null,null,null,null,null,null,null,null,null,null,null,null,null,null,null,"Lock","STulp","s",null,"LSTs","MACO",0,9,"Шпингалет низ","Шпингалет нижний",55167,0,3000,null,"214293-1"]
["RAL5011","Белый","RAL5011",1,1,1550,4140067,null,null,null,null,null,null,null,null,null,null,null,null,null,null,null,null,null,null,null,null,null,null,null,"RAL6005",1200,"ROS5605.01/RAL6005",{"$f":"\"ROS0080.0\"&IF(AC102=2,1,IF(AC102=1,5,7))","v":"ROS0080.07"},600,"FP-16.01/RAL6005",{"$f":"\"16-FP.0\"&IF(AC102=2,1,IF(AC102=1,5,7))","v":"16-FP.07"},400,"P431/RAL6005",3556111,null,null,null,null,null,null,null,null,null,null,null,null,null,null,null,null,null,null,null,null,null,null,null,null,null,null,null,null,null,null,null,null,null,null,null,null,null,null,null,null,null,null,null,null,null,null,null,null,null,null,null,null,null,null,null,null,null,null,null,null,"LSTs","MACO",0,9,"Шпингалет верх","Шпингалет верхний",214293,0,3000]
["RAL5012","Белый","RAL5012",1,1,1550,12091700,null,null,null,null,null,null,null,null,null,null,null,null,null,null,null,null,null,null,null,null,null,null,null,"RAL6006",1200,"ROS5605.01/RAL6006","ROS0080.07",600,"FP-16.01/RAL6006","16-FP.07",400,"P431/RAL6006",3883840,null,null,null,null,null,null,null,null,null,null,null,null,null,null,null,null,null,null,null,null,null,null,null,null,null,null,null,null,null,null,null,null,null,null,null,null,null,null,null,null,null,null,null,null,null,null,null,null,null,null,null,null,null,null,null,null,"Lock","STulp","fix",null,"LSTf","MACO",0,0,"Замок штульп","Штульповой механизм фикс.",209507,661,840,null,"211745-1"]
["RAL5013","Белый","RAL5013",1,1,1550,5451043,null,null,null,null,null,null,null,null,null,null,null,null,null,null,null,null,null,null,null,null,null,null,null,"RAL6007",1200,"ROS5605.01/RAL6007","ROS0080.07",600,"FP-16.01/RAL6007","16-FP.07",400,"P431/RAL6007",2372648,null,null,null,null,null,null,null,null,null,null,null,null,null,null,null,null,null,null,null,null,null,null,null,null,null,null,null,null,null,null,null,null,null,null,null,null,null,null,null,null,null,null,null,null,null,null,null,null,null,null,null,null,null,null,null,null,null,null,null,null,"LSTf","MACO",0,0,"Замок штульп","Штульповой механизм фикс.",209508,841,1090,null,"211745-1"]
["RAL5014","Белый","RAL5014",1,1,1550,9993324,null,null,null,null,null,null,null,null,null,null,null,null,null,null,null,null,null,null,null,null,null,null,null,"RAL6008",1200,"ROS5605.01/RAL6008","ROS0080.07",600,"FP-16.01/RAL6008","16-FP.07",400,"P431/RAL6008",3029045,null,null,null,null,null,null,null,null,null,null,null,null,null,null,null,null,null,null,null,null,null,null,null,null,null,null,null,null,null,null,null,null,null,null,null,null,null,null,null,null,null,null,null,null,null,null,null,null,null,null,null,null,null,null,null,null,null,null,null,null,"LSTf","MACO",0,0,"Замок штульп","Штульповой механизм фикс.",209510,1091,1340,null,"211745-1"]
["RAL5015","Белый","RAL5015",1,1,1550,11695144,null,null,null,null,null,null,null,null,null,null,null,null,null,null,null,null,null,null,null,null,null,null,null,"RAL6009",1200,"ROS5605.01/RAL6009","ROS0080.07",600,"FP-16.01/RAL6009","16-FP.07",400,"P431/RAL6009",3094822,null,null,null,null,null,null,null,null,null,null,null,null,null,null,null,null,null,null,null,null,null,null,null,null,null,null,null,null,null,null,null,null,null,null,null,null,null,null,null,null,null,null,null,null,null,null,null,null,null,null,null,null,null,null,null,null,null,null,null,null,"LSTf","MACO",0,0,"Замок штульп","Штульповой механизм фикс.",209512,1341,1590,null,"211745-1"]
["RAL5017","Белый","RAL5017",1,1,1550,9261326,null,null,null,null,null,null,null,null,null,null,null,null,null,null,null,null,null,null,null,null,null,null,null,"RAL6010",1200,"ROS5605.01/RAL6010","ROS0080.07",600,"FP-16.01/RAL6010","16-FP.07",400,"P431/RAL6010",3896638,null,null,null,null,null,null,null,null,null,null,null,null,null,null,null,null,null,null,null,null,null,null,null,null,null,null,null,null,null,null,null,null,null,null,null,null,null,null,null,null,null,null,null,null,null,null,null,null,null,null,null,null,null,null,null,null,null,null,null,null,"LSTf","MACO",0,0,"Замок штульп","Штульповой механизм фикс.",209514,1591,1700,null,"211745-1"]
["RAL5018","Белый","RAL5018",1,1,1550,9406497,null,null,null,null,null,null,null,null,null,null,null,null,null,null,null,null,null,null,null,null,null,null,null,"RAL6011",1200,"ROS5605.01/RAL6011","ROS0080.07",600,"FP-16.01/RAL6011","16-FP.07",400,"P431/RAL6011",5997158,null,null,null,null,null,null,null,null,null,null,null,null,null,null,null,null,null,null,null,null,null,null,null,null,null,null,null,null,null,null,null,null,null,null,null,null,null,null,null,null,null,null,null,null,null,null,null,null,null,null,null,null,null,null,null,null,null,null,null,null,"LSTf","MACO",0,0,"Замок штульп","Штульповой механизм фикс.",209517,1701,1950,null,"211745-1"]
["RAL5019","Белый","RAL5019",1,1,1550,8673050,null,null,null,null,null,null,null,null,null,null,null,null,null,null,null,null,null,null,null,null,null,null,null,"RAL6012",1200,"ROS5605.01/RAL6012","ROS0080.07",600,"FP-16.01/RAL6012","16-FP.07",400,"P431/RAL6012",4014129,null,null,null,null,null,null,null,null,null,null,null,null,null,null,null,null,null,null,null,null,null,null,null,null,null,null,null,null,null,null,null,null,null,null,null,null,null,null,null,null,null,null,null,null,null,null,null,null,null,null,null,null,null,null,null,null,null,null,null,null,"LSTf","MACO",0,0,"Замок штульп","Штульповой механизм фикс.",209518,1951,2200,null,"211745-1"]
["RAL5020","Белый","RAL5020",1,1,1550,5325067,null,null,null,null,null,null,null,null,null,null,null,null,null,null,null,null,null,null,null,null,null,null,null,"RAL6013",1200,"ROS5605.01/RAL6013","ROS0080.07",600,"FP-16.01/RAL6013","16-FP.07",400,"P431/RAL6013",5930105,null,null,null,null,null,null,null,null,null,null,null,null,null,null,null,null,null,null,null,null,null,null,null,null,null,null,null,null,null,null,null,null,null,null,null,null,null,null,null,null,null,null,null,null,null,null,null,null,null,null,null,null,null,null,null,null,null,null,null,null,"LSTf","MACO",0,0,"Замок штульп","Штульповой механизм фикс.",209519,2201,3000,null,"211745-1"]
["RAL5021","Белый","RAL5021",1,1,1550,8024839,null,null,null,null,null,null,null,null,null,null,null,null,null,null,null,null,null,null,null,null,null,null,null,"RAL6014",1200,"ROS5605.01/RAL6014","ROS0080.07",600,"FP-16.01/RAL6014","16-FP.07",400,"P431/RAL6014",3621700,null,null,null,null,null,null,null,null,null,null,null,null,null,null,null,null,null,null,null,null,null,null,null,null,null,null,null,null,null,null,null,null,null,null,null,null,null,null,null,null,null,null,null,null,null,null,null,null,null,null,null,null,null,null,null,null,"Angular","STulp","up",null,"ASTu","MACO",0,0,"Шпингалет верх","Концевой запор для штульпа верх",211745,0,3000]
["RAL5022","Белый","RAL5022",1,1,1550,5909039,null,null,null,null,null,null,null,null,null,null,null,null,null,null,null,null,null,null,null,null,null,null,null,"RAL6015",1200,"ROS5605.01/RAL6015","ROS0080.07",600,"FP-16.01/RAL6015","16-FP.07",400,"P431/RAL6015",3817533,null,null,null,null,null,null,null,null,null,null,null,null,null,null,null,null,null,null,null,null,null,null,null,null,null,null,null,null,null,null,null,null,null,null,null,null,null,null,null,null,null,null,null,null,null,null,null,null,null,null,null,null,null,null,null,null,"Angular","STulp","down",null,"ASTd","MACO",0,0,"Шпингалет низ","Концевой запор для штульпа с рычагом низ",209648,0,3000]
["RAL5023","Белый","RAL5023",2,1,1550,9332301,null,null,null,null,null,null,null,null,null,null,null,null,null,null,null,null,null,null,null,null,null,null,null,"RAL6016",1200,"ROS5605.01/RAL6016","ROS0080.07",600,"FP-16.01/RAL6016","16-FP.07",400,"P431/RAL6016",5401090,null,null,null,null,null,null,null,null,null,null,null,null,null,null,null,null,null,null,null,null,null,null,null,null,null,null,null,null,null,null,null,null,null,null,null,null,null,null,null,null,null,null,null,null,null,null,null,null,null,null,null,null,null,null,null,null,null,null,null,null,"ASTd","MACO",0,0,"Шпингалет низ","Концевой запор для штульпа низ",209637,0,3000]
["RAL5024","Белый","RAL5024",2,1,1550,11572074,null,null,null,null,null,null,null,null,null,null,null,null,null,null,null,null,null,null,null,null,null,null,null,"RAL6017",1200,"ROS5605.01/RAL6017","ROS0080.07",600,"FP-16.01/RAL6017","16-FP.07",400,"P431/RAL6017",4294214,null,null,null,null,null,null,null,null,null,null,null,null,null,null,null,null,null,null,null,null,null,null,null,null,null,null,null,null,null,null,null,null,null,null,null,null,null,null,null,null,null,null,null,null,null,null,null,null,null,null,null,null,null,null,null,null,"Lock","STulp","var",null,"LSTv","MACO",0,0,"Замок штульп","Штульповой механизм вар.",211791,930,1250,null,"211745-1,209648-1"]
["RAL6000","Белый","RAL6000",1,1,1550,6452786,null,null,null,null,null,null,null,null,null,null,null,null,null,null,null,null,null,null,null,null,null,null,null,"RAL6018",1200,"ROS5605.01/RAL6018","ROS0080.07",600,"FP-16.01/RAL6018","16-FP.07",400,"P431/RAL6018",4170824,null,null,null,null,null,null,null,null,null,null,null,null,null,null,null,null,null,null,null,null,null,null,null,null,null,null,null,null,null,null,null,null,null,null,null,null,null,null,null,null,null,null,null,null,null,null,null,null,null,null,null,null,null,null,null,null,null,null,null,null,"LSTv","MACO",0,0,"Замок штульп","Штульповой механизм вар.",209670,1251,1750,null,"211745-1,209637-1"]
["RAL6001","Белый","RAL6001",1,1,1550,4092200,null,null,null,null,null,null,null,null,null,null,null,null,null,null,null,null,null,null,null,null,null,null,null,"RAL6019",1200,"ROS5605.01/RAL6019","ROS0080.07",600,"FP-16.01/RAL6019","16-FP.07",400,"P431/RAL6019",11655607,null,null,null,null,null,null,null,null,null,null,null,null,null,null,null,null,null,null,null,null,null,null,null,null,null,null,null,null,null,null,null,null,null,null,null,null,null,null,null,null,null,null,null,null,null,null,null,null,null,null,null,null,null,null,null,null,null,null,null,null,"LSTv","MACO",0,0,"Замок штульп","Штульповой механизм вар.",209671,1751,3000,null,"211745-1,209637-1"]
["RAL6002","Белый","RAL6002",1,1,1550,3498535,null,null,null,null,null,null,null,null,null,null,null,null,null,null,null,null,null,null,null,null,null,null,null,"RAL6020",1200,"ROS5605.01/RAL6020","ROS0080.07",600,"FP-16.01/RAL6020","16-FP.07",400,"P431/RAL6020",3360565]
["RAL6003","Белый","RAL6003",1,1,1550,4085579,null,null,null,null,null,null,null,null,null,null,null,null,null,null,null,null,null,null,null,null,null,null,null,"RAL6021",1200,"ROS5605.01/RAL6021","ROS0080.07",600,"FP-16.01/RAL6021","16-FP.07",400,"P431/RAL6021",8168582]
["RAL6004","Белый","RAL6004",1,1,1550,4407822,null,null,null,null,null,null,null,null,null,null,null,null,null,null,null,null,null,null,null,null,null,null,null,"RAL6022",1200,"ROS5605.01/RAL6022","ROS0080.07",600,"FP-16.01/RAL6022","16-FP.07",400,"P431/RAL6022",3292222]
["RAL6005","Белый","RAL6005",1,1,1550,3556111,null,null,null,null,null,null,null,null,null,null,null,null,null,null,null,null,null,null,null,null,null,null,null,"RAL6024",1200,"ROS5605.01/RAL6024","ROS0080.07",600,"FP-16.01/RAL6024","16-FP.07",400,"P431/RAL6024",5539584]
["RAL6006","Белый","RAL6006",1,1,1550,3883840,null,null,null,null,null,null,null,null,null,null,null,null,null,null,null,null,null,null,null,null,null,null,null,"RAL6025",1200,"ROS5605.01/RAL6025","ROS0080.07",600,"FP-16.01/RAL6025","16-FP.07",400,"P431/RAL6025",3962195]
["RAL6007","Белый","RAL6007",1,1,1550,2372648,null,null,null,null,null,null,null,null,null,null,null,null,null,null,null,null,null,null,null,null,null,null,null,"RAL6026",1200,"ROS5605.01/RAL6026","ROS0080.07",600,"FP-16.01/RAL6026","16-FP.07",400,"P431/RAL6026",5397760]
["RAL6008","Белый","RAL6008",1,1,1550,3029045,null,null,null,null,null,null,null,null,null,null,null,null,null,null,null,null,null,null,null,null,null,null,null,"RAL6027",1200,"ROS5605.01/RAL6027","ROS0080.07",600,"FP-16.01/RAL6027","16-FP.07",400,"P431/RAL6027",12304513]
["RAL6009","Белый","RAL6009",1,1,1550,3094822,null,null,null,null,null,null,null,null,null,null,null,null,null,null,null,null,null,null,null,null,null,null,null,"RAL6028",1200,"ROS5605.01/RAL6028","ROS0080.07",600,"FP-16.01/RAL6028","16-FP.07",400,"P431/RAL6028",4609325]
["RAL6010","Белый","RAL6010",1,1,1550,3896638,null,null,null,null,null,null,null,null,null,null,null,null,null,null,null,null,null,null,null,null,null,null,null,"RAL6029",1200,"ROS5605.01/RAL6029","ROS0080.07",600,"FP-16.01/RAL6029","16-FP.07",400,"P431/RAL6029",4420096]
["RAL6011","Белый","RAL6011",2,1,1550,5997158,null,null,null,null,null,null,null,null,null,null,null,null,null,null,null,null,null,null,null,null,null,null,null,"RAL6032",1200,"ROS5605.01/RAL6032","ROS0080.07",600,"FP-16.01/RAL6032","16-FP.07",400,"P431/RAL6032",5801231]
["RAL6012","Белый","RAL6012",2,1,1550,4014129,null,null,null,null,null,null,null,null,null,null,null,null,null,null,null,null,null,null,null,null,null,null,null,"RAL6033",1200,"ROS5605.01/RAL6033","ROS0080.07",600,"FP-16.01/RAL6033","16-FP.07",400,"P431/RAL6033",8686151]
["RAL6013","Белый","RAL6013",2,1,1550,5930105,null,null,null,null,null,null,null,null,null,null,null,null,null,null,null,null,null,null,null,null,null,null,null,"RAL6034",1200,"ROS5605.01/RAL6034","ROS0080.07",600,"FP-16.01/RAL6034","16-FP.07",400,"P431/RAL6034",11710591]
["RAL6014","Белый","RAL6014",2,1,1550,3621700,null,null,null,null,null,null,null,null,null,null,null,null,null,null,null,null,null,null,null,null,null,null,null,"RAL6037",1200,"ROS5605.01/RAL6037","ROS0080.07",600,"FP-16.01/RAL6037","16-FP.07",400,"P431/RAL6037",3772160]
["RAL6015","Белый","RAL6015",2,1,1550,3817533,null,null,null,null,null,null,null,null,null,null,null,null,null,null,null,null,null,null,null,null,null,null,null,"RAL7000",1200,"ROS5605.01/RAL7000","ROS0080.07",600,"FP-16.01/RAL7000","16-FP.07",400,"P431/RAL7000",9603966]
["RAL6016","Белый","RAL6016",1,1,1550,5401090,null,null,null,null,null,null,null,null,null,null,null,null,null,null,null,null,null,null,null,null,null,null,null,"RAL7001",1200,"ROS5605.01/RAL7001","ROS0080.07",600,"FP-16.01/RAL7001","16-FP.07",400,"P431/RAL7001",10459535]
["RAL6017","Белый","RAL6017",1,1,1550,4294214,null,null,null,null,null,null,null,null,null,null,null,null,null,null,null,null,null,null,null,null,null,null,null,"RAL7002",1200,"ROS5605.01/RAL7002","ROS0080.07",600,"FP-16.01/RAL7002","16-FP.07",400,"P431/RAL7002",6848385]
["RAL6018","Белый","RAL6018",1,1,1550,4170824,null,null,null,null,null,null,null,null,null,null,null,null,null,null,null,null,null,null,null,null,null,null,null,"RAL7003",1200,"ROS5605.01/RAL7003","ROS0080.07",600,"FP-16.01/RAL7003","16-FP.07",400,"P431/RAL7003",7175034]
["RAL6019","Белый","RAL6019",2,1,1550,11655607,null,null,null,null,null,null,null,null,null,null,null,null,null,null,null,null,null,null,null,null,null,null,null,"RAL7004",1200,"ROS5605.01/RAL7004",{"$f":"\"ROS0080.0\"&IF(AC134=2,1,IF(AC134=1,5,7))","v":"ROS0080.07"},600,"FP-16.01/RAL7004",{"$f":"\"16-FP.0\"&IF(AC134=2,1,IF(AC134=1,5,7))","v":"16-FP.07"},400,"P431/RAL7004",10592414]
["RAL6020","Белый","RAL6020",1,1,1550,3360565,null,null,null,null,null,null,null,null,null,null,null,null,null,null,null,null,null,null,null,null,null,null,null,"RAL7005",1200,{"$f":"\"ROS5605.01/\"&AE134","v":"ROS5605.01/RAL7005"},"ROS0080.07",600,{"$f":"\"FP-16.01/\"&AE134","v":"FP-16.01/RAL7005"},"16-FP.07",400,{"$f":"\"P431/\"&AE134","v":"P431/RAL7005"},7303531]
["RAL6021","Белый","RAL6021",2,1,1550,8168582,null,null,null,null,null,null,null,null,null,null,null,null,null,null,null,null,null,null,null,null,null,null,null,"RAL7006",1200,"ROS5605.01/RAL7006","ROS0080.07",600,"FP-16.01/RAL7006","16-FP.07",400,"P431/RAL7006",6385525]
["RAL6022","Белый","RAL6022",1,1,1550,3292222,null,null,null,null,null,null,null,null,null,null,null,null,null,null,null,null,null,null,null,null,null,null,null,"RAL7008",1200,"ROS5605.01/RAL7008","ROS0080.07",600,"FP-16.01/RAL7008","16-FP.07",400,"P431/RAL7008",4417140]
["RAL6024","Белый","RAL6024",1,1,1550,5539584,null,null,null,null,null,null,null,null,null,null,null,null,null,null,null,null,null,null,null,null,null,null,null,"RAL7009",1200,"ROS5605.01/RAL7009","ROS0080.07",600,"FP-16.01/RAL7009","16-FP.07",400,"P431/RAL7009",5857883]
["RAL6025","Белый","RAL6025",2,1,1550,3962195,null,null,null,null,null,null,null,null,null,null,null,null,null,null,null,null,null,null,null,null,null,null,null,"RAL7010",1200,"ROS5605.01/RAL7010","ROS0080.07",600,"FP-16.01/RAL7010","16-FP.07",400,"P431/RAL7010",5725527]
["RAL6026","Белый","RAL6026",1,1,1550,5397760,null,null,null,null,null,null,null,null,null,null,null,null,null,null,null,null,null,null,null,null,null,null,null,"RAL7011",1200,"ROS5605.01/RAL7011","ROS0080.07",600,"FP-16.01/RAL7011","16-FP.07",400,"P431/RAL7011",6380885]
["RAL6027","Белый","RAL6027",2,1,1550,12304513,null,null,null,null,null,null,null,null,null,null,null,null,null,null,null,null,null,null,null,null,null,null,null,"RAL7012",1200,"ROS5605.01/RAL7012","ROS0080.07",600,"FP-16.01/RAL7012","16-FP.07",400,"P431/RAL7012",6512985]
["RAL6028","Белый","RAL6028",1,1,1550,4609325,null,null,null,null,null,null,null,null,null,null,null,null,null,null,null,null,null,null,null,null,null,null,null,"RAL7013",1200,"ROS5605.01/RAL7013","ROS0080.07",600,"FP-16.01/RAL7013","16-FP.07",400,"P431/RAL7013",4740437]
["RAL6029","Белый","RAL6029",1,1,1550,4420096,null,null,null,null,null,null,null,null,null,null,null,null,null,null,null,null,null,null,null,null,null,null,null,"RAL7015",1200,"ROS5605.01/RAL7015","ROS0080.07",600,"FP-16.01/RAL7015","16-FP.07",400,"P431/RAL7015",6051409]
["RAL6032","Белый","RAL6032",1,1,1550,5801231,null,null,null,null,null,null,null,null,null,null,null,null,null,null,null,null,null,null,null,null,null,null,null,"RAL7016",1200,"ROS5605.01/RAL7016","ROS0080.07",600,"FP-16.01/RAL7016","16-FP.07",400,"P431/RAL7016",4407095]
["RAL6033","Белый","RAL6033",2,1,1550,8686151,null,null,null,null,null,null,null,null,null,null,null,null,null,null,null,null,null,null,null,null,null,null,null,"RAL7021",1200,"ROS5605.01/RAL7021","ROS0080.07",600,"FP-16.01/RAL7021","16-FP.07",400,"P431/RAL7021",3420718]
["RAL6034","Белый","RAL6034",2,1,1550,11710591,null,null,null,null,null,null,null,null,null,null,null,null,null,null,null,null,null,null,null,null,null,null,null,"RAL7022",1200,"ROS5605.01/RAL7022","ROS0080.07",600,"FP-16.01/RAL7022","16-FP.07",400,"P431/RAL7022",4607307]
["RAL6037","Белый","RAL6037",1,1,1550,3772160,null,null,null,null,null,null,null,null,null,null,null,null,null,null,null,null,null,null,null,null,null,null,null,"RAL7023",1200,"ROS5605.01/RAL7023","ROS0080.07",600,"FP-16.01/RAL7023","16-FP.07",400,"P431/RAL7023",7963777]
["RAL7000","Белый","RAL7000",2,1,1550,9603966,null,null,null,null,null,null,null,null,null,null,null,null,null,null,null,null,null,null,null,null,null,null,null,"RAL7024",1200,"ROS5605.01/RAL7024","ROS0080.07",600,"FP-16.01/RAL7024","16-FP.07",400,"P431/RAL7024",5261895]
["RAL7001","Белый","RAL7001",2,1,1550,10459535,null,null,null,null,null,null,null,null,null,null,null,null,null,null,null,null,null,null,null,null,null,null,null,"RAL7026",1200,"ROS5605.01/RAL7026","ROS0080.07",600,"FP-16.01/RAL7026","16-FP.07",400,"P431/RAL7026",4670519]
["RAL7002","Белый","RAL7002",2,1,1550,6848385,null,null,null,null,null,null,null,null,null,null,null,null,null,null,null,null,null,null,null,null,null,null,null,"RAL7030",1200,"ROS5605.01/RAL7030","ROS0080.07",600,"FP-16.01/RAL7030","16-FP.07",400,"P431/RAL7030",8950675]
["RAL7003","Белый","RAL7003",2,1,1550,7175034,null,null,null,null,null,null,null,null,null,null,null,null,null,null,null,null,null,null,null,null,null,null,null,"RAL7031",1200,"ROS5605.01/RAL7031","ROS0080.07",600,"FP-16.01/RAL7031","16-FP.07",400,"P431/RAL7031",7367005]
["RAL7004","Белый","RAL7004",2,1,1550,10592414,null,null,null,null,null,null,null,null,null,null,null,null,null,null,null,null,null,null,null,null,null,null,null,"RAL7032",1200,"ROS5605.01/RAL7032","ROS0080.07",600,"FP-16.01/RAL7032","16-FP.07",400,"P431/RAL7032",11057593]
["RAL7005","Белый","RAL7005",2,1,1550,7303531,null,null,null,null,null,null,null,null,null,null,null,null,null,null,null,null,null,null,null,null,null,null,null,"RAL7033",1200,"ROS5605.01/RAL7033","ROS0080.07",600,"FP-16.01/RAL7033","16-FP.07",400,"P431/RAL7033",7965057]
["RAL7006","Белый","RAL7006",2,1,1550,6385525,null,null,null,null,null,null,null,null,null,null,null,null,null,null,null,null,null,null,null,null,null,null,null,"RAL7034",1200,"ROS5605.01/RAL7034","ROS0080.07",600,"FP-16.01/RAL7034","16-FP.07",400,"P431/RAL7034",7770515]
["RAL7008","Белый","RAL7008",2,1,1550,4417140,null,null,null,null,null,null,null,null,null,null,null,null,null,null,null,null,null,null,null,null,null,null,null,"RAL7035",1200,"ROS5605.01/RAL7035","ROS0080.07",600,"FP-16.01/RAL7035","16-FP.07",400,"P431/RAL7035",13422795]
["RAL7009","Белый","RAL7009",2,1,1550,5857883,null,null,null,null,null,null,null,null,null,null,null,null,null,null,null,null,null,null,null,null,null,null,null,"RAL7036",1200,"ROS5605.01/RAL7036","ROS0080.07",600,"FP-16.01/RAL7036","16-FP.07",400,"P431/RAL7036",9934490]
["RAL7010","Белый","RAL7010",2,1,1550,5725527,null,null,null,null,null,null,null,null,null,null,null,null,null,null,null,null,null,null,null,null,null,null,null,"RAL7037",1200,"ROS5605.01/RAL7037","ROS0080.07",600,"FP-16.01/RAL7037","16-FP.07",400,"P431/RAL7037",8290172]
["RAL7011","Белый","RAL7011",2,1,1550,6380885,null,null,null,null,null,null,null,null,null,null,null,null,null,null,null,null,null,null,null,null,null,null,null,"RAL7038",1200,"ROS5605.01/RAL7038","ROS0080.07",600,"FP-16.01/RAL7038","16-FP.07",400,"P431/RAL7038",11581620]
["RAL7012","Белый","RAL7012",2,1,1550,6512985,null,null,null,null,null,null,null,null,null,null,null,null,null,null,null,null,null,null,null,null,null,null,null,"RAL7039",1200,"ROS5605.01/RAL7039","ROS0080.07",600,"FP-16.01/RAL7039","16-FP.07",400,"P431/RAL7039",6252907]
["RAL7013","Белый","RAL7013",2,1,1550,4740437,null,null,null,null,null,null,null,null,null,null,null,null,null,null,null,null,null,null,null,null,null,null,null,"RAL7040",1200,"ROS5605.01/RAL7040","ROS0080.07",600,"FP-16.01/RAL7040","16-FP.07",400,"P431/RAL7040",10920861]
["RAL7015","Белый","RAL7015",2,1,1550,6051409,null,null,null,null,null,null,null,null,null,null,null,null,null,null,null,null,null,null,null,null,null,null,null,"RAL7042",1200,"ROS5605.01/RAL7042","ROS0080.07",600,"FP-16.01/RAL7042","16-FP.07",400,"P431/RAL7042",9803407]
["RAL7016","Белый","RAL7016",2,1,1550,4407095,null,null,null,null,null,null,null,null,null,null,null,null,null,null,null,null,null,null,null,null,null,null,null,"RAL7043",1200,"ROS5605.01/RAL7043","ROS0080.07",600,"FP-16.01/RAL7043","16-FP.07",400,"P431/RAL7043",5329998]
["RAL7021","Белый","RAL7021",2,1,1550,3420718,null,null,null,null,null,null,null,null,null,null,null,null,null,null,null,null,null,null,null,null,null,null,null,"RAL7044",1200,"ROS5605.01/RAL7044","ROS0080.07",600,"FP-16.01/RAL7044","16-FP.07",400,"P431/RAL7044",11713981]
["RAL7022","Белый","RAL7022",2,1,1550,4607307,null,null,null,null,null,null,null,null,null,null,null,null,null,null,null,null,null,null,null,null,null,null,null,"RAL7045",1200,"ROS5605.01/RAL7045","ROS0080.07",600,"FP-16.01/RAL7045","16-FP.07",400,"P431/RAL7045",10131089]
["RAL7023","Белый","RAL7023",2,1,1550,7963777,null,null,null,null,null,null,null,null,null,null,null,null,null,null,null,null,null,null,null,null,null,null,null,"RAL7046",1200,"ROS5605.01/RAL7046","ROS0080.07",600,"FP-16.01/RAL7046","16-FP.07",400,"P431/RAL7046",9341314]
["RAL7024","Белый","RAL7024",2,1,1550,5261895,null,null,null,null,null,null,null,null,null,null,null,null,null,null,null,null,null,null,null,null,null,null,null,"RAL7047",1200,"ROS5605.01/RAL7047",{"$f":"\"ROS0080.0\"&IF(AC166=2,1,IF(AC166=1,5,7))","v":"ROS0080.07"},600,"FP-16.01/RAL7047",{"$f":"\"16-FP.0\"&IF(AC166=2,1,IF(AC166=1,5,7))","v":"16-FP.07"},400,"P431/RAL7047",13619407]
["RAL7026","Белый","RAL7026",2,1,1550,4670519,null,null,null,null,null,null,null,null,null,null,null,null,null,null,null,null,null,null,null,null,null,null,null,"RAL8000",1200,"ROS5605.01/RAL8000","ROS0080.07",600,"FP-16.01/RAL8000","16-FP.07",400,"P431/RAL8000",4354440]
["RAL7030","Белый","RAL7030",2,1,1550,8950675,null,null,null,null,null,null,null,null,null,null,null,null,null,null,null,null,null,null,null,null,null,null,null,"RAL8001",1200,"ROS5605.01/RAL8001","ROS0080.07",600,"FP-16.01/RAL8001","16-FP.07",400,"P431/RAL8001",3173276]
["RAL7031","Белый","RAL7031",2,1,1550,7367005,null,null,null,null,null,null,null,null,null,null,null,null,null,null,null,null,null,null,null,null,null,null,null,"RAL8002",1200,"ROS5605.01/RAL8002","ROS0080.07",600,"FP-16.01/RAL8002","16-FP.07",400,"P431/RAL8002",4280699]
["RAL7032","Белый","RAL7032",2,1,1550,11057593,null,null,null,null,null,null,null,null,null,null,null,null,null,null,null,null,null,null,null,null,null,null,null,"RAL8003",1200,"ROS5605.01/RAL8003","ROS0080.07",600,"FP-16.01/RAL8003","16-FP.07",400,"P431/RAL8003",3101824]
["RAL7033","Белый","RAL7033",2,1,1550,7965057,null,null,null,null,null,null,null,null,null,null,null,null,null,null,null,null,null,null,null,null,null,null,null,"RAL8004",1200,"ROS5605.01/RAL8004","ROS0080.07",600,"FP-16.01/RAL8004","16-FP.07",400,"P431/RAL8004",3493519]
["RAL7034","Белый","RAL7034",2,1,1550,7770515,null,null,null,null,null,null,null,null,null,null,null,null,null,null,null,null,null,null,null,null,null,null,null,"RAL8007",1200,"ROS5605.01/RAL8007","ROS0080.07",600,"FP-16.01/RAL8007","16-FP.07",400,"P431/RAL8007",3099247]
["RAL7035","Белый","RAL7035",2,1,1550,13422795,null,null,null,null,null,null,null,null,null,null,null,null,null,null,null,null,null,null,null,null,null,null,null,"RAL8008",1200,"ROS5605.01/RAL8008","ROS0080.07",600,"FP-16.01/RAL8008","16-FP.07",400,"P431/RAL8008",2641775]
["RAL7036","Белый","RAL7036",2,1,1550,9934490,null,null,null,null,null,null,null,null,null,null,null,null,null,null,null,null,null,null,null,null,null,null,null,"RAL8011",1200,"ROS5605.01/RAL8011","ROS0080.07",600,"FP-16.01/RAL8011","16-FP.07",400,"P431/RAL8011",2701914]
["RAL7037","Белый","RAL7037",2,1,1550,8290172,null,null,null,null,null,null,null,null,null,null,null,null,null,null,null,null,null,null,null,null,null,null,null,"RAL8012",1200,"ROS5605.01/RAL8012","ROS0080.07",600,"FP-16.01/RAL8012","16-FP.07",400,"P431/RAL8012",3225703]
["RAL7038","Белый","RAL7038",2,1,1550,11581620,null,null,null,null,null,null,null,null,null,null,null,null,null,null,null,null,null,null,null,null,null,null,null,"RAL8014",1200,"ROS5605.01/RAL8014","ROS0080.07",600,"FP-16.01/RAL8014","16-FP.07",400,"P431/RAL8014",2963785]
["RAL7039","Белый","RAL7039",2,1,1550,6252907,null,null,null,null,null,null,null,null,null,null,null,null,null,null,null,null,null,null,null,null,null,null,null,"RAL8015",1200,"ROS5605.01/RAL8015","ROS0080.07",600,"FP-16.01/RAL8015","16-FP.07",400,"P431/RAL8015",3422819]
["RAL7040","Белый","RAL7040",2,1,1550,10920861,null,null,null,null,null,null,null,null,null,null,null,null,null,null,null,null,null,null,null,null,null,null,null,"RAL8016",1200,"ROS5605.01/RAL8016","ROS0080.07",600,"FP-16.01/RAL8016","16-FP.07",400,"P431/RAL8016",2502476]
["RAL7042","Белый","RAL7042",2,1,1550,9803407,null,null,null,null,null,null,null,null,null,null,null,null,null,null,null,null,null,null,null,null,null,null,null,"RAL8017",1200,"ROS5605.01/RAL8017","ROS0080.07",600,"FP-16.01/RAL8017","16-FP.07",400,"P431/RAL8017",2961988]
["RAL7043","Белый","RAL7043",2,1,1550,5329998,null,null,null,null,null,null,null,null,null,null,null,null,null,null,null,null,null,null,null,null,null,null,null,"RAL8019",1200,"ROS5605.01/RAL8019","ROS0080.07",600,"FP-16.01/RAL8019","16-FP.07",400,"P431/RAL8019",3815999]
["RAL7044","Белый","RAL7044",2,1,1550,11713981,null,null,null,null,null,null,null,null,null,null,null,null,null,null,null,null,null,null,null,null,null,null,null,"RAL8022",1200,"ROS5605.01/RAL8022","ROS0080.07",600,"FP-16.01/RAL8022","16-FP.07",400,"P431/RAL8022",2105121]
["RAL7045","Белый","RAL7045",2,1,1550,10131089,null,null,null,null,null,null,null,null,null,null,null,null,null,null,null,null,null,null,null,null,null,null,null,"RAL8023",1200,"ROS5605.01/RAL8023","ROS0080.07",600,"FP-16.01/RAL8023","16-FP.07",400,"P431/RAL8023",3104422]
["RAL7046","Белый","RAL7046",2,1,1550,9341314,null,null,null,null,null,null,null,null,null,null,null,null,null,null,null,null,null,null,null,null,null,null,null,"RAL8024",1200,"ROS5605.01/RAL8024","ROS0080.07",600,"FP-16.01/RAL8024","16-FP.07",400,"P431/RAL8024",3954041]
["RAL7047","Белый","RAL7047",2,1,1550,13619407,null,null,null,null,null,null,null,null,null,null,null,null,null,null,null,null,null,null,null,null,null,null,null,"RAL8025",1200,"ROS5605.01/RAL8025","ROS0080.07",600,"FP-16.01/RAL8025","16-FP.07",400,"P431/RAL8025",4807797]
["RAL8000","Белый","RAL8000",1,1,1550,4354440,null,null,null,null,null,null,null,null,null,null,null,null,null,null,null,null,null,null,null,null,null,null,null,"RAL8028",1200,"ROS5605.01/RAL8028","ROS0080.07",600,"FP-16.01/RAL8028","16-FP.07",400,"P431/RAL8028",2833230]
["RAL8001","Белый","RAL8001",1,1,1550,3173276,null,null,null,null,null,null,null,null,null,null,null,null,null,null,null,null,null,null,null,null,null,null,null,"RAL9001",1200,"ROS5605.01/RAL9001","ROS0080.07",600,"FP-16.01/RAL9001","16-FP.07",400,"P431/RAL9001",14478319]
["RAL8002","Белый","RAL8002",1,1,1550,4280699,null,null,null,null,null,null,null,null,null,null,null,null,null,null,null,null,null,null,null,null,null,null,null,"RAL9002",1200,"ROS5605.01/RAL9002","ROS0080.07",600,"FP-16.01/RAL9002","16-FP.07",400,"P431/RAL9002",13950685]
["RAL8003","Белый","RAL8003",1,1,1550,3101824,null,null,null,null,null,null,null,null,null,null,null,null,null,null,null,null,null,null,null,null,null,null,null,"RAL9003",1200,"ROS5605.01/RAL9003","ROS0080.07",600,"FP-16.01/RAL9003","16-FP.07",400,"P431/RAL9003",16054516]
["RAL8004","Белый","RAL8004",1,1,1550,3493519,null,null,null,null,null,null,null,null,null,null,null,null,null,null,null,null,null,null,null,null,null,null,null,"RAL9004",1200,"ROS5605.01/RAL9004","ROS0080.07",600,"FP-16.01/RAL9004","16-FP.07",400,"P431/RAL9004",3289134]
["RAL8007","Белый","RAL8007",1,1,1550,3099247,null,null,null,null,null,null,null,null,null,null,null,null,null,null,null,null,null,null,null,null,null,null,null,"RAL9005",1200,"ROS5605.01/RAL9005","ROS0080.07",600,"FP-16.01/RAL9005","16-FP.07",400,"P431/RAL9005",854538]
["RAL8008","Белый","RAL8008",1,1,1550,2641775,null,null,null,null,null,null,null,null,null,null,null,null,null,null,null,null,null,null,null,null,null,null,null,"RAL9006",1200,"ROS5605.01/RAL9006","ROS0080.07",600,"FP-16.01/RAL9006","16-FP.07",400,"P431/RAL9006",10922149]
["RAL8011","Белый","RAL8011",1,1,1550,2701914,null,null,null,null,null,null,null,null,null,null,null,null,null,null,null,null,null,null,null,null,null,null,null,"RAL9007",1200,"ROS5605.01/RAL9007","ROS0080.07",600,"FP-16.01/RAL9007","16-FP.07",400,"P431/RAL9007",9211791]
["RAL8012","Белый","RAL8012",1,1,1550,3225703,null,null,null,null,null,null,null,null,null,null,null,null,null,null,null,null,null,null,null,null,null,null,null,"RAL9010",1200,"ROS5605.01/RAL9010","ROS0080.07",600,"FP-16.01/RAL9010","16-FP.07",400,"P431/RAL9010",15727095]
["RAL8014","Белый","RAL8014",1,1,1550,2963785,null,null,null,null,null,null,null,null,null,null,null,null,null,null,null,null,null,null,null,null,null,null,null,"RAL9011",1200,"ROS5605.01/RAL9011","ROS0080.07",600,"FP-16.01/RAL9011","16-FP.07",400,"P431/RAL9011",3091497]
["RAL8015","Белый","RAL8015",1,1,1550,3422819,null,null,null,null,null,null,null,null,null,null,null,null,null,null,null,null,null,null,null,null,null,null,null,"RAL9016",1200,"ROS5605.01/RAL9016","ROS0080.07",600,"FP-16.01/RAL9016","16-FP.07",400,"P431/RAL9016",16120823]
["RAL8016","Белый","RAL8016",1,1,1550,2502476,null,null,null,null,null,null,null,null,null,null,null,null,null,null,null,null,null,null,null,null,null,null,null,"RAL9017",1200,"ROS5605.01/RAL9017","ROS0080.07",600,"FP-16.01/RAL9017","16-FP.07",400,"P431/RAL9017",3091754]
["RAL8017","Белый","RAL8017",1,1,1550,2961988,null,null,null,null,null,null,null,null,null,null,null,null,null,null,null,null,null,null,null,null,null,null,null,"RAL9018",1200,"ROS5605.01/RAL9018","ROS0080.07",600,"FP-16.01/RAL9018","16-FP.07",400,"P431/RAL9018",13489103]
["RAL8019","Белый","RAL8019",1,1,1550,3815999]
["RAL8022","Белый","RAL8022",1,1,1550,2105121]
["RAL8023","Белый","RAL8023",1,1,1550,3104422]
["RAL8024","Белый","RAL8024",1,1,1550,3954041]
["RAL8025","Белый","RAL8025",1,1,1550,4807797]
["RAL8028","Белый","RAL8028",1,1,1550,2833230]
["RAL9001","Белый","RAL9001",0,1,1550,14478319]
["RAL9002","Белый","RAL9002",0,1,1550,13950685]
["RAL9003","Белый","RAL9003",0,1,1550,16054516]
["RAL9004","Белый","RAL9004",1,1,1550,3289134]
["RAL9005","Белый","RAL9005",1,1,1550,854538]
["RAL9010","Белый","RAL9010",0,1,1550,15727095]
["RAL9011","Белый","RAL9011",1,1,1550,3091497]
["RAL9016","Белый","RAL9016",0,1,1550,16120823]
["RAL9017","Белый","RAL9017",1,1,1550,3091754]
["RAL9018","Белый","RAL9018",2,1,1550,13489103]
["Тик х2","Тик х2","Тик х2",1,0,1450,858239]

{"sheet":"Clients","index":2,"n_rows":0,"n_cols":0,"rows_kept":0,"cut":false,"hidden":false,"merged":[]}

{"sheet":"Spec","index":3,"n_rows":4,"n_cols":1,"rows_kept":4,"cut":false,"hidden":false,"merged":[[0,0,0,2]]}
[]
["Спецификация к договору №"]
["Заказчик"]
["Изделие №"]

{"sheet":"BillContract","index":4,"n_rows":42,"n_cols":6,"rows_kept":42,"cut":false,"hidden":false,"merged":[[38,0,38,5],[40,0,40,5],[27,0,27,5],[28,0,28,5],[29,0,29,5],[32,0,32,5],[33,0,33,5],[35,0,35,5],[26,0,26,5],[14,0,14,5],[15,0,15,5],[16,0,16,4],[17,0,17,4],[18,0,18,1],[19,2,19,5],[20,2,20,5],[22,0,22,5],[23,0,23,5],[24,0,24,5],[25,0,25,5],[18,2,18,3],[13,0,13,4],[0,0,0,5],[3,0,3,5],[4,0,4,5],[5,0,5,5],[6,0,6,1],[6,3,6,5],[11,0,11,1],[12,0,12,1],[2,0,2,5],[1,2,1,5]]}
[]
[]
["СЧЕТ-ДОГОВОР №"]
["На изготовление деревянных окон и доборных элементов."]
["Заказчик:"]
["Адрес доставки:"]
["Телефон:",null,"e-mail:"]
["СЧЕТ:"]
["№","Наименование","Ед. изм.","Кол-во","Цена","Стоимость (руб.)"]
[1,null,null,null,null,{"$f":"ROUND(D10*E10,0)","v":0}]
[]
["ИТОГО включая НДС - 22%",null,null,null,null,{"$f":"SUM(F10:F11)","v":0}]
["Скидка",null,null,"%",null,{"$f":"F12*C13/100","v":0}]
["Всего стоимость заказа",null,null,null,null,{"$f":"F12-F13","v":0}]
[]
["Сумма прописью"]
["Предоплата"]
["К доплате",null,null,null,null,{"$f":"F14-F17","v":0}]
["Срок изготовления (ориентир.)"]
[]
[]
["ДОГОВОР:"]
["1. Исполнитель обязуется изготовить изделия согласно Спецификации, являющейся неотъемлемым приложением к данному Счет-договору. "]
["2. Заказчик оплачивает Исполнителю предоплату в размере 70 % от суммы, указанной в Счете, в момент подписания Договора. Оставшиеся 30% Заказчик оплачивает не позднее 3-х дней с момента изготовления изделий. Заказчик получает изделия только после 100% оплаты;"]
["3. Ориентировочный срок изготовления отражается в Счете. Фактический срок изготовления зависит от загруженности предприятия и сложности заказа, но не более 45 рабочих дней с момента согласования всех условий заказа, подписания Заказчиком Спецификации и получения предоплаты Исполнителем; "]
["4. О готовности изделий Исполнитель информирует Заказчика посредством телефонного звонка, смс-сообщением или сообщением по электронной почте. "]
["5. В случае невозможности получения Заказчиком изделий в течение 3-х дней после их изготовления, заказ поступает на ответственное хранение на склад Исполнителя. Затраты Исполнителя по хранению изделий Заказчик оплачивает из расчета 1(одного)% от стоимости изделий за каждые сутки хранения;"]
["6. Заказчик обязуется совершить все необходимые действия по приемке Изделий в момент их получения. Право собственности на Изделия переходит к Заказчику с момента подписания Акта приема-передачи. В случае обнаружения дефектов в Изделиях, Заказчик обязан вернуть бракованное Изделие Исполнителю и указать количество принятых изделий прописью в графе \"Принято\". Претензии по качеству Изделий, которые могли быть обнаружены путем визуального осмотра после подписания Акта приема-передачи не принимаются. В случае отсутствия Заказчика или его законного представителя в месте получения Изделий или уклонения Заказчиком от приемки и подписания Акта приема-передачи, все изделия подлежат возврату на склад Исполнителя, при этом Заказчик обязан компенсировать Исполнителю расходы на транспортировку и хранение Изделий."]
["7. На все изделия распространяется гарантия 12 месяцев при условии соблюдения Заказчиком технологии монтажа и температурно-влажностных условий в помещении, в котором установлены изделия, в соответствии со СНиП и ГОСт,  отсутствия механических повреждений, следов применения чрезмерной силы, нарушения лакокрасочного покрытия и т.д.; Гарантия Исполнителя не распостраняется на подоконники и панели из дерева, шириной более 250 мм, и оконные и балконные блоки установленные с открыванием наружу."]
["8. В своих действиях стороны руководствуются действующим законодательством РФ;"]
[]
[]
["Реквизиты Заказчика:"]
[]
[]
["Заказчик _________________________________/____________________________________/"]
[]
["Реквизиты Исполнителя:"]
[]
[]
["Исполнитель   ____________________________/____________________________________/"]
[null,null,"м.п."]

{"sheet":"ActGoods","index":5,"n_rows":26,"n_cols":6,"rows_kept":26,"cut":false,"hidden":false,"merged":[[24,0,24,5],[5,0,5,5],[6,0,6,1],[6,3,6,5],[11,0,11,5],[12,0,12,5],[13,0,13,5],[16,0,16,5],[17,0,17,5],[19,0,19,5],[21,0,21,5],[22,0,22,5],[4,0,4,5],[0,0,0,5],[3,0,3,5],[2,0,2,5],[1,2,1,5]]}
[]
[]
["Акт приема-передачи №"]
["к договору на изготовление деревянных окон и доборных элементов."]
["Заказчик:"]
["Адрес доставки:"]
["Телефон:",null,"e-mail"]
[]
["№","Наименование","Ед. изм.","Кол-во","Принято","Примечание"]
[1]
[]
["1. Настоящий Акт составлен в том, что Исполнитель поставил, а Заказчик принял вышеперечисленные материалы в полном объеме; в случае обнаружения дефектов, Заказчик обязан вернуть бракованное изделие изготовителю и указать количество принятых изделий прописью в графе \"Принято\"."]
["2. Заказчик не имеет претензий к Исполнителю по качеству и комплектности;"]
["3. В своих действиях стороны руководствуются действующим законодательством РФ;"]
[]
[]
["Реквизиты Заказчика:"]
[]
[]
["Заказчик _________________________________/____________________________________/"]
[]
["Реквизиты Исполнителя:"]
[]
[]
["Исполнитель   ____________________________/____________________________________/"]
[null,null,"м.п."]

{"sheet":"Draw","index":6,"n_rows":1,"n_cols":1,"rows_kept":1,"cut":false,"hidden":false,"merged":[]}
["Спецификация к изделию №"]

{"sheet":"UPD","index":7,"n_rows":46,"n_cols":77,"rows_kept":46,"cut":false,"hidden":false,"merged":[[5,6,5,16],[5,17,5,47],[5,48,5,49],[5,50,5,55],[5,56,5,69],[5,70,5,72],[1,36,1,71],[2,1,4,4],[2,7,2,14],[2,15,2,20],[2,21,2,23],[2,24,2,31],[2,32,2,35],[3,7,3,14],[3,15,3,20],[3,32,3,35],[11,48,11,49],[6,70,6,72],[7,6,7,16],[7,17,7,47],[7,48,7,49],[7,50,7,55],[7,56,7,69],[7,70,7,72],[6,1,6,2],[6,6,6,16],[6,17,6,47],[6,48,6,49],[6,50,6,55],[6,56,6,69],[12,5,12,17],[13,1,14,4],[13,5,14,8],[13,9,14,17],[13,18,14,21],[13,22,13,25],[8,70,8,72],[9,6,9,16],[9,17,9,47],[9,48,9,49],[9,50,10,61],[9,62,10,69],[9,70,10,72],[10,6,10,16],[10,17,10,47],[10,48,10,49],[8,1,11,4],[8,6,8,16],[8,17,8,47],[8,48,8,49],[8,50,8,55],[8,56,8,69],[11,6,11,16],[11,17,11,47],[15,1,15,4],[15,5,15,8],[15,9,15,17],[15,18,15,21],[15,22,15,23],[15,24,15,25],[13,57,14,60],[13,61,13,67],[13,68,14,71],[14,22,14,23],[14,24,14,25],[14,61,14,65],[14,66,14,67],[13,26,14,28],[13,29,14,38],[13,39,14,46],[13,47,14,50],[13,51,14,52],[13,53,14,56],[15,57,15,60],[15,61,15,65],[15,66,15,67],[15,68,15,71],[15,47,15,50],[16,5,16,8],[16,9,16,17],[16,18,16,21],[16,22,16,23],[16,24,16,25],[16,26,16,28],[15,26,15,28],[15,29,15,38],[15,39,15,46],[15,51,15,52],[15,53,15,56],[16,61,16,65],[16,66,16,67],[16,68,16,71],[17,5,17,8],[17,9,17,17],[17,18,17,21],[17,22,17,23],[17,24,17,25],[17,26,17,28],[17,29,17,38],[16,29,16,38],[16,39,16,46],[16,47,16,50],[16,51,16,52],[16,53,16,56],[16,57,16,60],[17,66,17,67],[17,68,17,71],[17,47,17,50],[17,51,17,52],[17,53,17,56],[17,57,17,60],[17,61,17,65],[18,68,18,71],[19,5,19,17],[19,29,19,38],[19,39,19,46],[19,47,19,52],[19,53,19,56],[19,57,19,60],[19,61,19,71],[18,47,18,50],[18,51,18,52],[18,53,18,56],[18,57,18,60],[18,61,18,65],[18,66,18,67],[18,5,18,8],[18,9,18,17],[18,18,18,21],[18,22,18,23],[18,24,18,25],[18,26,18,28],[18,29,18,38],[18,39,18,46],[17,39,17,46],[26,2,26,18],[27,19,27,68],[28,2,28,13],[28,14,28,68],[28,69,29,71],[29,14,29,68],[33,54,33,59],[33,63,33,68],[23,49,23,70],[24,20,24,26],[24,28,24,44],[24,49,24,70],[25,19,26,68],[25,69,27,71],[21,1,24,4],[21,8,21,19],[21,28,21,44],[21,46,21,54],[21,65,21,70],[22,20,22,26],[22,28,22,44],[22,55,22,63],[22,65,22,70],[23,8,23,19],[31,2,31,37],[31,44,31,68],[32,11,32,22],[32,38,33,40],[32,54,32,59],[32,69,33,71],[33,2,33,9],[33,11,33,22],[33,25,33,37],[33,44,33,51],[34,69,34,71],[36,2,36,37],[36,44,36,68],[37,2,37,37],[37,38,38,40],[37,44,37,68],[37,69,38,71],[38,2,38,37],[38,44,38,68],[34,2,34,13],[34,14,34,22],[34,38,34,40],[34,44,34,51],[34,54,34,59],[40,69,41,71],[41,2,41,9],[41,11,41,22],[41,25,41,37],[41,44,41,51],[41,54,41,59],[41,63,41,68],[39,2,39,37],[39,44,39,68],[40,2,40,9],[40,11,40,22],[40,25,40,37],[40,38,41,40],[40,54,40,59],[45,2,45,9],[45,44,45,51],[42,2,42,37],[42,44,42,68],[43,2,43,37],[43,38,44,40],[43,44,43,68],[43,69,44,71],[44,2,44,37],[44,44,44,68]]}
[]
[null,null,null,null,null,null,null,null,null,null,null,null,null,null,null,null,null,null,null,null,null,null,null,null,null,null,null,null,null,null,null,null,null,null,null,null,"Приложение № 1 к постановлению Правительства Российской Федерации от 26 декабря 2011 г. № 1137\n(в редакции постановления Правительства Российской Федерации от 16 августа 2024 г. № 1096)",null,null,null,null,null,null,null,null,null,null,null,null,null,null,null,null,null,null,null,null,null,null,null,null,null,null,null,null,null,null,null,null,null,null,null,null,null,null,null,0]
[null,"Универсальный передаточный\nдокумент",null,null,null,null,null,"Счет-фактура №",null,null,null,null,null,null,null,null,null,null,null,null,null,"от",null,null,null,null,null,null,null,null,null,null,"(1)"]
[null,null,null,null,null,null,null,"Исправление №",null,null,null,null,null,null,null,"--",null,null,null,null,null,"от",null,null,"--",null,null,null,null,null,null,null,"(1а)"]
[]
[null,null,null,null,null,null,"Продавец:",null,null,null,null,null,null,null,null,null,null,null,null,null,null,null,null,null,null,null,null,null,null,null,null,null,null,null,null,null,null,null,null,null,null,null,null,null,null,null,null,null,"(2)",null,"Покупатель:",null,null,null,null,null,null,null,null,null,null,null,null,null,null,null,null,null,null,null,"(6)"]
[null,"    Статус:",null,2,null,null,"Адрес:",null,null,null,null,null,null,null,null,null,null,null,null,null,null,null,null,null,null,null,null,null,null,null,null,null,null,null,null,null,null,null,null,null,null,null,null,null,null,null,null,null,"(2а)",null,"Адрес:",null,null,null,null,null,null,null,null,null,null,null,null,null,null,null,null,null,null,null,"(6а)"]
[null,null,null,null,null,null,"ИНН/КПП продавца:",null,null,null,null,null,null,null,null,null,null,null,null,null,null,null,null,null,null,null,null,null,null,null,null,null,null,null,null,null,null,null,null,null,null,null,null,null,null,null,null,null,"(2б)",null,"ИНН/КПП покупателя:",null,null,null,null,null,null,null,null,null,null,null,null,null,null,null,null,null,null,null,"(6б)"]
[null,"1 – счет-фактура и передаточный документ (акт)\n2 – передаточный документ (акт)",null,null,null,null,"Грузоотправитель и его адрес:",null,null,null,null,null,null,null,null,null,null,null,null,null,null,null,null,null,null,null,null,null,null,null,null,null,null,null,null,null,null,null,null,null,null,null,null,null,null,null,null,null,"(3)",null,"Валюта: наименование, код",null,null,null,null,null,null,null,null,null,null,null,null,null,null,null,null,null,null,null,"(7)"]
[null,null,null,null,null,null,"Грузополучатель и его адрес:",null,null,null,null,null,null,null,null,null,null,null,null,null,null,null,null,null,null,null,null,null,null,null,null,null,null,null,null,null,null,null,null,null,null,null,null,null,null,null,null,null,"(4)",null,"Идентификатор государственного контракта, договора (соглашения) (при наличии):",null,null,null,null,null,null,null,null,null,null,null,null,null,null,null,null,null,null,null,"(8)"]
[null,null,null,null,null,null,"К платежно-расчетному документу",null,null,null,null,null,null,null,null,null,null,null,null,null,null,null,null,null,null,null,null,null,null,null,null,null,null,null,null,null,null,null,null,null,null,null,null,null,null,null,null,null,"(5)"]
[null,null,null,null,null,null,"Документ об отгрузке",null,null,null,null,null,null,null,null,null,null,{"$f":"\"Универсальный передаточный документ, №\"&P3&\" от \"&Y3","v":"Универсальный передаточный документ, № от "},null,null,null,null,null,null,null,null,null,null,null,null,null,null,null,null,null,null,null,null,null,null,null,null,null,null,null,null,null,null,"(5а)"]
[]
[null,"Код товара/ работ, услуг",null,null,null,"№\nп/п",null,null,null,"Наименование товара (описание выполненных работ, оказанных услуг), имущественного права",null,null,null,null,null,null,null,null,"Код вида\nтовара",null,null,null,"Единица\nизмерения",null,null,null,"Коли-\nчество \n(объем)",null,null,"Цена (тариф)\nза\nединицу измерения",null,null,null,null,null,null,null,null,null,"Стоимость товаров (работ, услуг), имущест-\nвенных прав без налога - всего",null,null,null,null,null,null,null,"В том\nчисле\nсумма \nакциза",null,null,null,"Налоговая ставка",null,"Сумма налога, предъяв-\nляемая покупателю",null,null,null,"Стоимость товаров (работ, услуг), имущест-\nвенных прав с налогом - всего",null,null,null,"Страна\nпроисхождения товара",null,null,null,null,null,null,"Регистрационный номер декларации на товары или регистрационный номер партии товара, подлежащего прослеживаемости"]
[null,null,null,null,null,null,null,null,null,null,null,null,null,null,null,null,null,null,null,null,null,null,"код",null,"условное обозна-\nчение (нацио-\nнальное)",null,null,null,null,null,null,null,null,null,null,null,null,null,null,null,null,null,null,null,null,null,null,null,null,null,null,null,null,null,null,null,null,null,null,null,null,"циф-\nро-\nвой код",null,null,null,null,"краткое \nнаименова-\nние"]
[null,"А",null,null,null,"1",null,null,null,"1а",null,null,null,null,null,null,null,null,"1б",null,null,null,"2",null,"2а",null,"3",null,null,"4",null,null,null,null,null,null,null,null,null,"5",null,null,null,null,null,null,null,"6",null,null,null,"7",null,"8",null,null,null,"9",null,null,null,"10",null,null,null,null,"10а",null,"11"]
[null,null,null,null,null,1,null,null,null,"Окно деревянное с комплектацией.",null,null,null,null,null,null,null,null,"--",null,null,null,"055",null,"м2",null,1,null,null,{"$f":"AN17/AA17","v":0},null,null,null,null,null,null,null,null,null,{"$f":"BF17-IF($D$7=2,0,BB17)","v":0},null,null,null,null,null,null,null,"Без акциза",null,null,null,{"$f":"IF($D$7=2,\"Без НДС\",$BY$2&\"%\")","v":"Без НДС"},null,{"$f":"IF($D$7=2,\"--\",ROUND(BF17*$BY$2/(100+$BY$2),2))","v":"--"},null,null,null,null,null,null,null,"--",null,null,null,null,"--",null,"--"]
[null,null,null,null,null,2,null,null,null,"Доставка.",null,null,null,null,null,null,null,null,"--",null,null,null,"796",null,"шт",null,1,null,null,{"$f":"AN18/AA18","v":0},null,null,null,null,null,null,null,null,null,{"$f":"BF18-IF($D$7=2,0,BB18)","v":0},null,null,null,null,null,null,null,"Без акциза",null,null,null,{"$f":"IF($D$7=2,\"Без НДС\",$BY$2&\"%\")","v":"Без НДС"},null,{"$f":"IF($D$7=2,\"--\",ROUND(BF18*$BY$2/(100+$BY$2),2))","v":"--"},null,null,null,null,null,null,null,"--",null,null,null,null,"--",null,"--"]
[null,null,null,null,null,3,null,null,null,"Монтаж окон.",null,null,null,null,null,null,null,null,"--",null,null,null,"796",null,"шт",null,1,null,null,{"$f":"AN19/AA19","v":0},null,null,null,null,null,null,null,null,null,{"$f":"BF19-IF($D$7=2,0,BB19)","v":0},null,null,null,null,null,null,null,"Без акциза",null,null,null,{"$f":"IF($D$7=2,\"Без НДС\",$BY$2&\"%\")","v":"Без НДС"},null,{"$f":"IF($D$7=2,\"--\",ROUND(BF19*$BY$2/(100+$BY$2),2))","v":"--"},null,null,null,null,null,null,null,"--",null,null,null,null,"--",null,"--"]
[null,null,null,null,null,"Всего к оплате (9)",null,null,null,null,null,null,null,null,null,null,null,null,null,null,null,null,null,null,null,null,null,null,null,null,null,null,null,null,null,null,null,null,null,{"$f":"SUM(AN17:AU19)","v":0},null,null,null,null,null,null,null,"Х",null,null,null,null,null,{"$f":"IF($D$7=2,\"--\",SUM(BB17:BE19))","v":"--"},null,null,null,{"$f":"SUM(BF17:BI19)","v":0}]
[]
[null,"Документ составлен на\n1 листе",null,null,null,null,null,null,"Руководитель организации\nили иное уполномоченное лицо",null,null,null,null,null,null,null,null,null,null,null,null,null,null,null,null,null,null,null,null,null,null,null,null,null,null,null,null,null,null,null,null,null,null,null,null,null,"Главный бухгалтер\nили иное уполномоченное лицо"]
[null,null,null,null,null,null,null,null,null,null,null,null,null,null,null,null,null,null,null,null,"(подпись)",null,null,null,null,null,null,null,"(ф.и.о.)",null,null,null,null,null,null,null,null,null,null,null,null,null,null,null,null,null,null,null,null,null,null,null,null,null,null,"(подпись)",null,null,null,null,null,null,null,null,null,"(ф.и.о.)"]
[null,null,null,null,null,null,null,null,"Индивидуальный предприниматель\nили иное уполномоченное лицо"]
[null,null,null,null,null,null,null,null,null,null,null,null,null,null,null,null,null,null,null,null,"(подпись)",null,null,null,null,null,null,null,"(ф.и.о.)",null,null,null,null,null,null,null,null,null,null,null,null,null,null,null,null,null,null,null,null,"(реквизиты свидетельства о государственной  регистрации индивидуального предпринимателя)"]
[null,null,null,null,null,null,null,null,null,null,null,null,null,null,null,null,null,null,null,"Основной договор",null,null,null,null,null,null,null,null,null,null,null,null,null,null,null,null,null,null,null,null,null,null,null,null,null,null,null,null,null,null,null,null,null,null,null,null,null,null,null,null,null,null,null,null,null,null,null,null,null,"[8]"]
[null,null,"Основание передачи (сдачи) / получения (приемки)"]
[null,null,null,null,null,null,null,null,null,null,null,null,null,null,null,null,null,null,null,"(договор; доверенность и др.)"]
[null,null,"Данные о транспортировке и грузе",null,null,null,null,null,null,null,null,null,null,null,null,null,null,null,null,null,null,null,null,null,null,null,null,null,null,null,null,null,null,null,null,null,null,null,null,null,null,null,null,null,null,null,null,null,null,null,null,null,null,null,null,null,null,null,null,null,null,null,null,null,null,null,null,null,null,"[9]"]
[null,null,null,null,null,null,null,null,null,null,null,null,null,null,"(транспортная накладная, поручение экспедитору, экспедиторская / складская расписка и др. / масса нетто/ брутто груза, если не приведены ссылки на транспортные документы, содержащие эти сведения)"]
[]
[null,null,"Товар (груз) передал / услуги, результаты работ, права сдал",null,null,null,null,null,null,null,null,null,null,null,null,null,null,null,null,null,null,null,null,null,null,null,null,null,null,null,null,null,null,null,null,null,null,null,null,null,null,null,null,null,"Товар (груз) получил / услуги, результаты работ, права принял"]
[null,null,null,null,null,null,null,null,null,null,null,null,null,null,null,null,null,null,null,null,null,null,null,null,null,null,null,null,null,null,null,null,null,null,null,null,null,null,"[10]",null,null,null,null,null,null,null,null,null,null,null,null,null,null,null,null,null,null,null,null,null,null,null,null,null,null,null,null,null,null,"[15]"]
[null,null,"(должность)",null,null,null,null,null,null,null,null,"(подпись)",null,null,null,null,null,null,null,null,null,null,null,null,null,"(ф.и.о.)",null,null,null,null,null,null,null,null,null,null,null,null,null,null,null,null,null,null,"(должность)",null,null,null,null,null,null,null,null,null,"(подпись)",null,null,null,null,null,null,null,null,"(ф.и.о.)"]
[null,null,"Дата отгрузки, передачи (сдачи)",null,null,null,null,null,null,null,null,null,null,null,{"$f":"Y3","v":"00:00:00"},null,null,null,null,null,null,null,null,null,null,null,null,null,null,null,null,null,null,null,null,null,null,null,"[11]",null,null,null,null,null,"Дата получения (приемки)",null,null,null,null,null,null,null,null,null,"«      »                    20     года",null,null,null,null,null,null,null,null,null,null,null,null,null,null,"[16]"]
[]
[null,null,"Иные сведения об отгрузке, передаче",null,null,null,null,null,null,null,null,null,null,null,null,null,null,null,null,null,null,null,null,null,null,null,null,null,null,null,null,null,null,null,null,null,null,null,null,null,null,null,null,null,"Иные сведения о получении, приемке"]
[null,null,null,null,null,null,null,null,null,null,null,null,null,null,null,null,null,null,null,null,null,null,null,null,null,null,null,null,null,null,null,null,null,null,null,null,null,null,"[12]",null,null,null,null,null,null,null,null,null,null,null,null,null,null,null,null,null,null,null,null,null,null,null,null,null,null,null,null,null,null,"[17]"]
[null,null,"(ссылки на неотъемлемые приложения, сопутствующие документы, иные документы и т.п.)",null,null,null,null,null,null,null,null,null,null,null,null,null,null,null,null,null,null,null,null,null,null,null,null,null,null,null,null,null,null,null,null,null,null,null,null,null,null,null,null,null,"(информация о наличии/отсутствии претензии; ссылки на неотъемлемые приложения, и другие  документы и т.п.)"]
[null,null,"Ответственный за правильность оформления факта хозяйственной жизни",null,null,null,null,null,null,null,null,null,null,null,null,null,null,null,null,null,null,null,null,null,null,null,null,null,null,null,null,null,null,null,null,null,null,null,null,null,null,null,null,null,"Ответственный за правильность оформления факта хозяйственной жизни"]
[null,null,"Генеральный директор",null,null,null,null,null,null,null,null,null,null,null,null,null,null,null,null,null,null,null,null,null,null,null,null,null,null,null,null,null,null,null,null,null,null,null,"[13]",null,null,null,null,null,null,null,null,null,null,null,null,null,null,null,null,null,null,null,null,null,null,null,null,null,null,null,null,null,null,"[18]"]
[null,null,"(должность)",null,null,null,null,null,null,null,null,"(подпись)",null,null,null,null,null,null,null,null,null,null,null,null,null,"(ф.и.о.)",null,null,null,null,null,null,null,null,null,null,null,null,null,null,null,null,null,null,"(должность)",null,null,null,null,null,null,null,null,null,"(подпись)",null,null,null,null,null,null,null,null,"(ф.и.о.)"]
[null,null,"Наименование экономического субъекта – составителя документа (в т.ч. комиссионера / агента)",null,null,null,null,null,null,null,null,null,null,null,null,null,null,null,null,null,null,null,null,null,null,null,null,null,null,null,null,null,null,null,null,null,null,null,null,null,null,null,null,null,"Наименование экономического субъекта – составителя документа"]
[null,null,{"$f":"R6&\", ИНН \"&R8","v":", ИНН "},null,null,null,null,null,null,null,null,null,null,null,null,null,null,null,null,null,null,null,null,null,null,null,null,null,null,null,null,null,null,null,null,null,null,null,"[14]",null,null,null,null,null,{"$f":"BE6&\", ИНН \"&BE8","v":", ИНН "},null,null,null,null,null,null,null,null,null,null,null,null,null,null,null,null,null,null,null,null,null,null,null,null,"[19]"]
[null,null,"(может не заполняться при проставлении печати в М.П., может быть указан ИНН / КПП)",null,null,null,null,null,null,null,null,null,null,null,null,null,null,null,null,null,null,null,null,null,null,null,null,null,null,null,null,null,null,null,null,null,null,null,null,null,null,null,null,null,"(может не заполняться при проставлении печати в М.П., может быть указан ИНН / КПП)"]
[null,null,"М.П.",null,null,null,null,null,null,null,null,null,null,null,null,null,null,null,null,null,null,null,null,null,null,null,null,null,null,null,null,null,null,null,null,null,null,null,null,null,null,null,null,null,"М.П."]

{"sheet":"Contract","index":8,"n_rows":113,"n_cols":1,"rows_kept":113,"cut":false,"hidden":false,"merged":[]}
["ДОГОВОР ПОДРЯДА № [ContractNumber]"]
["на изготовление, доставку и монтаж оконных блоков и доборных элементов из дерева."]
["[City]                                                                                                                           [Date] г."]
["[Contractor], именуемое в дальнейшем «Исполнитель», с одной стороны, и [Customer], именуемое в дальнейшем «Заказчик», с другой стороны, вместе именуемые в дальнейшем «Стороны», заключили настоящий договор, в дальнейшем «Договор», о нижеследующем:"]
["1. ПРЕДМЕТ ДОГОВОРА"]
["1.1. Исполнитель в рамках Договора принимает на себя обязательства по поручению Заказчика своими силами или с привлечением третьих лиц из своих материалов изготовить оконные блоки и доборные элементы из дерева, далее именуемые «Изделия» и, если это предусмотрено Договором, выполнить работы по доставке и монтажу Изделий, далее именуемые «Работы». "]
["Заказчик в рамках Договора обязуется оплатить стоимость Изделий и Работ, создать необходимые условия для выполнения Работ, принять Изделия и выполненные Работы в порядке, установленном Договором."]
["1.2. Изделия изготавливаются в соответствии со «Спецификацией» (Приложение №1), являющейся неотъемлемой частью Договора. В Спецификации должны быть указаны конфигурации, количество, цвет отделки (покраски), площадь, стоимость Изделий, а также объем и стоимость Работ и адрес доставки и монтажа Изделий. "]
["1.3. При исполнении Договора Стороны руководствуются положениями Договора и действующим законодательством Российской Федерации."]
["2. ПРАВА И ОБЯЗАННОСТИ СТОРОН"]
["2.1. Исполнитель обязан:"]
["2.1.1. Осуществить изготовление Изделий и выполнение Работ, указанных в п.1 настоящего Договора, не позднее 45 рабочих дней после предварительной оплаты и подписания Заказчиком Спецификации. При необходимости, срок изготовления Изделий и выполнения Работ может быть увеличен Исполнителем с письменным уведомлением Заказчика, но не более чем на 10 рабочих дней. В случае если оплата и изготовление Изделий производятся поэтапно, то Стороны составляют календарный план изготовления Изделий и производства Работ, далее «Календарный план» (Приложение №2), являющийся неотъемлемым приложением к Договору. В Календарном плане должно быть указано количество и сроки изготовления Изделий, объем и сроки производства Работ и порядок оплаты."]
["2.1.2. Предоставить все необходимые для выполнения Работ по Договору материалы, инструменты, приспособления и комплектующие. В случае если есть необходимость в предоставлении Заказчиком каких-либо материалов, инструментов, приспособлений и комплектующих этот факт отражается в Спецификации."]
["2.1.3. Передать Заказчику Изделия по акту приемки-передачи и сдать выполненные работы по Акту приемки выполненных работ. Передать по требованию Заказчика счет на оплату и счет-фактуру. Если ни одна из сторон не изъявила возражений, вышеуказанные акты и счета-фактуры могут быть заменены Универсальным передаточным документом."]
["2.1.4. Безвозмездно исправить выявленные Заказчиком в процессе приемки и указанные в Акте приемки-передачи или акте выполненных работ недостатки в разумный срок."]
["2.1.5. В ходе выполнения Работ осуществлять необходимые мероприятия по технике безопасности, охране окружающей среды и соблюдению правил пожарной безопасности."]
["2.2. Исполнитель имеет право:"]
["2.2.1. В одностороннем порядке изменить срок выполнения обязательств по Договору или отказаться от Договора при невыполнении Заказчиком существенных условий Договора."]
["2.2.2. Приостановить Работы, немедленно известить об этом Заказчика, и до получения от него письменных указаний не возобновлять работы при обнаружении: не зависящих от Исполнителя обстоятельств, препятствующих исполнению обязательств по настоящему Договору, либо угрожающих качеству результатов выполняемой работы, либо создающих невозможность ее завершения в срок, либо влияющих на финансовый результат работ. Составить об этом Акт соответствующего содержания при этом срок исполнения Работ увеличивается на время устранения вышеуказанных обстоятельств."]
["2.3. Заказчик обязан:"]
["2.3.1. Оплатить стоимость Договора в соответствии с. п.3 Договора."]
["2.3.2. Обеспечить возможность выполнения Исполнителем всех Работ в указанные в настоящем Договоре сроки, в том числе обеспечить наличие подъездных путей с твердым покрытием не далее, чем 20 (двадцать) метров до места монтажа Изделий по горизонтали. При монтаже Изделий выше первого этажа обеспечить наличие грузоподъемной техники (грузовой лифт, лебедка и т. п.) если ручной подъем Изделий не предусмотрен Спецификацией. Обеспечить свободный проход к месту монтажа Изделий, в том числе при необходимости обеспечить наличие строительных лесов, соответствующих стандартам безопасности. Обеспечить в месте доставки и монтажа Изделий условия для хранения Изделий в сухом, отапливаемом помещении, условия для хранения инструмента и приспособлений сотрудников Исполнителя, в случае долговременного пребывания сотрудников Исполнителя условия для отдыха и приема пищи, а также возможность подключения электроинструмента непосредственно в месте монтажа напряжением 220 вольт.  "]
["2.3.3. Присутствовать и принять Изделия при доставке или самовывозе, подписав соответствующий Акт о приемке-передаче, а также обеспечить сохранность Изделий до начала проведения Работ. Если по каким-либо причинам Заказчик не может присутствовать лично и принять Изделия при доставке, в таком случае от лица Заказчика должен присутствовать Представитель, действующий на основании доверенности. При наличии дефектов в Изделиях, которые могут быть обнаружены при обычной приемке, Заказчик или его Представитель должны сделать соответствующую запись в Акте приемки-передачи и вернуть бракованное Изделие Исполнителю. Все Изделия, оставшиеся после доставки, считаются принятыми, а отказ Заказчика от подписания Акта приемки-передачи - немотивированным. При немотивированном отказе от подписания Акта приемки-передачи или отсутствии Заказчика или его Представителя Акт приемки-передачи подписывается Исполнителем в одностороннем порядке."]
["2.3.4. Подписывать Акты составленные согласно п. 2.2.2. Своевременно принимать меры для устранения обстоятельств согласно п. 2.2.2."]
["2.3.5. В день окончания монтажа принять выполненные Исполнителем Работы с одновременным подписанием Акта приемки выполненных работ. При наличии недостатков выполненных Работ, либо мотивированных претензий к качеству указать их в Акте приемки выполненных работ. В случае немотивированного отказа в подписании Акта приемки выполненных работ или отсутствия Заказчика или его Представителя в месте монтажа Работы считаются принятыми, а Акт приемки выполненных работ подписывается Исполнителем в одностороннем порядке."]
["2.3.6. Ознакомиться с Инструкцией по эксплуатации Изделий, далее «Инструкция» (Приложение №3), являющейся неотъемлемым приложением к Договору и соблюдать ее в процессе эксплуатации Изделий."]
["2.4. Заказчик имеет право:"]
["2.4.1. Отказаться от исполнения настоящего Договора, письменно уведомив об этом Исполнителя и возместив ему расходы, произведенные им до этого момента в целях надлежащего исполнения настоящего Договора (т. е. оплатив ему стоимость уже изготовленных Изделий, заготовленных материалов и выполненных Работ)."]
["2.4.2. Требовать безвозмездного исправления только тех недостатков, которые выявлены в процессе приемки Изделий и выполненных Работ, и указаны в соответствующем Акте, а также скрытых дефектов, если их выявление в процессе приемки было невозможно."]
["3. СТОИМОСТЬ РАБОТ И ПОРЯДОК РАСЧЕТОВ"]
["3.1. Стоимость работ по Договору согласована сторонами в Спецификации, составляет [Price] ([PriceInWords]) рублей, [VAT]."]
["3.2. После подписания Договора Заказчик производит оплату (предоплату) Договора в размере [Payment] ([PaymentInWords]) рублей. Окончательный расчет в размере [FinalPayment] ([FinalPaymentInWords]) рублей Заказчик осуществляет в течение 3 (трех) банковских дней после сообщения Исполнителя о готовности Изделий."]
["3.3. Датой начала срока исполнения по Договору считается следующий день после подписания Договора и всех приложений к нему, а также поступления предоплаты на расчетный счет Исполнителя."]
["3.4. Доставка и монтаж Изделий, либо отгрузка со склада Исполнителя при самовывозе осуществляется только при поступлении 100% денежных средств от стоимости Договора на расчетный счет Исполнителя."]
["3.5. Стоимость настоящего Договора может измениться в процессе исполнения Договора в связи с изменением Заказчиком количества или конфигурации Изделий или объема Работ. При этом Стороны подписывают Дополнительное соглашение к Договору и изменяют или добавляют Спецификацию."]
["3.6. Заказчик гарантирует оплату согласованных Сторонами дополнительных работ, связанных с выполнением условий настоящего Договора."]
["4. ПОРЯДОК ПРИЕМКИ ИЗДЕЛИЙ И ПРИЕМКИ РАБОТ"]
["4.1. Исполнитель уведомляет Заказчика в письменной форме о готовности Изделий не менее чем за два дня до предполагаемой даты доставки или отгрузки самовывозом. "]
["4.2. При доставке или самовывозе Изделий приемка Заказчиком непосредственно в момент доставки или самовывоза. Заказчик принимает Изделия поштучно методом визуального осмотра на предмет соответствия Изделия Спецификации, требованиям государственных стандартов и отсутствия видимых дефектов. Приемке подлежит каждое Изделие вне зависимости от размеров партии. В остальном Стороны при сдаче-приемке Изделий руководствуются требованиями ГОСТа 24700-99 «Блоки оконные деревянные со стеклопакетами. Технические условия» для оконных блоков и соответствующими ГОСТами для других Изделий. "]
["4.3. Заказчик несет ответственность за свое отсутствие или отсутствие своего Представителя на объекте в момент доставки Изделий. Повторная доставка назначается Исполнителем и оплачивается Заказчиком дополнительно до дня доставки."]
["4.4. Исполнитель несет все риски утраты и повреждения Изделий до момента передачи их Заказчику. Все Изделия, принятые Заказчиком, переходят в его собственность в момент подписания Акта приемки-передачи Изделий. Заказчик в соответствии с гражданским законодательством несет все риски утраты и повреждения Изделий с момента их приемки в соответствии с п. 4.2 Договора."]
["4.5. Дата и время проведения Работ по Договору согласовываются с Заказчиком в письменном виде не менее чем за три дня до предполагаемой даты проведения Работ."]
["4.6. Работы принимается Заказчиком или его Представителем непосредственно в день окончания Работ. Все Работы принимаются Заказчиком визуально на предмет соответствия ГОСТам и СНиПам. Все результаты принятых работ переходят в собственность Заказчика после подписания Акта приемки выполненных работ."]
["5. ОВЕТСТВЕННОСТЬ СТОРОН"]
["5.1. Исполнитель несет ответственность за ненадлежащее качество предоставленных им материалов, а также за предоставление материалов, обремененных правами третьих лиц, в порядке, предусмотренном действующим законодательством РФ."]
["5.2.В случае неисполнения либо ненадлежащего исполнения своих обязательств по Договору Исполнитель обязан уплатить Заказчику неустойку (пеню) в размере 0,1% стоимости Договора за каждый день просрочки."]
["5.3. Настоящий договор может быть изменен или дополнен по соглашению сторон. Все изменения и дополнения к Договору подписываются Сторонами и являются его неотъемлемыми частями."]
["5.4. В случае монтажа Изделий не силами Исполнителя, Исполнитель не несет ответственности за качество установки и за сохранение эксплуатационных характеристик Изделий. Гарантия на монтажные работы в данном случае не предоставляется."]
["5.4. Договор может быть досрочно расторгнут по соглашению Сторон либо по другим основаниям, предусмотренным действующим законодательством РФ."]
["5.5. Во всех случаях, не предусмотренном Договором, стороны будут руководствоваться действующим законодательством РФ."]
["6.ФОРС-МАЖОРНЫЕ ОБСТОЯТЕЛЬСТВА"]
["6.1. Стороны по Договору освобождаются от ответственности за частичное или полное неисполнение обязательств, если неисполнение принятых на себя Сторонами обязательств явилось следствием природных явлений, иных действий внешних объективных факторов и прочих установленных обстоятельств непреодолимой силы, за которые поименованные выше стороны не отвечают и фактически предотвратить неблагоприятное воздействие таковых они не имеют возможности."]
["6.2. При наступлении указанных в п.6.1 обстоятельств, Сторона, для которой создалась невозможность исполнения ее обязательств по настоящему договору, должна в кратчайший срок известить о них в письменном виде другую сторону, с приложением соответствующих свидетельств."]
["7. ЗАКЛЮЧИТЕЛЬНЫЕ ПОЛОЖЕНИЯ"]
["7.1. Настоящий Договор вступает в силу с момента подписания, действует до исполнения Сторонами всех обязательств по Договору и считается исполненным после подписания Сторонами Акта приемки-передачи Изделий, Акта приемки выполненных работ, либо Универсального передаточного документа, а также проведения всех взаиморасчетов."]
["7.2. Все устные или письменные договоренности о порядке производства работ, перечня работ, их сроков, порядка оплаты достигнутые сторонами до заключения Договора, оформляется исключительно в письменной форме, с обязательным указанием сроков, размеров и иных характеристик работ и условий, в виде приложений к Договору, являющихся его неотъемлемой частью."]
["7.3. На все произведенные Исполнителем Изделия и проведенные Работы предоставляется гарантия сроком на 36 (тридцать шесть) месяцев."]
["7.4. Заказчик лишается гарантии Исполнителя в случае:"]
["7.4.1        Если монтаж Изделий был проведен не специалистами Исполнителя;"]
["7.4.2        Если неисправности Изделий вызваны механическими повреждениями, разборкой и другим посторонним вмешательством в конструкцию Изделия, эксплуатацией с нарушениями требований Инструкции."]
["7.5. Договор составлен в двух экземплярах, имеющих одинаковую юридическую силу, по одному для каждой из Сторон."]
["7.6. К настоящему Договору прилагается и является его неотъемлемой частью:"]
["Спецификация Изделий (приложение №1 к Договору);"]
["Календарный план изготовления Изделий и производства Работ (приложение №2 к Договору) в случае его оформления;"]
["Инструкция по эксплуатации Изделий (приложение №3 к Договору)"]
["Акт приемки Изделий, Акт выполненных работ, Универсальный передаточный документ и другие Акты (в процессе исполнения Договора);"]
["Дополнительные соглашения об изменении условий Договора, в случае их оформления;"]
["7.7. Все уведомления по настоящему Договору производится по реквизитам, указанным в Договоре. Уведомления, отправленные посредством электронной почты, считаются надлежащими уведомлениями в письменном виде."]
["8. РАЗРЕШЕНИЕ СПОРОВ"]
["8.1. Все споры и разногласия, возникшие в процессе исполнения Договора, подлежат разрешению в претензионном порядке, а при недостижении Сторонами соглашения по спорным вопросам, споры передаются на рассмотрение суда соответствующей юрисдикции."]
["9. ЮРИДИЧЕСКИЕ АДРЕСА, БАНКОВСКИЕ РЕКВИЗИТЫ И ПОДПИСИ СТОРОН"]
["Подрядчик:"]
["[ContractorSign]"]
[" ___________________/______________________________/"]
["Заказчик:"]
["[CastomerSign]"]
[" ___________________/_____________________________/"]
[]
["Приложение №3 к Договору подряда № [ContractNumber] от [Date] г."]
["ИНСТРУКЦИЯ"]
["по эксплуатации Изделий"]
["1.   Монтаж Изделий необходимо производить в помещениях, где выполнены отделочные работы (кроме штукатурки откосов). При температуре воздуха ниже +18 оС «мокрые» процессы (штукатурка, заливка стяжки и т. д.) при влажности выше 60% необходимо производить до установки новых Изделий. Изделия следует устанавливать в конце ремонта, когда в помещении установится нормальный температурно-влажностный режим. "]
["2.   Изделия должны эксплуатироваться в помещениях, имеющих отопление и вентиляцию, при температуре воздуха внутри помещения не ниже 20 градусов и не выше 40 градусов по Цельсию, относительной влажности не более 45%. Существенные отклонения от указанных режимов могут привести к затруднению открывания, выпадению конденсата на стеклах и нарушению лакокрасочного покрытия Изделий. Заказчик обязан установить отопительные приборы и обеспечить вентиляцию помещений, в которых установлены Изделия, таким образом, чтобы температурно-влажностные характеристики в помещении и в зоне установки Изделий соответствовали требованиям, установленным государственными стандартами (ГОСТ и СНиП). "]
["3.   Изделия следует хранить в сухом, прохладном помещении, обеспечив защиту от прямых солнечных лучей. В случае длительного хранения следует освободить Изделия от транспортной упаковки и во избежание порчи накрыть паропроницаемым материалом. Относительная влажность в помещении для хранения не должна быть ниже 20% и выше 45%."]
["4.   При проведении ремонтно-строительных и прочих работ недопустимо укрывать Изделия непаропроницаемыми материалами (полиэтилен, целлофан и т. д.). Для укрытия Изделий допустимо использование любого паропроницаемого материала (ткань, нетканые паропроницаемые мембраны и т. д.). Недопустимо заклеивать деревянные части Изделий малярным скотчем более чем на три дня, поскольку существует вероятность взаимодействия клеевого слоя скотча с лакокрасочным покрытием Изделий и образование пятен клея, не поддающихся удалению без повреждения лакокрасочного покрытия."]
["5.   Во избежание повреждения лакокрасочного покрытия Изделий и стекол, недопустимо попадание воды, растворителей, агрессивных жидкостей и прочей влаги, возникшей при работе с цементными, штукатурными или подобными растворами."]
["6.   Во время строительных работ для обеспечения нормального функционирования механизмов фурнитуры требуется защитить их от попадания грязи. После этого запорные механизмы, пазы, резиновые уплотнения необходимо тщательно очистить."]
["7.   Следует иметь в виду, что после установки оконных конструкций практически полностью прекращается приток наружного воздуха, поэтому при определенных температурно-влажностных показателях в жилых помещениях происходит выпадение конденсата на стеклах. Данная ситуация может иметь место при проведении работ с применением влажных технологий (штукатурные работы, водоэмульсионная окраска, заливка стяжек и т. п.), а также при отсутствии исправной приточно-вытяжной вентиляции. Во избежание выпадения конденсата на стеклах необходимо обеспечить естественную вентиляцию внутри помещения: утром и вечером проветривать помещения (5-10 минут при открытом окне или 30-60 минут при фрамужном открывании)."]
["8.   При невозможности нормального вентилирования помещения необходима установка кондиционера."]
["9.   Окончательную регулировку фурнитуры рекомендуется проводить непосредственно перед сдачей объекта или по окончании всех отделочно-ремонтных работ. "]
["10.   Во избежание преждевременного выхода из строя фурнитуры ручки должны занимать строго фиксированные положения: с шагом 90 градусов, 180 градусов, 135 градусов (при микро-щелевом проветривании). Запрещается поворачивать ручку при открытом окне. Все повороты ручки осуществляются при закрытом окне и при поворотах ручки запрещается тянуть створку на себя."]
["11.   Указания по использованию"]
["     - Обращаем ваше внимание на опасность травмирования (защемления) рук в момент их нахождения в проеме между створкой и рамой."]
["     - Открытая створка может стать причиной выпадения из окна."]
["     - Опасность травмирования существует также вследствие сильного потока ветра. "]
["     - Следует избегать дополнительных нагрузок (тяжестей) на створку окна."]
["     - Не допускайте нажима створки на боковые откосы стены в противовес к направлению открывания окна."]
["     - Запрещается класть под створку окна или в проем откинутой створки между створкой и рамой посторонние предметы."]
["12.  Уход"]
["Для того, чтобы на качественном уровне сохранять функциональность и надежность поворотно-откидной фурнитуры вашего окна и створки, необходимо, как минимум раз в полгода осуществлять следующие работы по уходу за окном:"]
["     - Элементы фурнитуры, от которых зависит функциональная безопасность окна, следует регулярно контролировать на прижим на равномерных участках створки."]
["     - Все движущиеся элементы и запирающие узлы поворотно-откидной фурнитуры необходимо смазывать."]
["     - Для ухода за Изделиями следует использовать только те моющие средства, которые не вызывают повреждения (удаления) защитного слоя на фурнитуре."]
["     - Ответные планки и регулировочные цапфы следует смазывать солидолом или техническим вазелином."]
["     - В местах направляющих пазов следует капнуть пару капель масла расположенные внутри ригельные штанги."]
["Изделия легко моются благодаря гладкой поверхности. Как правило загрязнения устраняются при помощи имеющихся в продаже средств для мойки стекла и деревянных поверхностей. Порошковые и прочие абразивные средства недопустимы, так как это приводит к повреждению лакокрасочного покрытия Изделий и стекла."]
["Запрещается применять органические растворители для очистки загрязнений на Изделиях."]
["Окраску Изделий и замену стеклопакетов рекомендуется проводить при температуре воздуха не ниже +15оС."]
["Изделия могут менять цвет, находясь на солнце и с течением времени. При дополнительном заказе Изделий необходимо предоставлять образец цвета покрытия, в противном случае новые Изделия могут отличаться оттенком цвета от ранее установленных"]
["Внимание!  Влажность внутри Изделия составляет 10-14%. При несоблюдении влажностных режимов воздуха внутри помещения происходит интенсивное поглощение влаги древесиной. Поэтому в случае деформации отдельных частей Изделия либо повреждения лако-красочного покрытия в период эксплуатации, специалист Исполнителя замеряет влажность Изделий. В случае если она составит более 14%, Изделие снимается с гарантии. "]
["Каждые шесть месяцев эксплуатации Изделиям необходима регулировка, а при необходимости смазка подвижных деталей фурнитуры и уплотнителей. "]
[]
["С Инструкцией ознакомлен, Заказчик __________________"]

{"sheet":"Montage","index":9,"n_rows":38,"n_cols":6,"rows_kept":38,"cut":false,"hidden":false,"merged":[[28,0,28,5],[29,0,29,5],[31,0,31,5],[34,0,34,5],[36,0,36,5],[26,0,26,5],[14,0,14,5],[15,0,15,5],[16,0,16,4],[17,0,17,4],[20,0,20,5],[21,0,21,5],[22,0,22,5],[23,0,23,5],[24,0,24,5],[25,0,25,5],[13,0,13,4],[0,0,0,5],[2,0,2,1],[2,2,2,3],[3,0,3,5],[4,0,4,5],[5,0,5,5],[6,0,6,1],[7,0,7,5],[11,0,11,4],[12,0,12,1],[1,2,1,5],[6,3,6,5]]}
[]
[]
["СЧЕТ-ДОГОВОР №",null,null,null,"от"]
["На доставку и монтаж деревянных окон и доборных элементов."]
["Заказчик:"]
["Адрес:"]
["Телефон:",null,"e-mail"]
["СЧЕТ:"]
["№","Наименование","Ед. изм.","Кол-во","Цена","Стоимость"]
[1,null,null,null,null,{"$f":"ROUND(D10*E10,0)","v":0}]
[]
["ИТОГО включая НДС - 22%",null,null,null,null,{"$f":"SUM(F10:F11)","v":0}]
["Скидка",null,null,"%",null,{"$f":"F12*C13/100","v":0}]
["Всего стоимость заказа",null,null,null,null,{"$f":"F12-F13","v":0}]
[]
["Сумма прописью"]
["Предоплата"]
["К оплате",null,null,null,null,{"$f":"F14-F17","v":0}]
[]
["ДОГОВОР:"]
["1. Исполнитель обязуется произвести работы оговоренные вышеуказанным перечнем работ. Исполнитель обязуется произвести доставку и приступить к монтажу изделий не позднее пяти рабочих дней с даты подписания Акта приема-передачи к Счет-договору на изготовление изделий. Продолжительность монтажа определяется исходя из сложности заказа и технологии монтажа;"]
["2. Заказчик должен обеспечить беспрепятственный проезд а/т Исполнителя к месту разгрузки, проход к месту монтажа, а также место для хранения окон, инструментов и материалов Исполнителя. Заказчик должен предварительно позаботиться о защите мебели, напольных покрытий и т.п. от пыли и грязи;"]
["3. Заказчик оплачивает Исполнителю предоплату в размере 70 % от общей стоимости заказа в момент подписания Договора. Оставшиеся 30% Заказчик оплачивает сразу после выполнения работ Исполнителем;"]
["4. Заказчик обязуется совершить все необходимые действия по приемке выполненных работ в момент их завершения. В случае не принятия части выполненных работ, Заказчик обязан указать количество принятых работ прописью в графе \"Принято\". Претензии по качеству выполненных работ, которые могли быть обнаружены путем визуального осмотра, после подписания Акта выполненных работ не принимаются. В случае отсутствия Заказчика или его законного представителя в месте выполнения работ в момент их завершения или необоснованного уклонения Заказчиком от приемки и подписания Акта выполненных работ, Исполнитель вправе подписать Акт выполненных работ в одностороннем порядке."]
["5. На все изделия распространяется гарантия 60 месяцев при условии соблюдения Заказчиком температурно-влажностных условий в помещении, в котором установлены изделия, в соответствии со СНиП и ГОСт,  отсутствия механических повреждений, следов применения чрезмерной силы, нарушения лакокрасочного покрытия и т.д.; Гарантия Исполнителя не распостраняется на подоконники и панели из дерева, шириной более 250 мм, и оконные и балконные блоки установленные с открыванием наружу."]
["6. Каждые шесть месяцев эксплуатации изделиям необходима регулировка, а при необходимости смазка подвижных деталей фурнитуры;"]
["7. В своих действиях стороны руководствуются действующим законодательством РФ;"]
[]
["Реквизиты Заказчика:"]
[]
[]
["Заказчик _________________________________/____________________________________/"]
[]
["Реквизиты Исполнителя:"]
[]
[]
["Исполнитель   ____________________________/____________________________________/"]
[null,null,"м.п."]

{"sheet":"ActMontage","index":10,"n_rows":28,"n_cols":5,"rows_kept":28,"cut":false,"hidden":false,"merged":[[26,0,26,5],[15,0,15,5],[18,0,18,5],[19,0,19,5],[21,0,21,5],[23,0,23,5],[24,0,24,5],[14,0,14,5],[0,0,0,5],[2,0,2,1],[2,4,2,5],[3,0,3,5],[4,0,4,5],[5,0,5,5],[6,0,6,1],[7,0,7,5],[12,0,12,5],[13,0,13,5],[1,2,1,5],[6,3,6,5]]}
[]
[]
["Акт выполненых работ №",null," ","от","___.___202__г."]
["к договору на доставку и монтаж деревянных окон и доборных элементов."]
["Заказчик:"]
["Адрес:"]
["Телефон:",null,"e-mail"]
[]
["№","Наименование","Ед. изм.","Кол-во","Принято"]
[1]
[]
[]
["1. Настоящий Акт составлен в том, что Исполнитель выполнил, а Заказчик принял вышеперечисленные работы в полном объеме;"]
["2. Заказчик не имеет претензий к Исполнителю по качеству работ;"]
["3. Гарантия на работы Исполнителя составляет 36 месяцев с момента подписания настоящего Акта;"]
["4. В своих действиях стороны руководствуются действующим законодательством РФ;"]
[]
[]
["Реквизиты Заказчика:"]
[]
[]
["Заказчик _________________________________/____________________________________/"]
[]
["Реквизиты Исполнителя:"]
[]
[]
["Исполнитель   ____________________________/____________________________________/"]
[null,null,"м.п."]

{"sheet":"Check","index":11,"n_rows":35,"n_cols":108,"rows_kept":35,"cut":false,"hidden":false,"merged":[[34,18,34,29],[34,33,34,57],[34,81,34,89],[34,91,34,104],[31,100,31,113],[32,18,32,29],[32,33,32,57],[32,90,32,98],[32,100,32,113],[33,18,33,29],[33,33,33,57],[33,81,33,89],[33,91,33,104],[31,90,31,98],[27,10,27,64],[28,77,29,89],[29,11,29,64],[31,18,31,29],[31,33,31,57],[24,7,24,64],[24,84,24,113],[25,7,25,64],[26,0,26,48],[26,49,26,53],[26,54,26,58],[26,76,26,79],[26,82,26,96],[26,98,26,103],[22,10,22,64],[22,74,22,113],[23,0,23,64],[23,74,23,96],[23,97,23,101],[23,102,23,106],[18,80,18,96],[18,102,18,106],[19,80,19,96],[20,10,20,64],[20,74,20,113],[21,74,21,113],[15,74,15,113],[16,74,16,113],[18,0,18,5],[18,6,18,9],[18,10,18,18],[18,19,18,28],[18,29,18,39],[18,40,18,48],[18,49,18,58],[18,59,18,64],[14,0,17,5],[14,6,14,39],[14,40,17,48],[14,49,17,58],[14,59,17,64],[10,53,11,64],[11,84,11,113],[14,74,14,113],[15,6,17,9],[15,10,17,18],[15,19,17,28],[15,29,17,39],[6,0,6,38],[6,50,6,64],[7,0,7,38],[7,50,8,64],[8,0,8,49],[8,101,8,113],[0,66,34,70],[2,74,2,113],[3,74,3,113],[4,50,4,64],[5,50,5,64],[5,74,5,113],[12,42,12,52],[12,53,12,64],[12,74,12,113],[13,83,13,113],[9,0,9,49],[9,78,9,81],[9,84,9,98],[9,100,9,105],[10,42,11,52]]}
[null,null,null,null,null,null,null,null,null,null,null,null,null,null,null,null,null,null,null,null,null,null,null,null,null,null,null,null,null,null,null,null,null,"Унифицированная форма № КО-1",null,null,null,null,null,null,null,null,null,null,null,null,null,null,null,null,null,null,null,null,null,null,null,null,null,null,null,null,null,null,null,null,"Л    и    н     и     я              о     т     р     е     з     а"]
[null,null,null,null,null,null,null,null,null,null,null,null,null,null,null,null,null,null,null,null,null,null,null,null,null,null,null,null,null,null,null,null,null,"Утверждена постановлением Госкомстата"]
[null,null,null,null,null,null,null,null,null,null,null,null,null,null,null,null,null,null,null,null,null,null,null,null,null,null,null,null,null,null,null,null,null,"России от 18.08.98 № 88"]
[null,null,null,null,null,null,null,null,null,null,null,null,null,null,null,null,null,null,null,null,null,null,null,null,null,null,null,null,null,null,null,null,null,null,null,null,null,null,null,null,null,null,null,null,null,null,null,null,null,null,null,null,null,null,null,null,null,null,null,null,null,null,null,null,null,null,null,null,null,null,null,null,null,null,"(организация)"]
[null,null,null,null,null,null,null,null,null,null,null,null,null,null,null,null,null,null,null,null,null,null,null,null,null,null,null,null,null,null,null,null,null,null,null,null,null,null,null,null,null,null,null,null,null,null,null,null,null,null,"Код"]
[null,null,null,null,null,null,null,null,null,null,null,null,null,null,null,null,null,null,null,null,null,null,null,null,null,null,null,null,null,null,null,null,null,null,null,null,null,null,null,null,null,null,null,null,null,null,null,null,"Форма по ОКУД",null,"0310001",null,null,null,null,null,null,null,null,null,null,null,null,null,null,null,null,null,null,null,null,null,null,null,"КВИТАНЦИЯ"]
[{"$f":"BW3","v":0},null,null,null,null,null,null,null,null,null,null,null,null,null,null,null,null,null,null,null,null,null,null,null,null,null,null,null,null,null,null,null,null,null,null,null,null,null,null,null,null,null,null,null,null,null,null,null,"по ОКПО"]
["(организация)"]
[null,null,null,null,null,null,null,null,null,null,null,null,null,null,null,null,null,null,null,null,null,null,null,null,null,null,null,null,null,null,null,null,null,null,null,null,null,null,null,null,null,null,null,null,null,null,null,null,null,null,null,null,null,null,null,null,null,null,null,null,null,null,null,null,null,null,null,null,null,null,null,null,null,null,"к приходному кассовому ордеру №"]
["(структурное подразделение)",null,null,null,null,null,null,null,null,null,null,null,null,null,null,null,null,null,null,null,null,null,null,null,null,null,null,null,null,null,null,null,null,null,null,null,null,null,null,null,null,null,null,null,null,null,null,null,null,null,null,null,null,null,null,null,null,null,null,null,null,null,null,null,null,null,null,null,null,null,null,null,null,null,"от  \"",null,null,null,{"$f":"DAY(TODAY())","v":15},null,null,null,"\"",null,{"$f":"TODAY()","v":"2026-06-15"},null,null,null,null,null,null,null,null,null,null,null,null,null,null,null,{"$f":"YEAR(TODAY())","v":2026},null,null,null,null,null," г."]
[null,null,null,null,null,null,null,null,null,null,null,null,null,null,null,null,null,null,null,null,null,null,null,null,null,null,null,null,null,null,null,null,null,null,null,null,null,null,null,null,null,null,"Номер документа",null,null,null,null,null,null,null,null,null,null,"Дата составления"]
[null,null,null,null,null,null,null,null,null,null,null,null,null,null,null,null,null,null,null,null,null,null,null,null,null,null,null,null,null,null,null,null,null,null,null,null,null,null,null,null,null,null,null,null,null,null,null,null,null,null,null,null,null,null,null,null,null,null,null,null,null,null,null,null,null,null,null,null,null,null,null,null,null,null,"Принято от"]
[null,null,null,null,null,null,null,null,null,null,null,null,null,null,null,null,null,null,null,null,null,null,null,null,null,null,null,null,null,null,null,null,null,null,null,null,null,null,null,null,"ПРИХОДНЫЙ КАССОВЫЙ ОРДЕР",null,{"$f":"CX9","v":0},null,null,null,null,null,null,null,null,null,null,{"$f":"TODAY()","v":"2026-06-15"}]
[null,null,null,null,null,null,null,null,null,null,null,null,null,null,null,null,null,null,null,null,null,null,null,null,null,null,null,null,null,null,null,null,null,null,null,null,null,null,null,null,null,null,null,null,null,null,null,null,null,null,null,null,null,null,null,null,null,null,null,null,null,null,null,null,null,null,null,null,null,null,null,null,null,null,"Основание:"]
["Дебет",null,null,null,null,null,"Кредит",null,null,null,null,null,null,null,null,null,null,null,null,null,null,null,null,null,null,null,null,null,null,null,null,null,null,null,null,null,null,null,null,null,"Сумма,\nруб. коп.",null,null,null,null,null,null,null,null,"Код целевого назначения"]
[null,null,null,null,null,null,null,null,null,null,"код струк-турного под-разделения",null,null,null,null,null,null,null,null,"корреспон-дирующий счет, субсчет",null,null,null,null,null,null,null,null,null,"код аналити-ческого учета"]
[]
[]
[null,null,null,null,null,null,null,null,null,null,null,null,null,null,null,null,null,null,null,null,null,null,null,null,null,null,null,null,null,null,null,null,null,null,null,null,null,null,null,null,{"$f":"CC19&\"-\"&CY19","v":"-00"},null,null,null,null,null,null,null,null,null,null,null,null,null,null,null,null,null,null,null,null,null,null,null,null,null,null,null,null,null,null,null,null,null,"Сумма",null,null,null,null,null,null,null,null,null,null,null,null,null,null,null,null,null,null,null,null,null,null,null,"руб.",null,null,null,"00",null,null,null,null," коп."]
[null,null,null,null,null,null,null,null,null,null,null,null,null,null,null,null,null,null,null,null,null,null,null,null,null,null,null,null,null,null,null,null,null,null,null,null,null,null,null,null,null,null,null,null,null,null,null,null,null,null,null,null,null,null,null,null,null,null,null,null,null,null,null,null,null,null,null,null,null,null,null,null,null,null,null,null,null,null,null,null,"(цифрами)"]
["Принято от",null,null,null,null,null,null,null,null,null,{"$f":"CG12","v":0}]
[null,null,null,null,null,null,null,null,null,null,null,null,null,null,null,null,null,null,null,null,null,null,null,null,null,null,null,null,null,null,null,null,null,null,null,null,null,null,null,null,null,null,null,null,null,null,null,null,null,null,null,null,null,null,null,null,null,null,null,null,null,null,null,null,null,null,null,null,null,null,null,null,null,null,"(прописью)"]
["Основание:",null,null,null,null,null,null,null,null,null,{"$f":"CF14","v":0}]
[{"$f":"BW15&BW16","v":""},null,null,null,null,null,null,null,null,null,null,null,null,null,null,null,null,null,null,null,null,null,null,null,null,null,null,null,null,null,null,null,null,null,null,null,null,null,null,null,null,null,null,null,null,null,null,null,null,null,null,null,null,null,null,null,null,null,null,null,null,null,null,null,null,null,null,null,null,null,null,null,null,null,null,null,null,null,null,null,null,null,null,null,null,null,null,null,null,null,null,null,null,null,null,null,null,"руб.",null,null,null,null,"00",null,null,null,null," коп."]
["Сумма",null,null,null,null,null,null,{"$f":"BW21","v":0},null,null,null,null,null,null,null,null,null,null,null,null,null,null,null,null,null,null,null,null,null,null,null,null,null,null,null,null,null,null,null,null,null,null,null,null,null,null,null,null,null,null,null,null,null,null,null,null,null,null,null,null,null,null,null,null,null,null,null,null,null,null,null,null,null,null,"В том числе"]
[null,null,null,null,null,null,null,"(прописью)"]
[null,null,null,null,null,null,null,null,null,null,null,null,null,null,null,null,null,null,null,null,null,null,null,null,null,null,null,null,null,null,null,null,null,null,null,null,null,null,null,null,null,null,null,null,null,null,null,null,null,"руб.",null,null,null,null,{"$f":"CY24","v":"00"},null,null,null,null," коп.",null,null,null,null,null,null,null,null,null,null,null,null,null,null,null,"\"",{"$f":"DAY(TODAY())","v":15},null,null,null,"\"",null,{"$f":"TODAY()","v":"2026-06-15"},null,null,null,null,null,null,null,null,null,null,null,null,null,null,null,{"$f":"YEAR(TODAY())","v":2026},null,null,null,null,null," г."]
["В том числе",null,null,null,null,null,null,null,null,null,{"$f":"CG25","v":0}]
[null,null,null,null,null,null,null,null,null,null,null,null,null,null,null,null,null,null,null,null,null,null,null,null,null,null,null,null,null,null,null,null,null,null,null,null,null,null,null,null,null,null,null,null,null,null,null,null,null,null,null,null,null,null,null,null,null,null,null,null,null,null,null,null,null,null,null,null,null,null,null,null,null,null,null,null,null,"М.П. (штампа)"]
["Приложение"]
[]
["Главный бухгалтер",null,null,null,null,null,null,null,null,null,null,null,null,null,null,null,null,null,null,null,null,null,null,null,null,null,null,null,null,null,null,null,null,{"$f":"CW32","v":0},null,null,null,null,null,null,null,null,null,null,null,null,null,null,null,null,null,null,null,null,null,null,null,null,null,null,null,null,null,null,null,null,null,null,null,null,null,null,null,null,"Главный бухгалтер"]
[null,null,null,null,null,null,null,null,null,null,null,null,null,null,null,null,null,null,"(подпись)",null,null,null,null,null,null,null,null,null,null,null,null,null,null,"(расшифровка подписи)",null,null,null,null,null,null,null,null,null,null,null,null,null,null,null,null,null,null,null,null,null,null,null,null,null,null,null,null,null,null,null,null,null,null,null,null,null,null,null,null,null,null,null,null,null,null,null,null,null,null,null,null,null,null,null,null,"(подпись)",null,null,null,null,null,null,null,null,null,"(расшифровка подписи)"]
["Получил кассир",null,null,null,null,null,null,null,null,null,null,null,null,null,null,null,null,null,null,null,null,null,null,null,null,null,null,null,null,null,null,null,null,{"$f":"CN34","v":0},null,null,null,null,null,null,null,null,null,null,null,null,null,null,null,null,null,null,null,null,null,null,null,null,null,null,null,null,null,null,null,null,null,null,null,null,null,null,null,null,"Кассир"]
[null,null,null,null,null,null,null,null,null,null,null,null,null,null,null,null,null,null,"(подпись)",null,null,null,null,null,null,null,null,null,null,null,null,null,null,"(расшифровка подписи)",null,null,null,null,null,null,null,null,null,null,null,null,null,null,null,null,null,null,null,null,null,null,null,null,null,null,null,null,null,null,null,null,null,null,null,null,null,null,null,null,null,null,null,null,null,null,null,"(подпись)",null,null,null,null,null,null,null,null,null,"(расшифровка подписи)"]

{"sheet":"Bill","index":12,"n_rows":30,"n_cols":7,"rows_kept":30,"cut":false,"hidden":false,"merged":[[24,1,24,6],[25,1,25,6],[27,3,27,5],[29,3,29,5],[9,1,9,3],[15,1,15,6],[8,1,8,3],[8,5,8,6],[9,5,9,6],[11,4,11,6],[14,1,14,6],[0,1,0,6],[2,1,2,6],[5,1,5,3],[6,1,6,3],[7,1,7,3],[7,5,7,6]]}
[null,"ООО \"СВ Окна\""]
[]
[null,"Московская обл., г. Чехов, ул Гагарина, влд. 35  +7(495)997-1555"]
[]
[null,"Образец заполнения платежного поручения"]
[]
[null,"Получатель"]
[null,null,null,null,"Сч. №"]
[null,"Банк получателя",null,null,"БИК"]
[null,null,null,null,"Сч. №"]
[]
[null,null,"СЧЕТ №  ","  от "]
[]
[]
[null,"Плательщик:        "]
[null,"Грузополучатель: "]
[]
[null,"№","Наименование\nтовара","Единица\nизме-\nрения","Коли-\nчество","Цена","Сумма"]
[null,1,null,null,null,null,{"$f":"ROUND(E19*F19,2)","v":0}]
[]
[null,null,null,null,null,"Итого:",{"$f":"ROUND(SUM(G19:G20),0)","v":0}]
[null,null,null,null,null,null,{"$f":"G23*0","v":0}]
[null,null,null,null,null,"Всего к оплате:",{"$f":"G21","v":0}]
[]
[null,"Всего наименований  на сумму      "]
[]
[]
[null,"Руководитель предприятия "]
[]
[null,"Главный бухгалтер         "]